Workbook

Sheet Prezenční listina (hidden)
A1: ="Prezenční listina - Malý svratecký maratón "&O2 -> Prezenční listina - Malý svratecký maratón 2015
B2: Příjmení | C2: Jméno | D2: Narození | E2: Oddíl / Bydliště | F2: Startovní číslo | G2: Adresa (e-mail) | H2: Kategorie | O2: 2015 | S2: Pohlaví
A3: 1 | B3: Alman | C3: Dušan | D3: 1967 | E3: Babice | F3: 48 | H3: =IF(S3<>"Ž",IF($O$2-D3>39,IF($O$2-D3>49,IF($O$2-D3>59,IF($O$2-D3>69,IF($O$2-D3>90,"","E"),"D"),"C"),"B"),"A"),IF(S3="Ž",IF($O$2-D3>34,IF($O$2-D3>44,IF($O$2-D3>90,"","H"),"G"),"F"))) -> B | S3: =IF(LEN(B3)=0," ",IF(MID(B3,LEN(B3),1)="á","Ž","M")) -> M
A4: =IF(B4<>0,A3+1,"") -> 2 | B4: Barták | C4: Roland | D4: 1965 | E4: Kuřim | F4: 77 | H4: C | S4: M
A5: =IF(B5<>0,A4+1,"") -> 3 | B5: Bezrouk | C5: Jiří | D5: 1962 | E5: Křtiny | F5: 61 | H5: C | S5: M
A6: 4 | B6: Bohuslav | C6: Martin | D6: 1987 | E6: Atletic Třebíč | F6: 27 | H6: A | K6: Rok nastavit v buňce O2 | S6: M
A7: 5 | B7: Brabenec | C7: Miroslav | D7: 1959 | E7: Žďár nad Sázavou | F7: 74 | H7: C | S7: M
A8: 6 | B8: Brabenec | C8: Aleš | D8: 1987 | E8: Žďár nad Sázavou | F8: 73 | H8: A | S8: M
A9: 7 | B9: Cahboune | C9: Soufiane | D9: 1988 | E9: Club Anfa Athletisme (Maroko) | H9: A | S9: M
A10: 8 | B10: Cechmaister | C10: Bohumil | D10: 1974 | E10: Sokol Přísnotice | F10: 64 | H10: B | S10: M
A11: 9 | B11: Češner | C11: Vladimír | D11: 1958 | E11: Odolena Voda | F11: 57 | H11: C | S11: M
A12: 10 | B12: Dušil | C12: Jaroslav | D12: 1970 | E12: Brno | F12: 50 | H12: B | S12: M
A13: 11 | B13: Dvorský | C13: Ladislav | D13: 1965 | E13: MK Seitl Ostrava | F13: 10 | G13: ubytování | H13: C | S13: M
A14: 12 | B14: Dýrová Macháčková | C14: Šárka | D14: 1983 | E14: Mizunoteam Brno | F14: 87 | H14: F | S14: Ž
A15: 13 | B15: Fousek | C15: Jan | D15: 1991 | E15: MK Seitl Ostrava | F15: 11 | G15: ubytování | H15: A | S15: M
A16: 14 | B16: Fučík | C16: Jaroslav | D16: 1974 | E16: Prosetín | F16: 100 | H16: B | S16: M
A17: 15 | B17: Glier | C17: Michal | D17: 1982 | E17: Moravská Slávia Brno | F17: 82 | H17: A | S17: M
A18: 16 | B18: Hakl | C18: Martin | D18: 1987 | E18: Running with Those that Carit | F18: 45 | H18: A | S18: M
A19: 17 | B19: Hladký | C19: Jiří | D19: 1975 | E19: Brno - Nový Lískovec | F19: 96 | H19: B | S19: M
A20: 18 | B20: Holý | C20: Josef | D20: 1941 | E20: Moravská Slávia Brno | F20: 14 | H20: E | S20: M
A21: 19 | B21: Horný | C21: Pavel | D21: 1973 | E21: VHT Přerov | F21: 42 | H21: B | S21: M
A22: 20 | B22: Hrubý | C22: Milan | D22: 1938 | E22: Blansko | F22: 21 | G22: doprava | H22: E | S22: M
A23: 21 | B23: Hübner | C23: Jan | D23: 1978 | E23: SDH Bolešín | F23: 59 | H23: A | S23: M
A24: 22 | B24: Hübner | C24: Tomáš | D24: 1979 | E24: SDH Bolešín | H24: A | S24: M
A25: 23 | B25: Chramosta | C25: Jaroslav | D25: 1966 | E25: JABOJA Team Děčín | F25: 5 | G25: ubytování 2x | H25: B | S25: M
A26: 24 | B26: Jaskulka | C26: Martin | D26: 1968 | E26: Kuřim | F26: 85 | H26: B | S26: M
A27: 25 | B27: Johaníková | C27: Lucie | D27: 1986 | E27: Moravská Slávia Brno | F27: 56 | H27: F | S27: Ž
A28: 26 | B28: Junga | C28: Stanislav | D28: 1971 | E28: Újezd u Brna | F28: 103 | H28: B | S28: M
A29: 27 | B29: Kaše | C29: Jaroslav | D29: 1953 | E29: Club běžeckých outsiderů | F29: 75 | H29: D | S29: M
A30: 28 | B30: Klíma | C30: Miroslav | D30: 1975 | E30: Itchy & Scratchy | H30: B | S30: M
A31: 29 | B31: Kocur | C31: Lukáš | D31: 1977 | E31: VHS Brno | F31: 38 | H31: A | S31: M
A32: 30 | B32: Kohoutek | C32: Jaromír | D32: 1955 | E32: Brno | F32: 89 | H32: D | S32: M
A33: 31 | B33: Kolman | C33: Jakub | D33: 1976 | E33: Posilovna Průvan | F33: 55 | H33: A | S33: M
A34: 32 | B34: Komárková | C34: Zdeňka | D34: 1974 | E34: SDH Bolešín | F34: 7 | H34: G | S34: Ž
A35: 33 | B35: Konečný | C35: Libor | D35: 1971 | E35: Kuřim | F35: 98 | H35: B | S35: =IF(LEN(B35)=0," ",IF(MID(B35,LEN(B35),1)="á","Ž","M")) -> M
A36: 34 | B36: Konečný | C36: Jaroslav | D36: 1969 | E36: Popůvky | F36: 102 | H36: B | S36: M
A37: 35 | B37: Kosmák | C37: Václav | D37: 1983 | E37: Brno | F37: 86 | H37: A | S37: M
A38: 36 | B38: Krátká | C38: Anna | D38: 1969 | E38: Hvězda SKP Pardubice | F38: 35 | H38: H | S38: Ž
A39: 37 | B39: Krátký | C39: Josef | D39: 1965 | E39: Hvězda SKP Pardubice | F39: 36 | H39: C | S39: M
A40: 38 | B40: Kratochvíl | C40: Jaroslav | D40: 1977 | E40: SDH Hluboké | F40: 95 | H40: A | S40: M
A41: 39 | B41: Kresta | C41: Roman | D41: 1965 | E41: Brno | F41: 13 | G41: doprava | H41: C | S41: M
A42: 40 | B42: Kropáček | C42: Jaroslav | D42: 1970 | E42: Brno | F42: 37 | H42: B | S42: M
A43: 41 | B43: Mareš | C43: Bohumil | D43: 1951 | E43: LEAR Brno | F43: 54 | H43: D | S43: M
A44: 42 | B44: Mikeš | C44: Petr | D44: 1977 | E44: Vyškovec | F44: 30 | H44: A | S44: M
A45: 43 | B45: Nekuža | C45: Jiří | D45: 1951 | E45: RUNNERS Zbýšov | F45: 80 | H45: D | S45: M
A46: 44 | B46: Novotný | C46: Petr | D46: 1965 | E46: Kuřim | F46: 76 | H46: C | S46: M
A47: 45 | B47: Očenášek | C47: Zdeněk | D47: 1976 | E47: Brno | F47: 53 | H47: A | S47: M
A48: 46 | B48: Orálek | C48: Daniel | D48: 1970 | E48: Moravská Slávia Brno | F48: 107 | H48: B | S48: M
A49: 47 | B49: Podmelová | C49: Vilma | D49: 1962 | E49: Moravská Slávia Brno | F49: 106 | H49: H | S49: Ž
A50: 48 | B50: Pokorný | C50: Václav | D50: 1978 | E50: Brno | F50: 19 | H50: A | S50: M
A51: 49 | B51: Procházka | C51: Pavel | D51: 1988 | E51: Bystřice nad Pernštejnem | F51: 105 | H51: A | S51: M
A52: 50 | B52: Ryška | C52: Vít | D52: 1975 | E52: VSK Univerzita Brno | F52: 40 | H52: B | S52: M
A53: 51 | B53: Řezníček | C53: Roman | D53: 1977 | E53: Žďár nad Sázavou | F53: 58 | H53: A | S53: M
A54: 52 | B54: Řezníček | C54: Petr | D54: 1973 | E54: Polnička | F54: 92 | H54: B | S54: M
A55: 53 | B55: Sedláček | C55: Aleš | D55: 1976 | E55: Sokol Přísnotice | F55: 63 | H55: A | S55: M
A56: 54 | B56: Sedláček | C56: Svatopluk | D56: 1957 | E56: Moravská Slávia Brno | F56: 104 | H56: C | S56: M
A57: 55 | B57: Suchý | C57: Karel | D57: 1956 | E57: Atletic Třebíč | F57: 44 | H57: C | S57: M
A58: 56 | B58: Škapa | C58: Marek | D58: 1971 | E58: MK Seitl Ostrava | F58: 8 | G58: ubytování | H58: B | S58: M
A59: 57 | B59: Štýbnar | C59: Zbyněk | D59: 1974 | E59: Běžec Vysočiny Jihlava | F59: 22 | H59: B | S59: M
A60: 58 | B60: Tesařová | C60: Marie | D60: 1954 | E60: Křižanov | F60: 12 | G60: doprava | H60: H | S60: Ž
A61: 59 | B61: Výtisk | C61: Alfons | D61: 1949 | E61: MK Seitl Ostrava | F61: 9 | G61: ubytování | H61: D | S61: M
A62: 60 | B62: Dostálová | C62: Vendula | D62: 1981 | E62: HAL 3000 Brno | F62: 3 | H62: F | S62: Ž
A63: 61 | B63: Pivec | C63: Jan | D63: 1981 | E63: HAL 3000 Brno | F63: 2 | H63: A | S63: M
A64: 62 | B64: Bečička | C64: Petr | D64: 1960 | E64: HAL 3000 Brno | F64: 1 | H64: C | S64: M
A65: 63 | B65: Navrátilová | C65: Vlasta | D65: 1983 | E65: Vír | F65: 4 | H65: F | S65: Ž
A66: 64 | B66: Zourek | C66: Karel | D66: 1959 | E66: Brno | F66: 6 | H66: C | S66: M
A67: 65 | B67: Kameníčková | C67: Veronika | D67: 1966 | E67: Vinařice | F67: 16 | H67: =IF(S67<>"Ž",IF($O$2-D67>39,IF($O$2-D67>49,IF($O$2-D67>59,IF($O$2-D67>69,IF($O$2-D67>90,"","E"),"D"),"C"),"B"),"A"),IF(S67="Ž",IF($O$2-D67>34,IF($O$2-D67>44,IF($O$2-D67>90,"","H"),"G"),"F"))) -> H | S67: =IF(LEN(B67)=0," ",IF(MID(B67,LEN(B67),1)="á","Ž","M")) -> Ž
A68: 66 | B68: Kameníček | C68: Michal | D68: 1986 | E68: Vinařice | F68: 17 | H68: A | S68: M
A69: =IF(B69<>0,A68+1,"") -> 67 | B69: Peštuková | C69: Ivana | D69: 1990 | E69: Vinařice | F69: 18 | H69: F | S69: Ž
A70: 68 | B70: Vašalovská | C70: Petra | D70: 1986 | E70: Atletic Třebíč | F70: 23 | H70: F | S70: Ž
A71: 69 | B71: Mahelová | C71: Jitka | D71: 1962 | E71: Atletic Třebíč | F71: 24 | H71: H | S71: Ž
A72: 70 | B72: Nováček | C72: Tomáš | D72: 1983 | E72: Atletic Třebíč | F72: 26 | H72: A | S72: M
A73: 71 | B73: Kratochvíl | C73: Pavel | D73: 1960 | E73: Atletic Třebíč | F73: 28 | H73: C | S73: M
A74: 72 | B74: Provazník | C74: Milan | D74: 1966 | E74: Polička | F74: 29 | H74: B | S74: M
A75: 73 | B75: Kryštof | C75: Ondřej | D75: 1976 | E75: Jiskra Vír | F75: 31 | H75: A | S75: M
A76: 74 | B76: Šedová | C76: Věra | D76: 1964 | E76: Atletic Třebíč | F76: 33 | H76: H | S76: Ž
A77: 75 | B77: Navrátil | C77: Petr | D77: 1963 | E77: Rožná | F77: 34 | H77: C | S77: M
A78: 76 | B78: Hýbl | C78: Jiří | D78: 1967 | E78: Hrušovany u Brna | F78: 41 | H78: B | S78: M
A79: 77 | B79: Dvořák | C79: Vojtěch | D79: 1974 | E79: Brno | F79: 43 | H79: B | S79: M
A80: 78 | B80: Münster | C80: Libor | D80: 1966 | E80: Blansko | F80: 46 | H80: B | S80: M
A81: 79 | B81: Boháč | C81: Jiří | D81: 1954 | E81: Běhej Brno com | F81: 47 | H81: D | S81: M
A82: 80 | B82: Plekanec | C82: Juraj | D82: 1974 | E82: Brno | F82: 49 | H82: B | S82: M
A83: 81 | B83: Pešáková | C83: Mirka | D83: 1985 | E83: AK RACERS Tetčice | F83: 51 | H83: F | S83: Ž
A84: 82 | B84: Kupidlovský | C84: Daniel | D84: 1976 | E84: Stodůlky | F84: 60 | H84: A | S84: M
A85: 83 | B85: Čuhel | C85: Jiří | D85: 1958 | E85: Křtěnov | F85: 62 | H85: C | S85: M
A86: 84 | B86: Dubský | C86: Roman | D86: 1978 | E86: SK Přibyslav | F86: 67 | H86: A | S86: M
A87: 85 | B87: Rokosová | C87: Ivana | D87: 1982 | E87: Polička | F87: 69 | H87: F | S87: Ž
A88: 86 | B88: Strakoš | C88: Vilém | D88: 1969 | E88: SK Fuga Kuřim | F88: 70 | H88: B | S88: M
A89: 87 | B89: Mička | C89: Michal | D89: 1987 | E89: Žďár nad Sázavou | F89: 72 | H89: A | S89: M
A90: 88 | B90: Vídeňský | C90: Jiří | D90: 1947 | E90: KD Moravské Budějovice | F90: 79 | H90: D | S90: M
A91: 89 | B91: Holoubek | C91: Jindřich | D91: 1968 | E91: Brno | F91: 83 | H91: B | S91: M
A92: 90 | B92: Šilhan | C92: Vladimír | D92: 1957 | E92: Original Ježek Babice nad Svitavou | F92: 84 | H92: C | S92: M
A93: 91 | B93: Ježová | C93: Martina | D93: 1975 | E93: Brno | F93: 90 | H93: G | S93: Ž
A94: 92 | B94: Poneš | C94: Pavel | D94: 1978 | E94: TK SOKOLI Brno | F94: 91 | H94: A | S94: M
A95: 93 | B95: Havlíček | C95: Ivo | D95: 1966 | E95: Lánov - Krkonoše | F95: 93 | H95: B | S95: M
A96: 94 | B96: Benc | C96: Karel | D96: 1975 | E96: Pivonice | F96: 94 | H96: B | S96: M
A97: 95 | B97: Tonarová | C97: Miroslava | D97: 1976 | E97: Bory | F97: 97 | H97: G | S97: Ž
A98: 96 | B98: Vacula | C98: Ondřej | D98: 1981 | E98: AC Lelek Lelekovice | F98: 99 | H98: A | S98: M
A99: 97 | B99: Milka | C99: Zdeněk | D99: 1984 | E99: Brno | F99: 101 | H99: A | S99: =IF(LEN(B99)=0," ",IF(MID(B99,LEN(B99),1)="á","Ž","M")) -> M
H131: =IF(S131<>"Ž",IF($O$2-D131>39,IF($O$2-D131>49,IF($O$2-D131>59,IF($O$2-D131>69,IF($O$2-D131>90,"","E"),"D"),"C"),"B"),"A"),IF(S131="Ž",IF($O$2-D131>34,IF($O$2-D131>44,IF($O$2-D131>90,"","H"),"G"),"F"))) ->  | S131: =IF(LEN(B131)=0," ",IF(MID(B131,LEN(B131),1)="á","Ž","M")) -> 
A133: =IF(B133<>0,A132+1,"") -> 

Sheet Startovní listina
A1: ="Startovní listina - Malý svratecký maraton "&'Prezenční listina'!O2 -> Startovní listina - Malý svratecký maraton 2015
A2: 2015-08-22 | I2: Počet přihlášených v jednotlivých kategoriích
A3: ='Prezenční listina'!O2-1953&". ročník" -> 62. ročník | L3: Celkem startujících
B4: Startovní číslo | C4: Příjmení | D4: Jméno | E4: Narození | F4: Oddíl / Bydliště | G4: Kategorie
A5: 1 | B5: =IF('Prezenční listina'!F64=0,"",'Prezenční listina'!F64) -> 1 | C5: =IF('Prezenční listina'!F64=0,"",'Prezenční listina'!B64) -> Bečička | D5: =IF('Prezenční listina'!F64=0,"",'Prezenční listina'!C64) -> Petr | E5: =IF('Prezenční listina'!F64=0,"",'Prezenční listina'!D64) -> 1960 | F5: =IF('Prezenční listina'!F64=0,"",'Prezenční listina'!E64) -> HAL 3000 Brno | G5: =IF('Prezenční listina'!F64=0,"",'Prezenční listina'!H64) -> C | I5: A: | J5: =COUNTIF($G$5:$G$141,"A") -> 26 | L5: =COUNT(B5:B141) -> 94
A6: =IF(C6="","",A5+1) -> 2 | B6: =IF('Prezenční listina'!F63=0,"",'Prezenční listina'!F63) -> 2 | C6: =IF('Prezenční listina'!F63=0,"",'Prezenční listina'!B63) -> Pivec | D6: =IF('Prezenční listina'!F63=0,"",'Prezenční listina'!C63) -> Jan | E6: =IF('Prezenční listina'!F63=0,"",'Prezenční listina'!D63) -> 1981 | F6: =IF('Prezenční listina'!F63=0,"",'Prezenční listina'!E63) -> HAL 3000 Brno | G6: =IF('Prezenční listina'!F63=0,"",'Prezenční listina'!H63) -> A | I6: B: | J6: =COUNTIF($G$5:$G$141,"B") -> 26
A7: 3 | B7: =IF('Prezenční listina'!F62=0,"",'Prezenční listina'!F62) -> 3 | C7: =IF('Prezenční listina'!F62=0,"",'Prezenční listina'!B62) -> Dostálová | D7: =IF('Prezenční listina'!F62=0,"",'Prezenční listina'!C62) -> Vendula | E7: =IF('Prezenční listina'!F62=0,"",'Prezenční listina'!D62) -> 1981 | F7: =IF('Prezenční listina'!F62=0,"",'Prezenční listina'!E62) -> HAL 3000 Brno | G7: =IF('Prezenční listina'!F62=0,"",'Prezenční listina'!H62) -> F | I7: C: | J7: =COUNTIF($G$5:$G$141,"C") -> 16
A8: 4 | B8: =IF('Prezenční listina'!F65=0,"",'Prezenční listina'!F65) -> 4 | C8: =IF('Prezenční listina'!F65=0,"",'Prezenční listina'!B65) -> Navrátilová | D8: =IF('Prezenční listina'!F65=0,"",'Prezenční listina'!C65) -> Vlasta | E8: =IF('Prezenční listina'!F65=0,"",'Prezenční listina'!D65) -> 1983 | F8: =IF('Prezenční listina'!F65=0,"",'Prezenční listina'!E65) -> Vír | G8: =IF('Prezenční listina'!F65=0,"",'Prezenční listina'!H65) -> F | I8: D: | J8: =COUNTIF($G$5:$G$141,"D") -> 7
A9: 5 | B9: =IF('Prezenční listina'!F25=0,"",'Prezenční listina'!F25) -> 5 | C9: =IF('Prezenční listina'!F25=0,"",'Prezenční listina'!B25) -> Chramosta | D9: =IF('Prezenční listina'!F25=0,"",'Prezenční listina'!C25) -> Jaroslav | E9: =IF('Prezenční listina'!F25=0,"",'Prezenční listina'!D25) -> 1966 | F9: =IF('Prezenční listina'!F25=0,"",'Prezenční listina'!E25) -> JABOJA Team Děčín | G9: =IF('Prezenční listina'!F25=0,"",'Prezenční listina'!H25) -> B | I9: E: | J9: =COUNTIF($G$5:$G$141,"E") -> 2
A10: 6 | B10: =IF('Prezenční listina'!F66=0,"",'Prezenční listina'!F66) -> 6 | C10: =IF('Prezenční listina'!F66=0,"",'Prezenční listina'!B66) -> Zourek | D10: =IF('Prezenční listina'!F66=0,"",'Prezenční listina'!C66) -> Karel | E10: =IF('Prezenční listina'!F66=0,"",'Prezenční listina'!D66) -> 1959 | F10: =IF('Prezenční listina'!F66=0,"",'Prezenční listina'!E66) -> Brno | G10: =IF('Prezenční listina'!F66=0,"",'Prezenční listina'!H66) -> C | I10: F: | J10: =COUNTIF($G$5:$G$141,"F") -> 8
A11: 7 | B11: =IF('Prezenční listina'!F34=0,"",'Prezenční listina'!F34) -> 7 | C11: =IF('Prezenční listina'!F34=0,"",'Prezenční listina'!B34) -> Komárková | D11: =IF('Prezenční listina'!F34=0,"",'Prezenční listina'!C34) -> Zdeňka | E11: =IF('Prezenční listina'!F34=0,"",'Prezenční listina'!D34) -> 1974 | F11: =IF('Prezenční listina'!F34=0,"",'Prezenční listina'!E34) -> SDH Bolešín | G11: =IF('Prezenční listina'!F34=0,"",'Prezenční listina'!H34) -> G | I11: G: | J11: =COUNTIF($G$5:$G$141,"G") -> 3
A12: 8 | B12: =IF('Prezenční listina'!F58=0,"",'Prezenční listina'!F58) -> 8 | C12: =IF('Prezenční listina'!F58=0,"",'Prezenční listina'!B58) -> Škapa | D12: =IF('Prezenční listina'!F58=0,"",'Prezenční listina'!C58) -> Marek | E12: =IF('Prezenční listina'!F58=0,"",'Prezenční listina'!D58) -> 1971 | F12: =IF('Prezenční listina'!F58=0,"",'Prezenční listina'!E58) -> MK Seitl Ostrava | G12: =IF('Prezenční listina'!F58=0,"",'Prezenční listina'!H58) -> B | I12: H: | J12: =COUNTIF($G$5:$G$141,"H") -> 6
A13: 9 | B13: =IF('Prezenční listina'!F61=0,"",'Prezenční listina'!F61) -> 9 | C13: =IF('Prezenční listina'!F61=0,"",'Prezenční listina'!B61) -> Výtisk | D13: =IF('Prezenční listina'!F61=0,"",'Prezenční listina'!C61) -> Alfons | E13: =IF('Prezenční listina'!F61=0,"",'Prezenční listina'!D61) -> 1949 | F13: =IF('Prezenční listina'!F61=0,"",'Prezenční listina'!E61) -> MK Seitl Ostrava | G13: =IF('Prezenční listina'!F61=0,"",'Prezenční listina'!H61) -> D
A14: 10 | B14: =IF('Prezenční listina'!F13=0,"",'Prezenční listina'!F13) -> 10 | C14: =IF('Prezenční listina'!F13=0,"",'Prezenční listina'!B13) -> Dvorský | D14: =IF('Prezenční listina'!F13=0,"",'Prezenční listina'!C13) -> Ladislav | E14: =IF('Prezenční listina'!F13=0,"",'Prezenční listina'!D13) -> 1965 | F14: =IF('Prezenční listina'!F13=0,"",'Prezenční listina'!E13) -> MK Seitl Ostrava | G14: =IF('Prezenční listina'!F13=0,"",'Prezenční listina'!H13) -> C
A15: 11 | B15: =IF('Prezenční listina'!F15=0,"",'Prezenční listina'!F15) -> 11 | C15: =IF('Prezenční listina'!F15=0,"",'Prezenční listina'!B15) -> Fousek | D15: =IF('Prezenční listina'!F15=0,"",'Prezenční listina'!C15) -> Jan | E15: =IF('Prezenční listina'!F15=0,"",'Prezenční listina'!D15) -> 1991 | F15: =IF('Prezenční listina'!F15=0,"",'Prezenční listina'!E15) -> MK Seitl Ostrava | G15: =IF('Prezenční listina'!F15=0,"",'Prezenční listina'!H15) -> A
A16: 12 | B16: =IF('Prezenční listina'!F60=0,"",'Prezenční listina'!F60) -> 12 | C16: =IF('Prezenční listina'!F60=0,"",'Prezenční listina'!B60) -> Tesařová | D16: =IF('Prezenční listina'!F60=0,"",'Prezenční listina'!C60) -> Marie | E16: =IF('Prezenční listina'!F60=0,"",'Prezenční listina'!D60) -> 1954 | F16: =IF('Prezenční listina'!F60=0,"",'Prezenční listina'!E60) -> Křižanov | G16: =IF('Prezenční listina'!F60=0,"",'Prezenční listina'!H60) -> H
A17: 13 | B17: =IF('Prezenční listina'!F41=0,"",'Prezenční listina'!F41) -> 13 | C17: =IF('Prezenční listina'!F41=0,"",'Prezenční listina'!B41) -> Kresta | D17: =IF('Prezenční listina'!F41=0,"",'Prezenční listina'!C41) -> Roman | E17: =IF('Prezenční listina'!F41=0,"",'Prezenční listina'!D41) -> 1965 | F17: =IF('Prezenční listina'!F41=0,"",'Prezenční listina'!E41) -> Brno | G17: =IF('Prezenční listina'!F41=0,"",'Prezenční listina'!H41) -> C
A18: 14 | B18: =IF('Prezenční listina'!F20=0,"",'Prezenční listina'!F20) -> 14 | C18: =IF('Prezenční listina'!F20=0,"",'Prezenční listina'!B20) -> Holý | D18: =IF('Prezenční listina'!F20=0,"",'Prezenční listina'!C20) -> Josef | E18: =IF('Prezenční listina'!F20=0,"",'Prezenční listina'!D20) -> 1941 | F18: =IF('Prezenční listina'!F20=0,"",'Prezenční listina'!E20) -> Moravská Slávia Brno | G18: =IF('Prezenční listina'!F20=0,"",'Prezenční listina'!H20) -> E
A19: 15 | B19: =IF('Prezenční listina'!F67=0,"",'Prezenční listina'!F67) -> 16 | C19: =IF('Prezenční listina'!F67=0,"",'Prezenční listina'!B67) -> Kameníčková | D19: =IF('Prezenční listina'!F67=0,"",'Prezenční listina'!C67) -> Veronika | E19: =IF('Prezenční listina'!F67=0,"",'Prezenční listina'!D67) -> 1966 | F19: =IF('Prezenční listina'!F67=0,"",'Prezenční listina'!E67) -> Vinařice | G19: =IF('Prezenční listina'!F67=0,"",'Prezenční listina'!H67) -> H
A20: 16 | B20: =IF('Prezenční listina'!F68=0,"",'Prezenční listina'!F68) -> 17 | C20: =IF('Prezenční listina'!F68=0,"",'Prezenční listina'!B68) -> Kameníček | D20: =IF('Prezenční listina'!F68=0,"",'Prezenční listina'!C68) -> Michal | E20: =IF('Prezenční listina'!F68=0,"",'Prezenční listina'!D68) -> 1986 | F20: =IF('Prezenční listina'!F68=0,"",'Prezenční listina'!E68) -> Vinařice | G20: =IF('Prezenční listina'!F68=0,"",'Prezenční listina'!H68) -> A
A21: 17 | B21: =IF('Prezenční listina'!F69=0,"",'Prezenční listina'!F69) -> 18 | C21: =IF('Prezenční listina'!F69=0,"",'Prezenční listina'!B69) -> Peštuková | D21: =IF('Prezenční listina'!F69=0,"",'Prezenční listina'!C69) -> Ivana | E21: =IF('Prezenční listina'!F69=0,"",'Prezenční listina'!D69) -> 1990 | F21: =IF('Prezenční listina'!F69=0,"",'Prezenční listina'!E69) -> Vinařice | G21: =IF('Prezenční listina'!F69=0,"",'Prezenční listina'!H69) -> F
A22: 18 | B22: =IF('Prezenční listina'!F50=0,"",'Prezenční listina'!F50) -> 19 | C22: =IF('Prezenční listina'!F50=0,"",'Prezenční listina'!B50) -> Pokorný | D22: =IF('Prezenční listina'!F50=0,"",'Prezenční listina'!C50) -> Václav | E22: =IF('Prezenční listina'!F50=0,"",'Prezenční listina'!D50) -> 1978 | F22: =IF('Prezenční listina'!F50=0,"",'Prezenční listina'!E50) -> Brno | G22: =IF('Prezenční listina'!F50=0,"",'Prezenční listina'!H50) -> A
A23: 19 | B23: =IF('Prezenční listina'!F22=0,"",'Prezenční listina'!F22) -> 21 | C23: =IF('Prezenční listina'!F22=0,"",'Prezenční listina'!B22) -> Hrubý | D23: =IF('Prezenční listina'!F22=0,"",'Prezenční listina'!C22) -> Milan | E23: =IF('Prezenční listina'!F22=0,"",'Prezenční listina'!D22) -> 1938 | F23: =IF('Prezenční listina'!F22=0,"",'Prezenční listina'!E22) -> Blansko | G23: =IF('Prezenční listina'!F22=0,"",'Prezenční listina'!H22) -> E
A24: 20 | B24: =IF('Prezenční listina'!F59=0,"",'Prezenční listina'!F59) -> 22 | C24: =IF('Prezenční listina'!F59=0,"",'Prezenční listina'!B59) -> Štýbnar | D24: =IF('Prezenční listina'!F59=0,"",'Prezenční listina'!C59) -> Zbyněk | E24: =IF('Prezenční listina'!F59=0,"",'Prezenční listina'!D59) -> 1974 | F24: =IF('Prezenční listina'!F59=0,"",'Prezenční listina'!E59) -> Běžec Vysočiny Jihlava | G24: =IF('Prezenční listina'!F59=0,"",'Prezenční listina'!H59) -> B
A25: 21 | B25: =IF('Prezenční listina'!F70=0,"",'Prezenční listina'!F70) -> 23 | C25: =IF('Prezenční listina'!F70=0,"",'Prezenční listina'!B70) -> Vašalovská | D25: =IF('Prezenční listina'!F70=0,"",'Prezenční listina'!C70) -> Petra | E25: =IF('Prezenční listina'!F70=0,"",'Prezenční listina'!D70) -> 1986 | F25: =IF('Prezenční listina'!F70=0,"",'Prezenční listina'!E70) -> Atletic Třebíč | G25: =IF('Prezenční listina'!F70=0,"",'Prezenční listina'!H70) -> F
A26: 22 | B26: =IF('Prezenční listina'!F71=0,"",'Prezenční listina'!F71) -> 24 | C26: =IF('Prezenční listina'!F71=0,"",'Prezenční listina'!B71) -> Mahelová | D26: =IF('Prezenční listina'!F71=0,"",'Prezenční listina'!C71) -> Jitka | E26: =IF('Prezenční listina'!F71=0,"",'Prezenční listina'!D71) -> 1962 | F26: =IF('Prezenční listina'!F71=0,"",'Prezenční listina'!E71) -> Atletic Třebíč | G26: =IF('Prezenční listina'!F71=0,"",'Prezenční listina'!H71) -> H
A27: 23 | B27: =IF('Prezenční listina'!F72=0,"",'Prezenční listina'!F72) -> 26 | C27: =IF('Prezenční listina'!F72=0,"",'Prezenční listina'!B72) -> Nováček | D27: =IF('Prezenční listina'!F72=0,"",'Prezenční listina'!C72) -> Tomáš | E27: =IF('Prezenční listina'!F72=0,"",'Prezenční listina'!D72) -> 1983 | F27: =IF('Prezenční listina'!F72=0,"",'Prezenční listina'!E72) -> Atletic Třebíč | G27: =IF('Prezenční listina'!F72=0,"",'Prezenční listina'!H72) -> A
A28: 24 | B28: =IF('Prezenční listina'!F6=0,"",'Prezenční listina'!F6) -> 27 | C28: =IF('Prezenční listina'!F6=0,"",'Prezenční listina'!B6) -> Bohuslav | D28: =IF('Prezenční listina'!F6=0,"",'Prezenční listina'!C6) -> Martin | E28: =IF('Prezenční listina'!F6=0,"",'Prezenční listina'!D6) -> 1987 | F28: =IF('Prezenční listina'!F6=0,"",'Prezenční listina'!E6) -> Atletic Třebíč | G28: =IF('Prezenční listina'!F6=0,"",'Prezenční listina'!H6) -> A
A29: 25 | B29: =IF('Prezenční listina'!F73=0,"",'Prezenční listina'!F73) -> 28 | C29: =IF('Prezenční listina'!F73=0,"",'Prezenční listina'!B73) -> Kratochvíl | D29: =IF('Prezenční listina'!F73=0,"",'Prezenční listina'!C73) -> Pavel | E29: =IF('Prezenční listina'!F73=0,"",'Prezenční listina'!D73) -> 1960 | F29: =IF('Prezenční listina'!F73=0,"",'Prezenční listina'!E73) -> Atletic Třebíč | G29: =IF('Prezenční listina'!F73=0,"",'Prezenční listina'!H73) -> C
A30: 26 | B30: =IF('Prezenční listina'!F74=0,"",'Prezenční listina'!F74) -> 29 | C30: =IF('Prezenční listina'!F74=0,"",'Prezenční listina'!B74) -> Provazník | D30: =IF('Prezenční listina'!F74=0,"",'Prezenční listina'!C74) -> Milan | E30: =IF('Prezenční listina'!F74=0,"",'Prezenční listina'!D74) -> 1966 | F30: =IF('Prezenční listina'!F74=0,"",'Prezenční listina'!E74) -> Polička | G30: =IF('Prezenční listina'!F74=0,"",'Prezenční listina'!H74) -> B
A31: 27 | B31: =IF('Prezenční listina'!F44=0,"",'Prezenční listina'!F44) -> 30 | C31: =IF('Prezenční listina'!F44=0,"",'Prezenční listina'!B44) -> Mikeš | D31: =IF('Prezenční listina'!F44=0,"",'Prezenční listina'!C44) -> Petr | E31: =IF('Prezenční listina'!F44=0,"",'Prezenční listina'!D44) -> 1977 | F31: =IF('Prezenční listina'!F44=0,"",'Prezenční listina'!E44) -> Vyškovec | G31: =IF('Prezenční listina'!F44=0,"",'Prezenční listina'!H44) -> A
A32: 28 | B32: =IF('Prezenční listina'!F75=0,"",'Prezenční listina'!F75) -> 31 | C32: =IF('Prezenční listina'!F75=0,"",'Prezenční listina'!B75) -> Kryštof | D32: =IF('Prezenční listina'!F75=0,"",'Prezenční listina'!C75) -> Ondřej | E32: =IF('Prezenční listina'!F75=0,"",'Prezenční listina'!D75) -> 1976 | F32: =IF('Prezenční listina'!F75=0,"",'Prezenční listina'!E75) -> Jiskra Vír | G32: =IF('Prezenční listina'!F75=0,"",'Prezenční listina'!H75) -> A
A33: 29 | B33: =IF('Prezenční listina'!F76=0,"",'Prezenční listina'!F76) -> 33 | C33: =IF('Prezenční listina'!F76=0,"",'Prezenční listina'!B76) -> Šedová | D33: =IF('Prezenční listina'!F76=0,"",'Prezenční listina'!C76) -> Věra | E33: =IF('Prezenční listina'!F76=0,"",'Prezenční listina'!D76) -> 1964 | F33: =IF('Prezenční listina'!F76=0,"",'Prezenční listina'!E76) -> Atletic Třebíč | G33: =IF('Prezenční listina'!F76=0,"",'Prezenční listina'!H76) -> H
A34: 30 | B34: =IF('Prezenční listina'!F77=0,"",'Prezenční listina'!F77) -> 34 | C34: =IF('Prezenční listina'!F77=0,"",'Prezenční listina'!B77) -> Navrátil | D34: =IF('Prezenční listina'!F77=0,"",'Prezenční listina'!C77) -> Petr | E34: =IF('Prezenční listina'!F77=0,"",'Prezenční listina'!D77) -> 1963 | F34: =IF('Prezenční listina'!F77=0,"",'Prezenční listina'!E77) -> Rožná | G34: =IF('Prezenční listina'!F77=0,"",'Prezenční listina'!H77) -> C
A35: 31 | B35: =IF('Prezenční listina'!F38=0,"",'Prezenční listina'!F38) -> 35 | C35: =IF('Prezenční listina'!F38=0,"",'Prezenční listina'!B38) -> Krátká | D35: =IF('Prezenční listina'!F38=0,"",'Prezenční listina'!C38) -> Anna | E35: =IF('Prezenční listina'!F38=0,"",'Prezenční listina'!D38) -> 1969 | F35: =IF('Prezenční listina'!F38=0,"",'Prezenční listina'!E38) -> Hvězda SKP Pardubice | G35: =IF('Prezenční listina'!F38=0,"",'Prezenční listina'!H38) -> H
A36: 32 | B36: =IF('Prezenční listina'!F39=0,"",'Prezenční listina'!F39) -> 36 | C36: =IF('Prezenční listina'!F39=0,"",'Prezenční listina'!B39) -> Krátký | D36: =IF('Prezenční listina'!F39=0,"",'Prezenční listina'!C39) -> Josef | E36: =IF('Prezenční listina'!F39=0,"",'Prezenční listina'!D39) -> 1965 | F36: =IF('Prezenční listina'!F39=0,"",'Prezenční listina'!E39) -> Hvězda SKP Pardubice | G36: =IF('Prezenční listina'!F39=0,"",'Prezenční listina'!H39) -> C
A37: 33 | B37: =IF('Prezenční listina'!F42=0,"",'Prezenční listina'!F42) -> 37 | C37: =IF('Prezenční listina'!F42=0,"",'Prezenční listina'!B42) -> Kropáček | D37: =IF('Prezenční listina'!F42=0,"",'Prezenční listina'!C42) -> Jaroslav | E37: =IF('Prezenční listina'!F42=0,"",'Prezenční listina'!D42) -> 1970 | F37: =IF('Prezenční listina'!F42=0,"",'Prezenční listina'!E42) -> Brno | G37: =IF('Prezenční listina'!F42=0,"",'Prezenční listina'!H42) -> B
A38: 34 | B38: =IF('Prezenční listina'!F31=0,"",'Prezenční listina'!F31) -> 38 | C38: =IF('Prezenční listina'!F31=0,"",'Prezenční listina'!B31) -> Kocur | D38: =IF('Prezenční listina'!F31=0,"",'Prezenční listina'!C31) -> Lukáš | E38: =IF('Prezenční listina'!F31=0,"",'Prezenční listina'!D31) -> 1977 | F38: =IF('Prezenční listina'!F31=0,"",'Prezenční listina'!E31) -> VHS Brno | G38: =IF('Prezenční listina'!F31=0,"",'Prezenční listina'!H31) -> A
A39: =IF(C39="","",A38+1) -> 35 | B39: =IF('Prezenční listina'!F52=0,"",'Prezenční listina'!F52) -> 40 | C39: =IF('Prezenční listina'!F52=0,"",'Prezenční listina'!B52) -> Ryška | D39: =IF('Prezenční listina'!F52=0,"",'Prezenční listina'!C52) -> Vít | E39: =IF('Prezenční listina'!F52=0,"",'Prezenční listina'!D52) -> 1975 | F39: =IF('Prezenční listina'!F52=0,"",'Prezenční listina'!E52) -> VSK Univerzita Brno | G39: =IF('Prezenční listina'!F52=0,"",'Prezenční listina'!H52) -> B
A40: =IF(C40="","",A39+1) -> 36 | B40: =IF('Prezenční listina'!F78=0,"",'Prezenční listina'!F78) -> 41 | C40: =IF('Prezenční listina'!F78=0,"",'Prezenční listina'!B78) -> Hýbl | D40: =IF('Prezenční listina'!F78=0,"",'Prezenční listina'!C78) -> Jiří | E40: =IF('Prezenční listina'!F78=0,"",'Prezenční listina'!D78) -> 1967 | F40: =IF('Prezenční listina'!F78=0,"",'Prezenční listina'!E78) -> Hrušovany u Brna | G40: =IF('Prezenční listina'!F78=0,"",'Prezenční listina'!H78) -> B
A41: 37 | B41: =IF('Prezenční listina'!F21=0,"",'Prezenční listina'!F21) -> 42 | C41: =IF('Prezenční listina'!F21=0,"",'Prezenční listina'!B21) -> Horný | D41: =IF('Prezenční listina'!F21=0,"",'Prezenční listina'!C21) -> Pavel | E41: =IF('Prezenční listina'!F21=0,"",'Prezenční listina'!D21) -> 1973 | F41: =IF('Prezenční listina'!F21=0,"",'Prezenční listina'!E21) -> VHT Přerov | G41: =IF('Prezenční listina'!F21=0,"",'Prezenční listina'!H21) -> B
A42: 38 | B42: =IF('Prezenční listina'!F79=0,"",'Prezenční listina'!F79) -> 43 | C42: =IF('Prezenční listina'!F79=0,"",'Prezenční listina'!B79) -> Dvořák | D42: =IF('Prezenční listina'!F79=0,"",'Prezenční listina'!C79) -> Vojtěch | E42: =IF('Prezenční listina'!F79=0,"",'Prezenční listina'!D79) -> 1974 | F42: =IF('Prezenční listina'!F79=0,"",'Prezenční listina'!E79) -> Brno | G42: =IF('Prezenční listina'!F79=0,"",'Prezenční listina'!H79) -> B
A43: 39 | B43: =IF('Prezenční listina'!F57=0,"",'Prezenční listina'!F57) -> 44 | C43: =IF('Prezenční listina'!F57=0,"",'Prezenční listina'!B57) -> Suchý | D43: =IF('Prezenční listina'!F57=0,"",'Prezenční listina'!C57) -> Karel | E43: =IF('Prezenční listina'!F57=0,"",'Prezenční listina'!D57) -> 1956 | F43: =IF('Prezenční listina'!F57=0,"",'Prezenční listina'!E57) -> Atletic Třebíč | G43: =IF('Prezenční listina'!F57=0,"",'Prezenční listina'!H57) -> C
A44: 40 | B44: =IF('Prezenční listina'!F18=0,"",'Prezenční listina'!F18) -> 45 | C44: =IF('Prezenční listina'!F18=0,"",'Prezenční listina'!B18) -> Hakl | D44: =IF('Prezenční listina'!F18=0,"",'Prezenční listina'!C18) -> Martin | E44: =IF('Prezenční listina'!F18=0,"",'Prezenční listina'!D18) -> 1987 | F44: =IF('Prezenční listina'!F18=0,"",'Prezenční listina'!E18) -> Running with Those that Carit | G44: =IF('Prezenční listina'!F18=0,"",'Prezenční listina'!H18) -> A
A45: 41 | B45: =IF('Prezenční listina'!F80=0,"",'Prezenční listina'!F80) -> 46 | C45: =IF('Prezenční listina'!F80=0,"",'Prezenční listina'!B80) -> Münster | D45: =IF('Prezenční listina'!F80=0,"",'Prezenční listina'!C80) -> Libor | E45: =IF('Prezenční listina'!F80=0,"",'Prezenční listina'!D80) -> 1966 | F45: =IF('Prezenční listina'!F80=0,"",'Prezenční listina'!E80) -> Blansko | G45: =IF('Prezenční listina'!F80=0,"",'Prezenční listina'!H80) -> B
A46: 42 | B46: =IF('Prezenční listina'!F81=0,"",'Prezenční listina'!F81) -> 47 | C46: =IF('Prezenční listina'!F81=0,"",'Prezenční listina'!B81) -> Boháč | D46: =IF('Prezenční listina'!F81=0,"",'Prezenční listina'!C81) -> Jiří | E46: =IF('Prezenční listina'!F81=0,"",'Prezenční listina'!D81) -> 1954 | F46: =IF('Prezenční listina'!F81=0,"",'Prezenční listina'!E81) -> Běhej Brno com | G46: =IF('Prezenční listina'!F81=0,"",'Prezenční listina'!H81) -> D
A47: 43 | B47: =IF('Prezenční listina'!F3=0,"",'Prezenční listina'!F3) -> 48 | C47: =IF('Prezenční listina'!F3=0,"",'Prezenční listina'!B3) -> Alman | D47: =IF('Prezenční listina'!F3=0,"",'Prezenční listina'!C3) -> Dušan | E47: =IF('Prezenční listina'!F3=0,"",'Prezenční listina'!D3) -> 1967 | F47: =IF('Prezenční listina'!F3=0,"",'Prezenční listina'!E3) -> Babice | G47: =IF('Prezenční listina'!F3=0,"",'Prezenční listina'!H3) -> B
A48: 44 | B48: =IF('Prezenční listina'!F82=0,"",'Prezenční listina'!F82) -> 49 | C48: =IF('Prezenční listina'!F82=0,"",'Prezenční listina'!B82) -> Plekanec | D48: =IF('Prezenční listina'!F82=0,"",'Prezenční listina'!C82) -> Juraj | E48: =IF('Prezenční listina'!F82=0,"",'Prezenční listina'!D82) -> 1974 | F48: =IF('Prezenční listina'!F82=0,"",'Prezenční listina'!E82) -> Brno | G48: =IF('Prezenční listina'!F82=0,"",'Prezenční listina'!H82) -> B
A49: 45 | B49: =IF('Prezenční listina'!F12=0,"",'Prezenční listina'!F12) -> 50 | C49: =IF('Prezenční listina'!F12=0,"",'Prezenční listina'!B12) -> Dušil | D49: =IF('Prezenční listina'!F12=0,"",'Prezenční listina'!C12) -> Jaroslav | E49: =IF('Prezenční listina'!F12=0,"",'Prezenční listina'!D12) -> 1970 | F49: =IF('Prezenční listina'!F12=0,"",'Prezenční listina'!E12) -> Brno | G49: =IF('Prezenční listina'!F12=0,"",'Prezenční listina'!H12) -> B
A50: 46 | B50: =IF('Prezenční listina'!F83=0,"",'Prezenční listina'!F83) -> 51 | C50: =IF('Prezenční listina'!F83=0,"",'Prezenční listina'!B83) -> Pešáková | D50: =IF('Prezenční listina'!F83=0,"",'Prezenční listina'!C83) -> Mirka | E50: =IF('Prezenční listina'!F83=0,"",'Prezenční listina'!D83) -> 1985 | F50: =IF('Prezenční listina'!F83=0,"",'Prezenční listina'!E83) -> AK RACERS Tetčice | G50: =IF('Prezenční listina'!F83=0,"",'Prezenční listina'!H83) -> F
A51: 47 | B51: =IF('Prezenční listina'!F47=0,"",'Prezenční listina'!F47) -> 53 | C51: =IF('Prezenční listina'!F47=0,"",'Prezenční listina'!B47) -> Očenášek | D51: =IF('Prezenční listina'!F47=0,"",'Prezenční listina'!C47) -> Zdeněk | E51: =IF('Prezenční listina'!F47=0,"",'Prezenční listina'!D47) -> 1976 | F51: =IF('Prezenční listina'!F47=0,"",'Prezenční listina'!E47) -> Brno | G51: =IF('Prezenční listina'!F47=0,"",'Prezenční listina'!H47) -> A
A52: 48 | B52: =IF('Prezenční listina'!F43=0,"",'Prezenční listina'!F43) -> 54 | C52: =IF('Prezenční listina'!F43=0,"",'Prezenční listina'!B43) -> Mareš | D52: =IF('Prezenční listina'!F43=0,"",'Prezenční listina'!C43) -> Bohumil | E52: =IF('Prezenční listina'!F43=0,"",'Prezenční listina'!D43) -> 1951 | F52: =IF('Prezenční listina'!F43=0,"",'Prezenční listina'!E43) -> LEAR Brno | G52: =IF('Prezenční listina'!F43=0,"",'Prezenční listina'!H43) -> D
A53: 49 | B53: =IF('Prezenční listina'!F33=0,"",'Prezenční listina'!F33) -> 55 | C53: =IF('Prezenční listina'!F33=0,"",'Prezenční listina'!B33) -> Kolman | D53: =IF('Prezenční listina'!F33=0,"",'Prezenční listina'!C33) -> Jakub | E53: =IF('Prezenční listina'!F33=0,"",'Prezenční listina'!D33) -> 1976 | F53: =IF('Prezenční listina'!F33=0,"",'Prezenční listina'!E33) -> Posilovna Průvan | G53: =IF('Prezenční listina'!F33=0,"",'Prezenční listina'!H33) -> A
A54: 50 | B54: =IF('Prezenční listina'!F27=0,"",'Prezenční listina'!F27) -> 56 | C54: =IF('Prezenční listina'!F27=0,"",'Prezenční listina'!B27) -> Johaníková | D54: =IF('Prezenční listina'!F27=0,"",'Prezenční listina'!C27) -> Lucie | E54: =IF('Prezenční listina'!F27=0,"",'Prezenční listina'!D27) -> 1986 | F54: =IF('Prezenční listina'!F27=0,"",'Prezenční listina'!E27) -> Moravská Slávia Brno | G54: =IF('Prezenční listina'!F27=0,"",'Prezenční listina'!H27) -> F
A55: 51 | B55: =IF('Prezenční listina'!F11=0,"",'Prezenční listina'!F11) -> 57 | C55: =IF('Prezenční listina'!F11=0,"",'Prezenční listina'!B11) -> Češner | D55: =IF('Prezenční listina'!F11=0,"",'Prezenční listina'!C11) -> Vladimír | E55: =IF('Prezenční listina'!F11=0,"",'Prezenční listina'!D11) -> 1958 | F55: =IF('Prezenční listina'!F11=0,"",'Prezenční listina'!E11) -> Odolena Voda | G55: =IF('Prezenční listina'!F11=0,"",'Prezenční listina'!H11) -> C
A56: 52 | B56: =IF('Prezenční listina'!F53=0,"",'Prezenční listina'!F53) -> 58 | C56: =IF('Prezenční listina'!F53=0,"",'Prezenční listina'!B53) -> Řezníček | D56: =IF('Prezenční listina'!F53=0,"",'Prezenční listina'!C53) -> Roman | E56: =IF('Prezenční listina'!F53=0,"",'Prezenční listina'!D53) -> 1977 | F56: =IF('Prezenční listina'!F53=0,"",'Prezenční listina'!E53) -> Žďár nad Sázavou | G56: =IF('Prezenční listina'!F53=0,"",'Prezenční listina'!H53) -> A
A57: 53 | B57: =IF('Prezenční listina'!F23=0,"",'Prezenční listina'!F23) -> 59 | C57: =IF('Prezenční listina'!F23=0,"",'Prezenční listina'!B23) -> Hübner | D57: =IF('Prezenční listina'!F23=0,"",'Prezenční listina'!C23) -> Jan | E57: =IF('Prezenční listina'!F23=0,"",'Prezenční listina'!D23) -> 1978 | F57: =IF('Prezenční listina'!F23=0,"",'Prezenční listina'!E23) -> SDH Bolešín | G57: =IF('Prezenční listina'!F23=0,"",'Prezenční listina'!H23) -> A
A58: 54 | B58: =IF('Prezenční listina'!F84=0,"",'Prezenční listina'!F84) -> 60 | C58: =IF('Prezenční listina'!F84=0,"",'Prezenční listina'!B84) -> Kupidlovský | D58: =IF('Prezenční listina'!F84=0,"",'Prezenční listina'!C84) -> Daniel | E58: =IF('Prezenční listina'!F84=0,"",'Prezenční listina'!D84) -> 1976 | F58: =IF('Prezenční listina'!F84=0,"",'Prezenční listina'!E84) -> Stodůlky | G58: =IF('Prezenční listina'!F84=0,"",'Prezenční listina'!H84) -> A
A59: 55 | B59: =IF('Prezenční listina'!F5=0,"",'Prezenční listina'!F5) -> 61 | C59: =IF('Prezenční listina'!F5=0,"",'Prezenční listina'!B5) -> Bezrouk | D59: =IF('Prezenční listina'!F5=0,"",'Prezenční listina'!C5) -> Jiří | E59: =IF('Prezenční listina'!F5=0,"",'Prezenční listina'!D5) -> 1962 | F59: =IF('Prezenční listina'!F5=0,"",'Prezenční listina'!E5) -> Křtiny | G59: =IF('Prezenční listina'!F5=0,"",'Prezenční listina'!H5) -> C
A60: 56 | B60: =IF('Prezenční listina'!F85=0,"",'Prezenční listina'!F85) -> 62 | C60: =IF('Prezenční listina'!F85=0,"",'Prezenční listina'!B85) -> Čuhel | D60: =IF('Prezenční listina'!F85=0,"",'Prezenční listina'!C85) -> Jiří | E60: =IF('Prezenční listina'!F85=0,"",'Prezenční listina'!D85) -> 1958 | F60: =IF('Prezenční listina'!F85=0,"",'Prezenční listina'!E85) -> Křtěnov | G60: =IF('Prezenční listina'!F85=0,"",'Prezenční listina'!H85) -> C
A61: 57 | B61: =IF('Prezenční listina'!F55=0,"",'Prezenční listina'!F55) -> 63 | C61: =IF('Prezenční listina'!F55=0,"",'Prezenční listina'!B55) -> Sedláček | D61: =IF('Prezenční listina'!F55=0,"",'Prezenční listina'!C55) -> Aleš | E61: =IF('Prezenční listina'!F55=0,"",'Prezenční listina'!D55) -> 1976 | F61: =IF('Prezenční listina'!F55=0,"",'Prezenční listina'!E55) -> Sokol Přísnotice | G61: =IF('Prezenční listina'!F55=0,"",'Prezenční listina'!H55) -> A
A62: 58 | B62: =IF('Prezenční listina'!F10=0,"",'Prezenční listina'!F10) -> 64 | C62: =IF('Prezenční listina'!F10=0,"",'Prezenční listina'!B10) -> Cechmaister | D62: =IF('Prezenční listina'!F10=0,"",'Prezenční listina'!C10) -> Bohumil | E62: =IF('Prezenční listina'!F10=0,"",'Prezenční listina'!D10) -> 1974 | F62: =IF('Prezenční listina'!F10=0,"",'Prezenční listina'!E10) -> Sokol Přísnotice | G62: =IF('Prezenční listina'!F10=0,"",'Prezenční listina'!H10) -> B
A63: 59 | B63: =IF('Prezenční listina'!F86=0,"",'Prezenční listina'!F86) -> 67 | C63: =IF('Prezenční listina'!F86=0,"",'Prezenční listina'!B86) -> Dubský | D63: =IF('Prezenční listina'!F86=0,"",'Prezenční listina'!C86) -> Roman | E63: =IF('Prezenční listina'!F86=0,"",'Prezenční listina'!D86) -> 1978 | F63: =IF('Prezenční listina'!F86=0,"",'Prezenční listina'!E86) -> SK Přibyslav | G63: =IF('Prezenční listina'!F86=0,"",'Prezenční listina'!H86) -> A
A64: 60 | B64: =IF('Prezenční listina'!F87=0,"",'Prezenční listina'!F87) -> 69 | C64: =IF('Prezenční listina'!F87=0,"",'Prezenční listina'!B87) -> Rokosová | D64: =IF('Prezenční listina'!F87=0,"",'Prezenční listina'!C87) -> Ivana | E64: =IF('Prezenční listina'!F87=0,"",'Prezenční listina'!D87) -> 1982 | F64: =IF('Prezenční listina'!F87=0,"",'Prezenční listina'!E87) -> Polička | G64: =IF('Prezenční listina'!F87=0,"",'Prezenční listina'!H87) -> F
A65: 61 | B65: =IF('Prezenční listina'!F88=0,"",'Prezenční listina'!F88) -> 70 | C65: =IF('Prezenční listina'!F88=0,"",'Prezenční listina'!B88) -> Strakoš | D65: =IF('Prezenční listina'!F88=0,"",'Prezenční listina'!C88) -> Vilém | E65: =IF('Prezenční listina'!F88=0,"",'Prezenční listina'!D88) -> 1969 | F65: =IF('Prezenční listina'!F88=0,"",'Prezenční listina'!E88) -> SK Fuga Kuřim | G65: =IF('Prezenční listina'!F88=0,"",'Prezenční listina'!H88) -> B
A66: 62 | B66: =IF('Prezenční listina'!F89=0,"",'Prezenční listina'!F89) -> 72 | C66: =IF('Prezenční listina'!F89=0,"",'Prezenční listina'!B89) -> Mička | D66: =IF('Prezenční listina'!F89=0,"",'Prezenční listina'!C89) -> Michal | E66: =IF('Prezenční listina'!F89=0,"",'Prezenční listina'!D89) -> 1987 | F66: =IF('Prezenční listina'!F89=0,"",'Prezenční listina'!E89) -> Žďár nad Sázavou | G66: =IF('Prezenční listina'!F89=0,"",'Prezenční listina'!H89) -> A
A67: 63 | B67: =IF('Prezenční listina'!F8=0,"",'Prezenční listina'!F8) -> 73 | C67: =IF('Prezenční listina'!F8=0,"",'Prezenční listina'!B8) -> Brabenec | D67: =IF('Prezenční listina'!F8=0,"",'Prezenční listina'!C8) -> Aleš | E67: =IF('Prezenční listina'!F8=0,"",'Prezenční listina'!D8) -> 1987 | F67: =IF('Prezenční listina'!F8=0,"",'Prezenční listina'!E8) -> Žďár nad Sázavou | G67: =IF('Prezenční listina'!F8=0,"",'Prezenční listina'!H8) -> A
A68: 64 | B68: =IF('Prezenční listina'!F7=0,"",'Prezenční listina'!F7) -> 74 | C68: =IF('Prezenční listina'!F7=0,"",'Prezenční listina'!B7) -> Brabenec | D68: =IF('Prezenční listina'!F7=0,"",'Prezenční listina'!C7) -> Miroslav | E68: =IF('Prezenční listina'!F7=0,"",'Prezenční listina'!D7) -> 1959 | F68: =IF('Prezenční listina'!F7=0,"",'Prezenční listina'!E7) -> Žďár nad Sázavou | G68: =IF('Prezenční listina'!F7=0,"",'Prezenční listina'!H7) -> C
A69: 65 | B69: =IF('Prezenční listina'!F29=0,"",'Prezenční listina'!F29) -> 75 | C69: =IF('Prezenční listina'!F29=0,"",'Prezenční listina'!B29) -> Kaše | D69: =IF('Prezenční listina'!F29=0,"",'Prezenční listina'!C29) -> Jaroslav | E69: =IF('Prezenční listina'!F29=0,"",'Prezenční listina'!D29) -> 1953 | F69: =IF('Prezenční listina'!F29=0,"",'Prezenční listina'!E29) -> Club běžeckých outsiderů | G69: =IF('Prezenční listina'!F29=0,"",'Prezenční listina'!H29) -> D
A70: 66 | B70: =IF('Prezenční listina'!F46=0,"",'Prezenční listina'!F46) -> 76 | C70: =IF('Prezenční listina'!F46=0,"",'Prezenční listina'!B46) -> Novotný | D70: =IF('Prezenční listina'!F46=0,"",'Prezenční listina'!C46) -> Petr | E70: =IF('Prezenční listina'!F46=0,"",'Prezenční listina'!D46) -> 1965 | F70: =IF('Prezenční listina'!F46=0,"",'Prezenční listina'!E46) -> Kuřim | G70: =IF('Prezenční listina'!F46=0,"",'Prezenční listina'!H46) -> C
A71: 67 | B71: =IF('Prezenční listina'!F4=0,"",'Prezenční listina'!F4) -> 77 | C71: =IF('Prezenční listina'!F4=0,"",'Prezenční listina'!B4) -> Barták | D71: =IF('Prezenční listina'!F4=0,"",'Prezenční listina'!C4) -> Roland | E71: =IF('Prezenční listina'!F4=0,"",'Prezenční listina'!D4) -> 1965 | F71: =IF('Prezenční listina'!F4=0,"",'Prezenční listina'!E4) -> Kuřim | G71: =IF('Prezenční listina'!F4=0,"",'Prezenční listina'!H4) -> C
A72: 68 | B72: =IF('Prezenční listina'!F90=0,"",'Prezenční listina'!F90) -> 79 | C72: =IF('Prezenční listina'!F90=0,"",'Prezenční listina'!B90) -> Vídeňský | D72: =IF('Prezenční listina'!F90=0,"",'Prezenční listina'!C90) -> Jiří | E72: =IF('Prezenční listina'!F90=0,"",'Prezenční listina'!D90) -> 1947 | F72: =IF('Prezenční listina'!F90=0,"",'Prezenční listina'!E90) -> KD Moravské Budějovice | G72: =IF('Prezenční listina'!F90=0,"",'Prezenční listina'!H90) -> D
A73: 69 | B73: =IF('Prezenční listina'!F45=0,"",'Prezenční listina'!F45) -> 80 | C73: =IF('Prezenční listina'!F45=0,"",'Prezenční listina'!B45) -> Nekuža | D73: =IF('Prezenční listina'!F45=0,"",'Prezenční listina'!C45) -> Jiří | E73: =IF('Prezenční listina'!F45=0,"",'Prezenční listina'!D45) -> 1951 | F73: =IF('Prezenční listina'!F45=0,"",'Prezenční listina'!E45) -> RUNNERS Zbýšov | G73: =IF('Prezenční listina'!F45=0,"",'Prezenční listina'!H45) -> D
A74: =IF(C74="","",A73+1) -> 70 | B74: =IF('Prezenční listina'!F17=0,"",'Prezenční listina'!F17) -> 82 | C74: =IF('Prezenční listina'!F17=0,"",'Prezenční listina'!B17) -> Glier | D74: =IF('Prezenční listina'!F17=0,"",'Prezenční listina'!C17) -> Michal | E74: =IF('Prezenční listina'!F17=0,"",'Prezenční listina'!D17) -> 1982 | F74: =IF('Prezenční listina'!F17=0,"",'Prezenční listina'!E17) -> Moravská Slávia Brno | G74: =IF('Prezenční listina'!F17=0,"",'Prezenční listina'!H17) -> A
A75: 71 | B75: =IF('Prezenční listina'!F91=0,"",'Prezenční listina'!F91) -> 83 | C75: =IF('Prezenční listina'!F91=0,"",'Prezenční listina'!B91) -> Holoubek | D75: =IF('Prezenční listina'!F91=0,"",'Prezenční listina'!C91) -> Jindřich | E75: =IF('Prezenční listina'!F91=0,"",'Prezenční listina'!D91) -> 1968 | F75: =IF('Prezenční listina'!F91=0,"",'Prezenční listina'!E91) -> Brno | G75: =IF('Prezenční listina'!F91=0,"",'Prezenční listina'!H91) -> B
A76: 72 | B76: =IF('Prezenční listina'!F92=0,"",'Prezenční listina'!F92) -> 84 | C76: =IF('Prezenční listina'!F92=0,"",'Prezenční listina'!B92) -> Šilhan | D76: =IF('Prezenční listina'!F92=0,"",'Prezenční listina'!C92) -> Vladimír | E76: =IF('Prezenční listina'!F92=0,"",'Prezenční listina'!D92) -> 1957 | F76: =IF('Prezenční listina'!F92=0,"",'Prezenční listina'!E92) -> Original Ježek Babice nad Svitavou | G76: =IF('Prezenční listina'!F92=0,"",'Prezenční listina'!H92) -> C
A77: 73 | B77: =IF('Prezenční listina'!F26=0,"",'Prezenční listina'!F26) -> 85 | C77: =IF('Prezenční listina'!F26=0,"",'Prezenční listina'!B26) -> Jaskulka | D77: =IF('Prezenční listina'!F26=0,"",'Prezenční listina'!C26) -> Martin | E77: =IF('Prezenční listina'!F26=0,"",'Prezenční listina'!D26) -> 1968 | F77: =IF('Prezenční listina'!F26=0,"",'Prezenční listina'!E26) -> Kuřim | G77: =IF('Prezenční listina'!F26=0,"",'Prezenční listina'!H26) -> B
A78: 74 | B78: =IF('Prezenční listina'!F37=0,"",'Prezenční listina'!F37) -> 86 | C78: =IF('Prezenční listina'!F37=0,"",'Prezenční listina'!B37) -> Kosmák | D78: =IF('Prezenční listina'!F37=0,"",'Prezenční listina'!C37) -> Václav | E78: =IF('Prezenční listina'!F37=0,"",'Prezenční listina'!D37) -> 1983 | F78: =IF('Prezenční listina'!F37=0,"",'Prezenční listina'!E37) -> Brno | G78: =IF('Prezenční listina'!F37=0,"",'Prezenční listina'!H37) -> A
A79: 75 | B79: =IF('Prezenční listina'!F14=0,"",'Prezenční listina'!F14) -> 87 | C79: =IF('Prezenční listina'!F14=0,"",'Prezenční listina'!B14) -> Dýrová Macháčková | D79: =IF('Prezenční listina'!F14=0,"",'Prezenční listina'!C14) -> Šárka | E79: =IF('Prezenční listina'!F14=0,"",'Prezenční listina'!D14) -> 1983 | F79: =IF('Prezenční listina'!F14=0,"",'Prezenční listina'!E14) -> Mizunoteam Brno | G79: =IF('Prezenční listina'!F14=0,"",'Prezenční listina'!H14) -> F
A80: 76 | B80: =IF('Prezenční listina'!F32=0,"",'Prezenční listina'!F32) -> 89 | C80: =IF('Prezenční listina'!F32=0,"",'Prezenční listina'!B32) -> Kohoutek | D80: =IF('Prezenční listina'!F32=0,"",'Prezenční listina'!C32) -> Jaromír | E80: =IF('Prezenční listina'!F32=0,"",'Prezenční listina'!D32) -> 1955 | F80: =IF('Prezenční listina'!F32=0,"",'Prezenční listina'!E32) -> Brno | G80: =IF('Prezenční listina'!F32=0,"",'Prezenční listina'!H32) -> D
A81: 77 | B81: =IF('Prezenční listina'!F93=0,"",'Prezenční listina'!F93) -> 90 | C81: =IF('Prezenční listina'!F93=0,"",'Prezenční listina'!B93) -> Ježová | D81: =IF('Prezenční listina'!F93=0,"",'Prezenční listina'!C93) -> Martina | E81: =IF('Prezenční listina'!F93=0,"",'Prezenční listina'!D93) -> 1975 | F81: =IF('Prezenční listina'!F93=0,"",'Prezenční listina'!E93) -> Brno | G81: =IF('Prezenční listina'!F93=0,"",'Prezenční listina'!H93) -> G
A82: 78 | B82: =IF('Prezenční listina'!F94=0,"",'Prezenční listina'!F94) -> 91 | C82: =IF('Prezenční listina'!F94=0,"",'Prezenční listina'!B94) -> Poneš | D82: =IF('Prezenční listina'!F94=0,"",'Prezenční listina'!C94) -> Pavel | E82: =IF('Prezenční listina'!F94=0,"",'Prezenční listina'!D94) -> 1978 | F82: =IF('Prezenční listina'!F94=0,"",'Prezenční listina'!E94) -> TK SOKOLI Brno | G82: =IF('Prezenční listina'!F94=0,"",'Prezenční listina'!H94) -> A
A83: 79 | B83: =IF('Prezenční listina'!F54=0,"",'Prezenční listina'!F54) -> 92 | C83: =IF('Prezenční listina'!F54=0,"",'Prezenční listina'!B54) -> Řezníček | D83: =IF('Prezenční listina'!F54=0,"",'Prezenční listina'!C54) -> Petr | E83: =IF('Prezenční listina'!F54=0,"",'Prezenční listina'!D54) -> 1973 | F83: =IF('Prezenční listina'!F54=0,"",'Prezenční listina'!E54) -> Polnička | G83: =IF('Prezenční listina'!F54=0,"",'Prezenční listina'!H54) -> B
A84: 80 | B84: =IF('Prezenční listina'!F95=0,"",'Prezenční listina'!F95) -> 93 | C84: =IF('Prezenční listina'!F95=0,"",'Prezenční listina'!B95) -> Havlíček | D84: =IF('Prezenční listina'!F95=0,"",'Prezenční listina'!C95) -> Ivo | E84: =IF('Prezenční listina'!F95=0,"",'Prezenční listina'!D95) -> 1966 | F84: =IF('Prezenční listina'!F95=0,"",'Prezenční listina'!E95) -> Lánov - Krkonoše | G84: =IF('Prezenční listina'!F95=0,"",'Prezenční listina'!H95) -> B
A85: 81 | B85: =IF('Prezenční listina'!F96=0,"",'Prezenční listina'!F96) -> 94 | C85: =IF('Prezenční listina'!F96=0,"",'Prezenční listina'!B96) -> Benc | D85: =IF('Prezenční listina'!F96=0,"",'Prezenční listina'!C96) -> Karel | E85: =IF('Prezenční listina'!F96=0,"",'Prezenční listina'!D96) -> 1975 | F85: =IF('Prezenční listina'!F96=0,"",'Prezenční listina'!E96) -> Pivonice | G85: =IF('Prezenční listina'!F96=0,"",'Prezenční listina'!H96) -> B
A86: 82 | B86: =IF('Prezenční listina'!F40=0,"",'Prezenční listina'!F40) -> 95 | C86: =IF('Prezenční listina'!F40=0,"",'Prezenční listina'!B40) -> Kratochvíl | D86: =IF('Prezenční listina'!F40=0,"",'Prezenční listina'!C40) -> Jaroslav | E86: =IF('Prezenční listina'!F40=0,"",'Prezenční listina'!D40) -> 1977 | F86: =IF('Prezenční listina'!F40=0,"",'Prezenční listina'!E40) -> SDH Hluboké | G86: =IF('Prezenční listina'!F40=0,"",'Prezenční listina'!H40) -> A
A87: 83 | B87: =IF('Prezenční listina'!F19=0,"",'Prezenční listina'!F19) -> 96 | C87: =IF('Prezenční listina'!F19=0,"",'Prezenční listina'!B19) -> Hladký | D87: =IF('Prezenční listina'!F19=0,"",'Prezenční listina'!C19) -> Jiří | E87: =IF('Prezenční listina'!F19=0,"",'Prezenční listina'!D19) -> 1975 | F87: =IF('Prezenční listina'!F19=0,"",'Prezenční listina'!E19) -> Brno - Nový Lískovec | G87: =IF('Prezenční listina'!F19=0,"",'Prezenční listina'!H19) -> B
A88: 84 | B88: =IF('Prezenční listina'!F97=0,"",'Prezenční listina'!F97) -> 97 | C88: =IF('Prezenční listina'!F97=0,"",'Prezenční listina'!B97) -> Tonarová | D88: =IF('Prezenční listina'!F97=0,"",'Prezenční listina'!C97) -> Miroslava | E88: =IF('Prezenční listina'!F97=0,"",'Prezenční listina'!D97) -> 1976 | F88: =IF('Prezenční listina'!F97=0,"",'Prezenční listina'!E97) -> Bory | G88: =IF('Prezenční listina'!F97=0,"",'Prezenční listina'!H97) -> G
A89: 85 | B89: =IF('Prezenční listina'!F35=0,"",'Prezenční listina'!F35) -> 98 | C89: =IF('Prezenční listina'!F35=0,"",'Prezenční listina'!B35) -> Konečný | D89: =IF('Prezenční listina'!F35=0,"",'Prezenční listina'!C35) -> Libor | E89: =IF('Prezenční listina'!F35=0,"",'Prezenční listina'!D35) -> 1971 | F89: =IF('Prezenční listina'!F35=0,"",'Prezenční listina'!E35) -> Kuřim | G89: =IF('Prezenční listina'!F35=0,"",'Prezenční listina'!H35) -> B
A90: 86 | B90: =IF('Prezenční listina'!F98=0,"",'Prezenční listina'!F98) -> 99 | C90: =IF('Prezenční listina'!F98=0,"",'Prezenční listina'!B98) -> Vacula | D90: =IF('Prezenční listina'!F98=0,"",'Prezenční listina'!C98) -> Ondřej | E90: =IF('Prezenční listina'!F98=0,"",'Prezenční listina'!D98) -> 1981 | F90: =IF('Prezenční listina'!F98=0,"",'Prezenční listina'!E98) -> AC Lelek Lelekovice | G90: =IF('Prezenční listina'!F98=0,"",'Prezenční listina'!H98) -> A
A91: =IF(C91="","",A90+1) -> 87 | B91: =IF('Prezenční listina'!F16=0,"",'Prezenční listina'!F16) -> 100 | C91: =IF('Prezenční listina'!F16=0,"",'Prezenční listina'!B16) -> Fučík | D91: =IF('Prezenční listina'!F16=0,"",'Prezenční listina'!C16) -> Jaroslav | E91: =IF('Prezenční listina'!F16=0,"",'Prezenční listina'!D16) -> 1974 | F91: =IF('Prezenční listina'!F16=0,"",'Prezenční listina'!E16) -> Prosetín | G91: =IF('Prezenční listina'!F16=0,"",'Prezenční listina'!H16) -> B
A92: 88 | B92: =IF('Prezenční listina'!F99=0,"",'Prezenční listina'!F99) -> 101 | C92: =IF('Prezenční listina'!F99=0,"",'Prezenční listina'!B99) -> Milka | D92: =IF('Prezenční listina'!F99=0,"",'Prezenční listina'!C99) -> Zdeněk | E92: =IF('Prezenční listina'!F99=0,"",'Prezenční listina'!D99) -> 1984 | F92: =IF('Prezenční listina'!F99=0,"",'Prezenční listina'!E99) -> Brno | G92: =IF('Prezenční listina'!F99=0,"",'Prezenční listina'!H99) -> A
A93: 89 | B93: =IF('Prezenční listina'!F36=0,"",'Prezenční listina'!F36) -> 102 | C93: =IF('Prezenční listina'!F36=0,"",'Prezenční listina'!B36) -> Konečný | D93: =IF('Prezenční listina'!F36=0,"",'Prezenční listina'!C36) -> Jaroslav | E93: =IF('Prezenční listina'!F36=0,"",'Prezenční listina'!D36) -> 1969 | F93: =IF('Prezenční listina'!F36=0,"",'Prezenční listina'!E36) -> Popůvky | G93: =IF('Prezenční listina'!F36=0,"",'Prezenční listina'!H36) -> B
A94: 90 | B94: =IF('Prezenční listina'!F28=0,"",'Prezenční listina'!F28) -> 103 | C94: =IF('Prezenční listina'!F28=0,"",'Prezenční listina'!B28) -> Junga | D94: =IF('Prezenční listina'!F28=0,"",'Prezenční listina'!C28) -> Stanislav | E94: =IF('Prezenční listina'!F28=0,"",'Prezenční listina'!D28) -> 1971 | F94: =IF('Prezenční listina'!F28=0,"",'Prezenční listina'!E28) -> Újezd u Brna | G94: =IF('Prezenční listina'!F28=0,"",'Prezenční listina'!H28) -> B
A95: 91 | B95: =IF('Prezenční listina'!F56=0,"",'Prezenční listina'!F56) -> 104 | C95: =IF('Prezenční listina'!F56=0,"",'Prezenční listina'!B56) -> Sedláček | D95: =IF('Prezenční listina'!F56=0,"",'Prezenční listina'!C56) -> Svatopluk | E95: =IF('Prezenční listina'!F56=0,"",'Prezenční listina'!D56) -> 1957 | F95: =IF('Prezenční listina'!F56=0,"",'Prezenční listina'!E56) -> Moravská Slávia Brno | G95: =IF('Prezenční listina'!F56=0,"",'Prezenční listina'!H56) -> C
A96: 92 | B96: =IF('Prezenční listina'!F51=0,"",'Prezenční listina'!F51) -> 105 | C96: =IF('Prezenční listina'!F51=0,"",'Prezenční listina'!B51) -> Procházka | D96: =IF('Prezenční listina'!F51=0,"",'Prezenční listina'!C51) -> Pavel | E96: =IF('Prezenční listina'!F51=0,"",'Prezenční listina'!D51) -> 1988 | F96: =IF('Prezenční listina'!F51=0,"",'Prezenční listina'!E51) -> Bystřice nad Pernštejnem | G96: =IF('Prezenční listina'!F51=0,"",'Prezenční listina'!H51) -> A
A97: 93 | B97: =IF('Prezenční listina'!F49=0,"",'Prezenční listina'!F49) -> 106 | C97: =IF('Prezenční listina'!F49=0,"",'Prezenční listina'!B49) -> Podmelová | D97: =IF('Prezenční listina'!F49=0,"",'Prezenční listina'!C49) -> Vilma | E97: =IF('Prezenční listina'!F49=0,"",'Prezenční listina'!D49) -> 1962 | F97: =IF('Prezenční listina'!F49=0,"",'Prezenční listina'!E49) -> Moravská Slávia Brno | G97: =IF('Prezenční listina'!F49=0,"",'Prezenční listina'!H49) -> H
A98: 94 | B98: =IF('Prezenční listina'!F48=0,"",'Prezenční listina'!F48) -> 107 | C98: =IF('Prezenční listina'!F48=0,"",'Prezenční listina'!B48) -> Orálek | D98: =IF('Prezenční listina'!F48=0,"",'Prezenční listina'!C48) -> Daniel | E98: =IF('Prezenční listina'!F48=0,"",'Prezenční listina'!D48) -> 1970 | F98: =IF('Prezenční listina'!F48=0,"",'Prezenční listina'!E48) -> Moravská Slávia Brno | G98: =IF('Prezenční listina'!F48=0,"",'Prezenční listina'!H48) -> B
B99: =IF('Prezenční listina'!F9=0,"",'Prezenční listina'!F9) ->  | C99: =IF('Prezenční listina'!F9=0,"",'Prezenční listina'!B9) ->  | D99: =IF('Prezenční listina'!F9=0,"",'Prezenční listina'!C9) ->  | E99: =IF('Prezenční listina'!F9=0,"",'Prezenční listina'!D9) ->  | F99: =IF('Prezenční listina'!F9=0,"",'Prezenční listina'!E9) ->  | G99: =IF('Prezenční listina'!F9=0,"",'Prezenční listina'!H9) -> 
B100: =IF('Prezenční listina'!F24=0,"",'Prezenční listina'!F24) ->  | C100: =IF('Prezenční listina'!F24=0,"",'Prezenční listina'!B24) ->  | D100: =IF('Prezenční listina'!F24=0,"",'Prezenční listina'!C24) ->  | E100: =IF('Prezenční listina'!F24=0,"",'Prezenční listina'!D24) ->  | F100: =IF('Prezenční listina'!F24=0,"",'Prezenční listina'!E24) ->  | G100: =IF('Prezenční listina'!F24=0,"",'Prezenční listina'!H24) -> 
B101: =IF('Prezenční listina'!F30=0,"",'Prezenční listina'!F30) ->  | C101: =IF('Prezenční listina'!F30=0,"",'Prezenční listina'!B30) ->  | D101: =IF('Prezenční listina'!F30=0,"",'Prezenční listina'!C30) ->  | E101: =IF('Prezenční listina'!F30=0,"",'Prezenční listina'!D30) ->  | F101: =IF('Prezenční listina'!F30=0,"",'Prezenční listina'!E30) ->  | G101: =IF('Prezenční listina'!F30=0,"",'Prezenční listina'!H30) -> 
B102: =IF('Prezenční listina'!F100=0,"",'Prezenční listina'!F100) ->  | C102: =IF('Prezenční listina'!F100=0,"",'Prezenční listina'!B100) ->  | D102: =IF('Prezenční listina'!F100=0,"",'Prezenční listina'!C100) ->  | E102: =IF('Prezenční listina'!F100=0,"",'Prezenční listina'!D100) ->  | F102: =IF('Prezenční listina'!F100=0,"",'Prezenční listina'!E100) ->  | G102: =IF('Prezenční listina'!F100=0,"",'Prezenční listina'!H100) -> 
B103: =IF('Prezenční listina'!F101=0,"",'Prezenční listina'!F101) ->  | C103: =IF('Prezenční listina'!F101=0,"",'Prezenční listina'!B101) ->  | D103: =IF('Prezenční listina'!F101=0,"",'Prezenční listina'!C101) ->  | E103: =IF('Prezenční listina'!F101=0,"",'Prezenční listina'!D101) ->  | F103: =IF('Prezenční listina'!F101=0,"",'Prezenční listina'!E101) ->  | G103: =IF('Prezenční listina'!F101=0,"",'Prezenční listina'!H101) -> 
B104: =IF('Prezenční listina'!F102=0,"",'Prezenční listina'!F102) ->  | C104: =IF('Prezenční listina'!F102=0,"",'Prezenční listina'!B102) ->  | D104: =IF('Prezenční listina'!F102=0,"",'Prezenční listina'!C102) ->  | E104: =IF('Prezenční listina'!F102=0,"",'Prezenční listina'!D102) ->  | F104: =IF('Prezenční listina'!F102=0,"",'Prezenční listina'!E102) ->  | G104: =IF('Prezenční listina'!F102=0,"",'Prezenční listina'!H102) -> 
B105: =IF('Prezenční listina'!F103=0,"",'Prezenční listina'!F103) ->  | C105: =IF('Prezenční listina'!F103=0,"",'Prezenční listina'!B103) ->  | D105: =IF('Prezenční listina'!F103=0,"",'Prezenční listina'!C103) ->  | E105: =IF('Prezenční listina'!F103=0,"",'Prezenční listina'!D103) ->  | F105: =IF('Prezenční listina'!F103=0,"",'Prezenční listina'!E103) ->  | G105: =IF('Prezenční listina'!F103=0,"",'Prezenční listina'!H103) -> 
B106: =IF('Prezenční listina'!F104=0,"",'Prezenční listina'!F104) ->  | C106: =IF('Prezenční listina'!F104=0,"",'Prezenční listina'!B104) ->  | D106: =IF('Prezenční listina'!F104=0,"",'Prezenční listina'!C104) ->  | E106: =IF('Prezenční listina'!F104=0,"",'Prezenční listina'!D104) ->  | F106: =IF('Prezenční listina'!F104=0,"",'Prezenční listina'!E104) ->  | G106: =IF('Prezenční listina'!F104=0,"",'Prezenční listina'!H104) -> 
B107: =IF('Prezenční listina'!F105=0,"",'Prezenční listina'!F105) ->  | C107: =IF('Prezenční listina'!F105=0,"",'Prezenční listina'!B105) ->  | D107: =IF('Prezenční listina'!F105=0,"",'Prezenční listina'!C105) ->  | E107: =IF('Prezenční listina'!F105=0,"",'Prezenční listina'!D105) ->  | F107: =IF('Prezenční listina'!F105=0,"",'Prezenční listina'!E105) ->  | G107: =IF('Prezenční listina'!F105=0,"",'Prezenční listina'!H105) -> 
B108: =IF('Prezenční listina'!F106=0,"",'Prezenční listina'!F106) ->  | C108: =IF('Prezenční listina'!F106=0,"",'Prezenční listina'!B106) ->  | D108: =IF('Prezenční listina'!F106=0,"",'Prezenční listina'!C106) ->  | E108: =IF('Prezenční listina'!F106=0,"",'Prezenční listina'!D106) ->  | F108: =IF('Prezenční listina'!F106=0,"",'Prezenční listina'!E106) ->  | G108: =IF('Prezenční listina'!F106=0,"",'Prezenční listina'!H106) -> 
B109: =IF('Prezenční listina'!F107=0,"",'Prezenční listina'!F107) ->  | C109: =IF('Prezenční listina'!F107=0,"",'Prezenční listina'!B107) ->  | D109: =IF('Prezenční listina'!F107=0,"",'Prezenční listina'!C107) ->  | E109: =IF('Prezenční listina'!F107=0,"",'Prezenční listina'!D107) ->  | F109: =IF('Prezenční listina'!F107=0,"",'Prezenční listina'!E107) ->  | G109: =IF('Prezenční listina'!F107=0,"",'Prezenční listina'!H107) -> 
B110: =IF('Prezenční listina'!F108=0,"",'Prezenční listina'!F108) ->  | C110: =IF('Prezenční listina'!F108=0,"",'Prezenční listina'!B108) ->  | D110: =IF('Prezenční listina'!F108=0,"",'Prezenční listina'!C108) ->  | E110: =IF('Prezenční listina'!F108=0,"",'Prezenční listina'!D108) ->  | F110: =IF('Prezenční listina'!F108=0,"",'Prezenční listina'!E108) ->  | G110: =IF('Prezenční listina'!F108=0,"",'Prezenční listina'!H108) -> 
B111: =IF('Prezenční listina'!F110=0,"",'Prezenční listina'!F110) ->  | C111: =IF('Prezenční listina'!F110=0,"",'Prezenční listina'!B110) ->  | D111: =IF('Prezenční listina'!F110=0,"",'Prezenční listina'!C110) ->  | E111: =IF('Prezenční listina'!F110=0,"",'Prezenční listina'!D110) ->  | F111: =IF('Prezenční listina'!F110=0,"",'Prezenční listina'!E110) ->  | G111: =IF('Prezenční listina'!F110=0,"",'Prezenční listina'!H110) -> 
B112: =IF('Prezenční listina'!F109=0,"",'Prezenční listina'!F109) ->  | C112: =IF('Prezenční listina'!F109=0,"",'Prezenční listina'!B109) ->  | D112: =IF('Prezenční listina'!F109=0,"",'Prezenční listina'!C109) ->  | E112: =IF('Prezenční listina'!F109=0,"",'Prezenční listina'!D109) ->  | F112: =IF('Prezenční listina'!F109=0,"",'Prezenční listina'!E109) ->  | G112: =IF('Prezenční listina'!F109=0,"",'Prezenční listina'!H109) -> 
B113: =IF('Prezenční listina'!F111=0,"",'Prezenční listina'!F111) ->  | C113: =IF('Prezenční listina'!F111=0,"",'Prezenční listina'!B111) ->  | D113: =IF('Prezenční listina'!F111=0,"",'Prezenční listina'!C111) ->  | E113: =IF('Prezenční listina'!F111=0,"",'Prezenční listina'!D111) ->  | F113: =IF('Prezenční listina'!F111=0,"",'Prezenční listina'!E111) ->  | G113: =IF('Prezenční listina'!F111=0,"",'Prezenční listina'!H111) -> 
B114: =IF('Prezenční listina'!F112=0,"",'Prezenční listina'!F112) ->  | C114: =IF('Prezenční listina'!F112=0,"",'Prezenční listina'!B112) ->  | D114: =IF('Prezenční listina'!F112=0,"",'Prezenční listina'!C112) ->  | E114: =IF('Prezenční listina'!F112=0,"",'Prezenční listina'!D112) ->  | F114: =IF('Prezenční listina'!F112=0,"",'Prezenční listina'!E112) ->  | G114: =IF('Prezenční listina'!F112=0,"",'Prezenční listina'!H112) -> 
B115: =IF('Prezenční listina'!F113=0,"",'Prezenční listina'!F113) ->  | C115: =IF('Prezenční listina'!F113=0,"",'Prezenční listina'!B113) ->  | D115: =IF('Prezenční listina'!F113=0,"",'Prezenční listina'!C113) ->  | E115: =IF('Prezenční listina'!F113=0,"",'Prezenční listina'!D113) ->  | F115: =IF('Prezenční listina'!F113=0,"",'Prezenční listina'!E113) ->  | G115: =IF('Prezenční listina'!F113=0,"",'Prezenční listina'!H113) -> 
B116: =IF('Prezenční listina'!F114=0,"",'Prezenční listina'!F114) ->  | C116: =IF('Prezenční listina'!F114=0,"",'Prezenční listina'!B114) ->  | D116: =IF('Prezenční listina'!F114=0,"",'Prezenční listina'!C114) ->  | E116: =IF('Prezenční listina'!F114=0,"",'Prezenční listina'!D114) ->  | F116: =IF('Prezenční listina'!F114=0,"",'Prezenční listina'!E114) ->  | G116: =IF('Prezenční listina'!F114=0,"",'Prezenční listina'!H114) -> 
B117: =IF('Prezenční listina'!F115=0,"",'Prezenční listina'!F115) ->  | C117: =IF('Prezenční listina'!F115=0,"",'Prezenční listina'!B115) ->  | D117: =IF('Prezenční listina'!F115=0,"",'Prezenční listina'!C115) ->  | E117: =IF('Prezenční listina'!F115=0,"",'Prezenční listina'!D115) ->  | F117: =IF('Prezenční listina'!F115=0,"",'Prezenční listina'!E115) ->  | G117: =IF('Prezenční listina'!F115=0,"",'Prezenční listina'!H115) -> 
B118: =IF('Prezenční listina'!F116=0,"",'Prezenční listina'!F116) ->  | C118: =IF('Prezenční listina'!F116=0,"",'Prezenční listina'!B116) ->  | D118: =IF('Prezenční listina'!F116=0,"",'Prezenční listina'!C116) ->  | E118: =IF('Prezenční listina'!F116=0,"",'Prezenční listina'!D116) ->  | F118: =IF('Prezenční listina'!F116=0,"",'Prezenční listina'!E116) ->  | G118: =IF('Prezenční listina'!F116=0,"",'Prezenční listina'!H116) -> 
B119: =IF('Prezenční listina'!F117=0,"",'Prezenční listina'!F117) ->  | C119: =IF('Prezenční listina'!F117=0,"",'Prezenční listina'!B117) ->  | D119: =IF('Prezenční listina'!F117=0,"",'Prezenční listina'!C117) ->  | E119: =IF('Prezenční listina'!F117=0,"",'Prezenční listina'!D117) ->  | F119: =IF('Prezenční listina'!F117=0,"",'Prezenční listina'!E117) ->  | G119: =IF('Prezenční listina'!F117=0,"",'Prezenční listina'!H117) -> 
B120: =IF('Prezenční listina'!F118=0,"",'Prezenční listina'!F118) ->  | C120: =IF('Prezenční listina'!F118=0,"",'Prezenční listina'!B118) ->  | D120: =IF('Prezenční listina'!F118=0,"",'Prezenční listina'!C118) ->  | E120: =IF('Prezenční listina'!F118=0,"",'Prezenční listina'!D118) ->  | F120: =IF('Prezenční listina'!F118=0,"",'Prezenční listina'!E118) ->  | G120: =IF('Prezenční listina'!F118=0,"",'Prezenční listina'!H118) -> 
B121: =IF('Prezenční listina'!F119=0,"",'Prezenční listina'!F119) ->  | C121: =IF('Prezenční listina'!F119=0,"",'Prezenční listina'!B119) ->  | D121: =IF('Prezenční listina'!F119=0,"",'Prezenční listina'!C119) ->  | E121: =IF('Prezenční listina'!F119=0,"",'Prezenční listina'!D119) ->  | F121: =IF('Prezenční listina'!F119=0,"",'Prezenční listina'!E119) ->  | G121: =IF('Prezenční listina'!F119=0,"",'Prezenční listina'!H119) -> 
B122: =IF('Prezenční listina'!F120=0,"",'Prezenční listina'!F120) ->  | C122: =IF('Prezenční listina'!F120=0,"",'Prezenční listina'!B120) ->  | D122: =IF('Prezenční listina'!F120=0,"",'Prezenční listina'!C120) ->  | E122: =IF('Prezenční listina'!F120=0,"",'Prezenční listina'!D120) ->  | F122: =IF('Prezenční listina'!F120=0,"",'Prezenční listina'!E120) ->  | G122: =IF('Prezenční listina'!F120=0,"",'Prezenční listina'!H120) -> 
B123: =IF('Prezenční listina'!F121=0,"",'Prezenční listina'!F121) ->  | C123: =IF('Prezenční listina'!F121=0,"",'Prezenční listina'!B121) ->  | D123: =IF('Prezenční listina'!F121=0,"",'Prezenční listina'!C121) ->  | E123: =IF('Prezenční listina'!F121=0,"",'Prezenční listina'!D121) ->  | F123: =IF('Prezenční listina'!F121=0,"",'Prezenční listina'!E121) ->  | G123: =IF('Prezenční listina'!F121=0,"",'Prezenční listina'!H121) -> 
B124: =IF('Prezenční listina'!F122=0,"",'Prezenční listina'!F122) ->  | C124: =IF('Prezenční listina'!F122=0,"",'Prezenční listina'!B122) ->  | D124: =IF('Prezenční listina'!F122=0,"",'Prezenční listina'!C122) ->  | E124: =IF('Prezenční listina'!F122=0,"",'Prezenční listina'!D122) ->  | F124: =IF('Prezenční listina'!F122=0,"",'Prezenční listina'!E122) ->  | G124: =IF('Prezenční listina'!F122=0,"",'Prezenční listina'!H122) -> 
B125: =IF('Prezenční listina'!F123=0,"",'Prezenční listina'!F123) ->  | C125: =IF('Prezenční listina'!F123=0,"",'Prezenční listina'!B123) ->  | D125: =IF('Prezenční listina'!F123=0,"",'Prezenční listina'!C123) ->  | E125: =IF('Prezenční listina'!F123=0,"",'Prezenční listina'!D123) ->  | F125: =IF('Prezenční listina'!F123=0,"",'Prezenční listina'!E123) ->  | G125: =IF('Prezenční listina'!F123=0,"",'Prezenční listina'!H123) -> 
B126: =IF('Prezenční listina'!F124=0,"",'Prezenční listina'!F124) ->  | C126: =IF('Prezenční listina'!F124=0,"",'Prezenční listina'!B124) ->  | D126: =IF('Prezenční listina'!F124=0,"",'Prezenční listina'!C124) ->  | E126: =IF('Prezenční listina'!F124=0,"",'Prezenční listina'!D124) ->  | F126: =IF('Prezenční listina'!F124=0,"",'Prezenční listina'!E124) ->  | G126: =IF('Prezenční listina'!F124=0,"",'Prezenční listina'!H124) -> 
B127: =IF('Prezenční listina'!F125=0,"",'Prezenční listina'!F125) ->  | C127: =IF('Prezenční listina'!F125=0,"",'Prezenční listina'!B125) ->  | D127: =IF('Prezenční listina'!F125=0,"",'Prezenční listina'!C125) ->  | E127: =IF('Prezenční listina'!F125=0,"",'Prezenční listina'!D125) ->  | F127: =IF('Prezenční listina'!F125=0,"",'Prezenční listina'!E125) ->  | G127: =IF('Prezenční listina'!F125=0,"",'Prezenční listina'!H125) -> 
B128: =IF('Prezenční listina'!F126=0,"",'Prezenční listina'!F126) ->  | C128: =IF('Prezenční listina'!F126=0,"",'Prezenční listina'!B126) ->  | D128: =IF('Prezenční listina'!F126=0,"",'Prezenční listina'!C126) ->  | E128: =IF('Prezenční listina'!F126=0,"",'Prezenční listina'!D126) ->  | F128: =IF('Prezenční listina'!F126=0,"",'Prezenční listina'!E126) ->  | G128: =IF('Prezenční listina'!F126=0,"",'Prezenční listina'!H126) -> 
B129: =IF('Prezenční listina'!F127=0,"",'Prezenční listina'!F127) ->  | C129: =IF('Prezenční listina'!F127=0,"",'Prezenční listina'!B127) ->  | D129: =IF('Prezenční listina'!F127=0,"",'Prezenční listina'!C127) ->  | E129: =IF('Prezenční listina'!F127=0,"",'Prezenční listina'!D127) ->  | F129: =IF('Prezenční listina'!F127=0,"",'Prezenční listina'!E127) ->  | G129: =IF('Prezenční listina'!F127=0,"",'Prezenční listina'!H127) -> 
B130: =IF('Prezenční listina'!F128=0,"",'Prezenční listina'!F128) ->  | C130: =IF('Prezenční listina'!F128=0,"",'Prezenční listina'!B128) ->  | D130: =IF('Prezenční listina'!F128=0,"",'Prezenční listina'!C128) ->  | E130: =IF('Prezenční listina'!F128=0,"",'Prezenční listina'!D128) ->  | F130: =IF('Prezenční listina'!F128=0,"",'Prezenční listina'!E128) ->  | G130: =IF('Prezenční listina'!F128=0,"",'Prezenční listina'!H128) -> 
B131: =IF('Prezenční listina'!F129=0,"",'Prezenční listina'!F129) ->  | C131: =IF('Prezenční listina'!F129=0,"",'Prezenční listina'!B129) ->  | D131: =IF('Prezenční listina'!F129=0,"",'Prezenční listina'!C129) ->  | E131: =IF('Prezenční listina'!F129=0,"",'Prezenční listina'!D129) ->  | F131: =IF('Prezenční listina'!F129=0,"",'Prezenční listina'!E129) ->  | G131: =IF('Prezenční listina'!F129=0,"",'Prezenční listina'!H129) -> 
B132: =IF('Prezenční listina'!F130=0,"",'Prezenční listina'!F130) ->  | C132: =IF('Prezenční listina'!F130=0,"",'Prezenční listina'!B130) ->  | D132: =IF('Prezenční listina'!F130=0,"",'Prezenční listina'!C130) ->  | E132: =IF('Prezenční listina'!F130=0,"",'Prezenční listina'!D130) ->  | F132: =IF('Prezenční listina'!F130=0,"",'Prezenční listina'!E130) ->  | G132: =IF('Prezenční listina'!F130=0,"",'Prezenční listina'!H130) -> 
B133: =IF('Prezenční listina'!F131=0,"",'Prezenční listina'!F131) ->  | C133: =IF('Prezenční listina'!F131=0,"",'Prezenční listina'!B131) ->  | D133: =IF('Prezenční listina'!F131=0,"",'Prezenční listina'!C131) ->  | E133: =IF('Prezenční listina'!F131=0,"",'Prezenční listina'!D131) ->  | F133: =IF('Prezenční listina'!F131=0,"",'Prezenční listina'!E131) ->  | G133: =IF('Prezenční listina'!F131=0,"",'Prezenční listina'!H131) -> 
B134: =IF('Prezenční listina'!F132=0,"",'Prezenční listina'!F132) ->  | C134: =IF('Prezenční listina'!F132=0,"",'Prezenční listina'!B132) ->  | D134: =IF('Prezenční listina'!F132=0,"",'Prezenční listina'!C132) ->  | E134: =IF('Prezenční listina'!F132=0,"",'Prezenční listina'!D132) ->  | F134: =IF('Prezenční listina'!F132=0,"",'Prezenční listina'!E132) ->  | G134: =IF('Prezenční listina'!F132=0,"",'Prezenční listina'!H132) -> 
B135: =IF('Prezenční listina'!F133=0,"",'Prezenční listina'!F133) ->  | C135: =IF('Prezenční listina'!F133=0,"",'Prezenční listina'!B133) ->  | D135: =IF('Prezenční listina'!F133=0,"",'Prezenční listina'!C133) ->  | E135: =IF('Prezenční listina'!F133=0,"",'Prezenční listina'!D133) ->  | F135: =IF('Prezenční listina'!F133=0,"",'Prezenční listina'!E133) ->  | G135: =IF('Prezenční listina'!F133=0,"",'Prezenční listina'!H133) -> 
B136: =IF('Prezenční listina'!F134=0,"",'Prezenční listina'!F134) ->  | C136: =IF('Prezenční listina'!F134=0,"",'Prezenční listina'!B134) ->  | D136: =IF('Prezenční listina'!F134=0,"",'Prezenční listina'!C134) ->  | E136: =IF('Prezenční listina'!F134=0,"",'Prezenční listina'!D134) ->  | F136: =IF('Prezenční listina'!F134=0,"",'Prezenční listina'!E134) ->  | G136: =IF('Prezenční listina'!F134=0,"",'Prezenční listina'!H134) -> 
B137: =IF('Prezenční listina'!F135=0,"",'Prezenční listina'!F135) ->  | C137: =IF('Prezenční listina'!F135=0,"",'Prezenční listina'!B135) ->  | D137: =IF('Prezenční listina'!F135=0,"",'Prezenční listina'!C135) ->  | E137: =IF('Prezenční listina'!F135=0,"",'Prezenční listina'!D135) ->  | F137: =IF('Prezenční listina'!F135=0,"",'Prezenční listina'!E135) ->  | G137: =IF('Prezenční listina'!F135=0,"",'Prezenční listina'!H135) -> 
B138: =IF('Prezenční listina'!F136=0,"",'Prezenční listina'!F136) ->  | C138: =IF('Prezenční listina'!F136=0,"",'Prezenční listina'!B136) ->  | D138: =IF('Prezenční listina'!F136=0,"",'Prezenční listina'!C136) ->  | E138: =IF('Prezenční listina'!F136=0,"",'Prezenční listina'!D136) ->  | F138: =IF('Prezenční listina'!F136=0,"",'Prezenční listina'!E136) ->  | G138: =IF('Prezenční listina'!F136=0,"",'Prezenční listina'!H136) -> 
B139: =IF('Prezenční listina'!F137=0,"",'Prezenční listina'!F137) ->  | C139: =IF('Prezenční listina'!F137=0,"",'Prezenční listina'!B137) ->  | D139: =IF('Prezenční listina'!F137=0,"",'Prezenční listina'!C137) ->  | E139: =IF('Prezenční listina'!F137=0,"",'Prezenční listina'!D137) ->  | F139: =IF('Prezenční listina'!F137=0,"",'Prezenční listina'!E137) ->  | G139: =IF('Prezenční listina'!F137=0,"",'Prezenční listina'!H137) -> 
B140: =IF('Prezenční listina'!F138=0,"",'Prezenční listina'!F138) ->  | C140: =IF('Prezenční listina'!F138=0,"",'Prezenční listina'!B138) ->  | D140: =IF('Prezenční listina'!F138=0,"",'Prezenční listina'!C138) ->  | E140: =IF('Prezenční listina'!F138=0,"",'Prezenční listina'!D138) ->  | F140: =IF('Prezenční listina'!F138=0,"",'Prezenční listina'!E138) ->  | G140: =IF('Prezenční listina'!F138=0,"",'Prezenční listina'!H138) -> 
B141: =IF('Prezenční listina'!F139=0,"",'Prezenční listina'!F139) ->  | C141: =IF('Prezenční listina'!F139=0,"",'Prezenční listina'!B139) ->  | D141: =IF('Prezenční listina'!F139=0,"",'Prezenční listina'!C139) ->  | E141: =IF('Prezenční listina'!F139=0,"",'Prezenční listina'!D139) ->  | F141: =IF('Prezenční listina'!F139=0,"",'Prezenční listina'!E139) ->  | G141: =IF('Prezenční listina'!F139=0,"",'Prezenční listina'!H139) -> 

Sheet Výsledková listina
A1: ="Výsledková listina - Malý svratecký maraton "&'Prezenční listina'!O2 -> Výsledková listina - Malý svratecký maraton 2015
A2: 2015-08-22 | K2: Poté, co jsou dopsány časy VŠECH běžců, stisknout tlačítko 1.řazení Ve sloupci B (Pořadí v kategorii) vytvořit posloupnou číselnou řadu pro každou kategorii a poté stisknout tlačítko 2.řazení !!! POZOR!!! Použití tlačítek je nevratný krok!
A3: ='Prezenční listina'!O2-1953&". ročník" -> 62. ročník
A4: Celkové pořadí | B4: Pořadí v kategorii | C4: Kategorie | D4: Startovní číslo | E4: Příjmení | F4: Jméno | G4: Narození | H4: Oddíl / Bydliště | I4: Čas
A5: 1 | B5: 1 | C5: ='Startovní listina'!G98 -> B | D5: ='Startovní listina'!B98 -> 107 | E5: ='Startovní listina'!C98 -> Orálek | F5: ='Startovní listina'!D98 -> Daniel | G5: ='Startovní listina'!E98 -> 1970 | H5: ='Startovní listina'!F98 -> Moravská Slávia Brno | I5: 01:54:34
A6: =IF('Výsledková listina'!D5<>"",A5+1,"") -> 2 | B6: 1 | C6: ='Startovní listina'!G15 -> A | D6: ='Startovní listina'!B15 -> 11 | E6: ='Startovní listina'!C15 -> Fousek | F6: ='Startovní listina'!D15 -> Jan | G6: ='Startovní listina'!E15 -> 1991 | H6: ='Startovní listina'!F15 -> MK Seitl Ostrava | I6: 02:01:16
A7: =IF('Výsledková listina'!D6<>"",A6+1,"") -> 3 | B7: 2 | C7: ='Startovní listina'!G27 -> A | D7: ='Startovní listina'!B27 -> 26 | E7: ='Startovní listina'!C27 -> Nováček | F7: ='Startovní listina'!D27 -> Tomáš | G7: ='Startovní listina'!E27 -> 1983 | H7: ='Startovní listina'!F27 -> Atletic Třebíč | I7: 02:05:07
A8: =IF('Výsledková listina'!D7<>"",A7+1,"") -> 4 | B8: 2 | C8: ='Startovní listina'!G12 -> B | D8: ='Startovní listina'!B12 -> 8 | E8: ='Startovní listina'!C12 -> Škapa | F8: ='Startovní listina'!D12 -> Marek | G8: ='Startovní listina'!E12 -> 1971 | H8: ='Startovní listina'!F12 -> MK Seitl Ostrava | I8: 02:05:40
A9: =IF('Výsledková listina'!D8<>"",A8+1,"") -> 5 | B9: 3 | C9: ='Startovní listina'!G9 -> B | D9: ='Startovní listina'!B9 -> 5 | E9: ='Startovní listina'!C9 -> Chramosta | F9: ='Startovní listina'!D9 -> Jaroslav | G9: ='Startovní listina'!E9 -> 1966 | H9: ='Startovní listina'!F9 -> JABOJA Team Děčín | I9: 02:05:55
A10: =IF('Výsledková listina'!D9<>"",A9+1,"") -> 6 | B10: 4 | C10: ='Startovní listina'!G39 -> B | D10: ='Startovní listina'!B39 -> 40 | E10: ='Startovní listina'!C39 -> Ryška | F10: ='Startovní listina'!D39 -> Vít | G10: ='Startovní listina'!E39 -> 1975 | H10: ='Startovní listina'!F39 -> VSK Univerzita Brno | I10: 02:07:35
A11: =IF('Výsledková listina'!D10<>"",A10+1,"") -> 7 | B11: 3 | C11: ='Startovní listina'!G58 -> A | D11: ='Startovní listina'!B58 -> 60 | E11: ='Startovní listina'!C58 -> Kupidlovský | F11: ='Startovní listina'!D58 -> Daniel | G11: ='Startovní listina'!E58 -> 1976 | H11: ='Startovní listina'!F58 -> Stodůlky | I11: 02:07:54
A12: =IF('Výsledková listina'!D11<>"",A11+1,"") -> 8 | B12: 5 | C12: ='Startovní listina'!G24 -> B | D12: ='Startovní listina'!B24 -> 22 | E12: ='Startovní listina'!C24 -> Štýbnar | F12: ='Startovní listina'!D24 -> Zbyněk | G12: ='Startovní listina'!E24 -> 1974 | H12: ='Startovní listina'!F24 -> Běžec Vysočiny Jihlava | I12: 02:08:44
A13: =IF('Výsledková listina'!D12<>"",A12+1,"") -> 9 | B13: 6 | C13: ='Startovní listina'!G40 -> B | D13: ='Startovní listina'!B40 -> 41 | E13: ='Startovní listina'!C40 -> Hýbl | F13: ='Startovní listina'!D40 -> Jiří | G13: ='Startovní listina'!E40 -> 1967 | H13: ='Startovní listina'!F40 -> Hrušovany u Brna | I13: 02:10:10
A14: =IF('Výsledková listina'!D13<>"",A13+1,"") -> 10 | B14: 4 | C14: ='Startovní listina'!G74 -> A | D14: ='Startovní listina'!B74 -> 82 | E14: ='Startovní listina'!C74 -> Glier | F14: ='Startovní listina'!D74 -> Michal | G14: ='Startovní listina'!E74 -> 1982 | H14: ='Startovní listina'!F74 -> Moravská Slávia Brno | I14: 02:11:00
A15: =IF('Výsledková listina'!D14<>"",A14+1,"") -> 11 | B15: 7 | C15: ='Startovní listina'!G49 -> B | D15: ='Startovní listina'!B49 -> 50 | E15: ='Startovní listina'!C49 -> Dušil | F15: ='Startovní listina'!D49 -> Jaroslav | G15: ='Startovní listina'!E49 -> 1970 | H15: ='Startovní listina'!F49 -> Brno | I15: 02:13:13
A16: =IF('Výsledková listina'!D15<>"",A15+1,"") -> 12 | B16: 1 | C16: ='Startovní listina'!G79 -> F | D16: ='Startovní listina'!B79 -> 87 | E16: ='Startovní listina'!C79 -> Dýrová Macháčková | F16: ='Startovní listina'!D79 -> Šárka | G16: ='Startovní listina'!E79 -> 1983 | H16: ='Startovní listina'!F79 -> Mizunoteam Brno | I16: 02:13:29
A17: =IF('Výsledková listina'!D16<>"",A16+1,"") -> 13 | B17: 8 | C17: ='Startovní listina'!G41 -> B | D17: ='Startovní listina'!B41 -> 42 | E17: ='Startovní listina'!C41 -> Horný | F17: ='Startovní listina'!D41 -> Pavel | G17: ='Startovní listina'!E41 -> 1973 | H17: ='Startovní listina'!F41 -> VHT Přerov | I17: 02:16:46
A18: =IF('Výsledková listina'!D17<>"",A17+1,"") -> 14 | B18: 1 | C18: ='Startovní listina'!G29 -> C | D18: ='Startovní listina'!B29 -> 28 | E18: ='Startovní listina'!C29 -> Kratochvíl | F18: ='Startovní listina'!D29 -> Pavel | G18: ='Startovní listina'!E29 -> 1960 | H18: ='Startovní listina'!F29 -> Atletic Třebíč | I18: 02:19:07
A19: =IF('Výsledková listina'!D18<>"",A18+1,"") -> 15 | B19: 5 | C19: ='Startovní listina'!G51 -> A | D19: ='Startovní listina'!B51 -> 53 | E19: ='Startovní listina'!C51 -> Očenášek | F19: ='Startovní listina'!D51 -> Zdeněk | G19: ='Startovní listina'!E51 -> 1976 | H19: ='Startovní listina'!F51 -> Brno | I19: 02:19:36
A20: =IF('Výsledková listina'!D19<>"",A19+1,"") -> 16 | B20: 9 | C20: ='Startovní listina'!G47 -> B | D20: ='Startovní listina'!B47 -> 48 | E20: ='Startovní listina'!C47 -> Alman | F20: ='Startovní listina'!D47 -> Dušan | G20: ='Startovní listina'!E47 -> 1967 | H20: ='Startovní listina'!F47 -> Babice | I20: 02:19:48
A21: =IF('Výsledková listina'!D20<>"",A20+1,"") -> 17 | B21: 6 | C21: ='Startovní listina'!G86 -> A | D21: ='Startovní listina'!B86 -> 95 | E21: ='Startovní listina'!C86 -> Kratochvíl | F21: ='Startovní listina'!D86 -> Jaroslav | G21: ='Startovní listina'!E86 -> 1977 | H21: ='Startovní listina'!F86 -> SDH Hluboké | I21: 02:21:00
A22: =IF('Výsledková listina'!D22<>"",A21+1,"") -> 18 | B22: 10 | C22: ='Startovní listina'!G48 -> B | D22: ='Startovní listina'!B48 -> 49 | E22: ='Startovní listina'!C48 -> Plekanec | F22: ='Startovní listina'!D48 -> Juraj | G22: ='Startovní listina'!E48 -> 1974 | H22: ='Startovní listina'!F48 -> Brno | I22: 02:21:35
A23: =IF('Výsledková listina'!D21<>"",A22+1,"") -> 19 | B23: 2 | C23: ='Startovní listina'!G50 -> F | D23: ='Startovní listina'!B50 -> 51 | E23: ='Startovní listina'!C50 -> Pešáková | F23: ='Startovní listina'!D50 -> Mirka | G23: ='Startovní listina'!E50 -> 1985 | H23: ='Startovní listina'!F50 -> AK RACERS Tetčice | I23: 02:21:57
A24: =IF('Výsledková listina'!D23<>"",A23+1,"") -> 20 | B24: 11 | C24: ='Startovní listina'!G89 -> B | D24: ='Startovní listina'!B89 -> 98 | E24: ='Startovní listina'!C89 -> Konečný | F24: ='Startovní listina'!D89 -> Libor | G24: ='Startovní listina'!E89 -> 1971 | H24: ='Startovní listina'!F89 -> Kuřim | I24: 02:23:07
A25: =IF('Výsledková listina'!D24<>"",A24+1,"") -> 21 | B25: 2 | C25: ='Startovní listina'!G59 -> C | D25: ='Startovní listina'!B59 -> 61 | E25: ='Startovní listina'!C59 -> Bezrouk | F25: ='Startovní listina'!D59 -> Jiří | G25: ='Startovní listina'!E59 -> 1962 | H25: ='Startovní listina'!F59 -> Křtiny | I25: 02:23:11
A26: =IF('Výsledková listina'!D25<>"",A25+1,"") -> 22 | B26: 7 | C26: ='Startovní listina'!G56 -> A | D26: ='Startovní listina'!B56 -> 58 | E26: ='Startovní listina'!C56 -> Řezníček | F26: ='Startovní listina'!D56 -> Roman | G26: ='Startovní listina'!E56 -> 1977 | H26: ='Startovní listina'!F56 -> Žďár nad Sázavou | I26: 02:24:19
A27: =IF('Výsledková listina'!D26<>"",A26+1,"") -> 23 | B27: 8 | C27: ='Startovní listina'!G22 -> A | D27: ='Startovní listina'!B22 -> 19 | E27: ='Startovní listina'!C22 -> Pokorný | F27: ='Startovní listina'!D22 -> Václav | G27: ='Startovní listina'!E22 -> 1978 | H27: ='Startovní listina'!F22 -> Brno | I27: 02:25:09
A28: =IF('Výsledková listina'!D27<>"",A27+1,"") -> 24 | B28: 9 | C28: ='Startovní listina'!G28 -> A | D28: ='Startovní listina'!B28 -> 27 | E28: ='Startovní listina'!C28 -> Bohuslav | F28: ='Startovní listina'!D28 -> Martin | G28: ='Startovní listina'!E28 -> 1987 | H28: ='Startovní listina'!F28 -> Atletic Třebíč | I28: 02:26:07
A29: =IF('Výsledková listina'!D28<>"",A28+1,"") -> 25 | B29: 10 | C29: ='Startovní listina'!G38 -> A | D29: ='Startovní listina'!B38 -> 38 | E29: ='Startovní listina'!C38 -> Kocur | F29: ='Startovní listina'!D38 -> Lukáš | G29: ='Startovní listina'!E38 -> 1977 | H29: ='Startovní listina'!F38 -> VHS Brno | I29: 02:26:38
A30: =IF('Výsledková listina'!D29<>"",A29+1,"") -> 26 | B30: 11 | C30: ='Startovní listina'!G61 -> A | D30: ='Startovní listina'!B61 -> 63 | E30: ='Startovní listina'!C61 -> Sedláček | F30: ='Startovní listina'!D61 -> Aleš | G30: ='Startovní listina'!E61 -> 1976 | H30: ='Startovní listina'!F61 -> Sokol Přísnotice | I30: 02:27:55
A31: =IF('Výsledková listina'!D30<>"",A30+1,"") -> 27 | B31: 12 | C31: ='Startovní listina'!G84 -> B | D31: ='Startovní listina'!B84 -> 93 | E31: ='Startovní listina'!C84 -> Havlíček | F31: ='Startovní listina'!D84 -> Ivo | G31: ='Startovní listina'!E84 -> 1966 | H31: ='Startovní listina'!F84 -> Lánov - Krkonoše | I31: 02:28:22
A32: =IF('Výsledková listina'!D31<>"",A31+1,"") -> 28 | B32: 13 | C32: ='Startovní listina'!G87 -> B | D32: ='Startovní listina'!B87 -> 96 | E32: ='Startovní listina'!C87 -> Hladký | F32: ='Startovní listina'!D87 -> Jiří | G32: ='Startovní listina'!E87 -> 1975 | H32: ='Startovní listina'!F87 -> Brno - Nový Lískovec | I32: 02:29:21
A33: =IF('Výsledková listina'!D32<>"",A32+1,"") -> 29 | B33: 14 | C33: ='Startovní listina'!G91 -> B | D33: ='Startovní listina'!B91 -> 100 | E33: ='Startovní listina'!C91 -> Fučík | F33: ='Startovní listina'!D91 -> Jaroslav | G33: ='Startovní listina'!E91 -> 1974 | H33: ='Startovní listina'!F91 -> Prosetín | I33: 02:30:31
A34: =IF('Výsledková listina'!D33<>"",A33+1,"") -> 30 | B34: 15 | C34: ='Startovní listina'!G83 -> B | D34: ='Startovní listina'!B83 -> 92 | E34: ='Startovní listina'!C83 -> Řezníček | F34: ='Startovní listina'!D83 -> Petr | G34: ='Startovní listina'!E83 -> 1973 | H34: ='Startovní listina'!F83 -> Polnička | I34: 02:31:15
A35: =IF('Výsledková listina'!D34<>"",A34+1,"") -> 31 | B35: 1 | C35: ='Startovní listina'!G35 -> H | D35: ='Startovní listina'!B35 -> 35 | E35: ='Startovní listina'!C35 -> Krátká | F35: ='Startovní listina'!D35 -> Anna | G35: ='Startovní listina'!E35 -> 1969 | H35: ='Startovní listina'!F35 -> Hvězda SKP Pardubice | I35: 02:31:40
A36: =IF('Výsledková listina'!D35<>"",A35+1,"") -> 32 | B36: 16 | C36: ='Startovní listina'!G37 -> B | D36: ='Startovní listina'!B37 -> 37 | E36: ='Startovní listina'!C37 -> Kropáček | F36: ='Startovní listina'!D37 -> Jaroslav | G36: ='Startovní listina'!E37 -> 1970 | H36: ='Startovní listina'!F37 -> Brno | I36: 02:32:28
A37: =IF('Výsledková listina'!D36<>"",A36+1,"") -> 33 | B37: 3 | C37: ='Startovní listina'!G14 -> C | D37: ='Startovní listina'!B14 -> 10 | E37: ='Startovní listina'!C14 -> Dvorský | F37: ='Startovní listina'!D14 -> Ladislav | G37: ='Startovní listina'!E14 -> 1965 | H37: ='Startovní listina'!F14 -> MK Seitl Ostrava | I37: 02:32:37
A38: =IF('Výsledková listina'!D37<>"",A37+1,"") -> 34 | B38: 4 | C38: ='Startovní listina'!G43 -> C | D38: ='Startovní listina'!B43 -> 44 | E38: ='Startovní listina'!C43 -> Suchý | F38: ='Startovní listina'!D43 -> Karel | G38: ='Startovní listina'!E43 -> 1956 | H38: ='Startovní listina'!F43 -> Atletic Třebíč | I38: 02:32:49
A39: =IF('Výsledková listina'!D38<>"",A38+1,"") -> 35 | B39: 12 | C39: ='Startovní listina'!G67 -> A | D39: ='Startovní listina'!B67 -> 73 | E39: ='Startovní listina'!C67 -> Brabenec | F39: ='Startovní listina'!D67 -> Aleš | G39: ='Startovní listina'!E67 -> 1987 | H39: ='Startovní listina'!F67 -> Žďár nad Sázavou | I39: 02:34:42
A40: =IF('Výsledková listina'!D39<>"",A39+1,"") -> 36 | B40: 5 | C40: ='Startovní listina'!G95 -> C | D40: ='Startovní listina'!B95 -> 104 | E40: ='Startovní listina'!C95 -> Sedláček | F40: ='Startovní listina'!D95 -> Svatopluk | G40: ='Startovní listina'!E95 -> 1957 | H40: ='Startovní listina'!F95 -> Moravská Slávia Brno | I40: 02:34:44
A41: =IF('Výsledková listina'!D40<>"",A40+1,"") -> 37 | B41: 3 | C41: ='Startovní listina'!G54 -> F | D41: ='Startovní listina'!B54 -> 56 | E41: ='Startovní listina'!C54 -> Johaníková | F41: ='Startovní listina'!D54 -> Lucie | G41: ='Startovní listina'!E54 -> 1986 | H41: ='Startovní listina'!F54 -> Moravská Slávia Brno | I41: 02:37:38
A42: =IF('Výsledková listina'!D41<>"",A41+1,"") -> 38 | B42: 17 | C42: ='Startovní listina'!G30 -> B | D42: ='Startovní listina'!B30 -> 29 | E42: ='Startovní listina'!C30 -> Provazník | F42: ='Startovní listina'!D30 -> Milan | G42: ='Startovní listina'!E30 -> 1966 | H42: ='Startovní listina'!F30 -> Polička | I42: 02:37:53
A43: =IF('Výsledková listina'!D42<>"",A42+1,"") -> 39 | B43: 13 | C43: ='Startovní listina'!G31 -> A | D43: ='Startovní listina'!B31 -> 30 | E43: ='Startovní listina'!C31 -> Mikeš | F43: ='Startovní listina'!D31 -> Petr | G43: ='Startovní listina'!E31 -> 1977 | H43: ='Startovní listina'!F31 -> Vyškovec | I43: 02:38:44
A44: =IF('Výsledková listina'!D43<>"",A43+1,"") -> 40 | B44: 6 | C44: ='Startovní listina'!G60 -> C | D44: ='Startovní listina'!B60 -> 62 | E44: ='Startovní listina'!C60 -> Čuhel | F44: ='Startovní listina'!D60 -> Jiří | G44: ='Startovní listina'!E60 -> 1958 | H44: ='Startovní listina'!F60 -> Křtěnov | I44: 02:38:54
A45: =IF('Výsledková listina'!D44<>"",A44+1,"") -> 41 | B45: 14 | C45: ='Startovní listina'!G63 -> A | D45: ='Startovní listina'!B63 -> 67 | E45: ='Startovní listina'!C63 -> Dubský | F45: ='Startovní listina'!D63 -> Roman | G45: ='Startovní listina'!E63 -> 1978 | H45: ='Startovní listina'!F63 -> SK Přibyslav | I45: 02:39:15
A46: =IF('Výsledková listina'!D45<>"",A45+1,"") -> 42 | B46: 1 | C46: ='Startovní listina'!G13 -> D | D46: ='Startovní listina'!B13 -> 9 | E46: ='Startovní listina'!C13 -> Výtisk | F46: ='Startovní listina'!D13 -> Alfons | G46: ='Startovní listina'!E13 -> 1949 | H46: ='Startovní listina'!F13 -> MK Seitl Ostrava | I46: 02:40:16
A47: =IF('Výsledková listina'!D46<>"",A46+1,"") -> 43 | B47: 15 | C47: ='Startovní listina'!G6 -> A | D47: ='Startovní listina'!B6 -> 2 | E47: ='Startovní listina'!C6 -> Pivec | F47: ='Startovní listina'!D6 -> Jan | G47: ='Startovní listina'!E6 -> 1981 | H47: ='Startovní listina'!F6 -> HAL 3000 Brno | I47: 02:40:25
A48: =IF('Výsledková listina'!D47<>"",A47+1,"") -> 44 | B48: 7 | C48: ='Startovní listina'!G55 -> C | D48: ='Startovní listina'!B55 -> 57 | E48: ='Startovní listina'!C55 -> Češner | F48: ='Startovní listina'!D55 -> Vladimír | G48: ='Startovní listina'!E55 -> 1958 | H48: ='Startovní listina'!F55 -> Odolena Voda | I48: 02:40:36
A49: =IF('Výsledková listina'!D48<>"",A48+1,"") -> 45 | B49: 18 | C49: ='Startovní listina'!G62 -> B | D49: ='Startovní listina'!B62 -> 64 | E49: ='Startovní listina'!C62 -> Cechmaister | F49: ='Startovní listina'!D62 -> Bohumil | G49: ='Startovní listina'!E62 -> 1974 | H49: ='Startovní listina'!F62 -> Sokol Přísnotice | I49: 02:42:35
A50: =IF('Výsledková listina'!D49<>"",A49+1,"") -> 46 | B50: 16 | C50: ='Startovní listina'!G57 -> A | D50: ='Startovní listina'!B57 -> 59 | E50: ='Startovní listina'!C57 -> Hübner | F50: ='Startovní listina'!D57 -> Jan | G50: ='Startovní listina'!E57 -> 1978 | H50: ='Startovní listina'!F57 -> SDH Bolešín | I50: 02:42:39
A51: =IF('Výsledková listina'!D50<>"",A50+1,"") -> 47 | B51: 8 | C51: ='Startovní listina'!G68 -> C | D51: ='Startovní listina'!B68 -> 74 | E51: ='Startovní listina'!C68 -> Brabenec | F51: ='Startovní listina'!D68 -> Miroslav | G51: ='Startovní listina'!E68 -> 1959 | H51: ='Startovní listina'!F68 -> Žďár nad Sázavou | I51: 02:42:43
A52: =IF('Výsledková listina'!D51<>"",A51+1,"") -> 48 | B52: 17 | C52: ='Startovní listina'!G20 -> A | D52: ='Startovní listina'!B20 -> 17 | E52: ='Startovní listina'!C20 -> Kameníček | F52: ='Startovní listina'!D20 -> Michal | G52: ='Startovní listina'!E20 -> 1986 | H52: ='Startovní listina'!F20 -> Vinařice | I52: 02:43:21
A53: =IF('Výsledková listina'!D52<>"",A52+1,"") -> 49 | B53: 2 | C53: ='Startovní listina'!G80 -> D | D53: ='Startovní listina'!B80 -> 89 | E53: ='Startovní listina'!C80 -> Kohoutek | F53: ='Startovní listina'!D80 -> Jaromír | G53: ='Startovní listina'!E80 -> 1955 | H53: ='Startovní listina'!F80 -> Brno | I53: 02:45:32
A54: =IF('Výsledková listina'!D53<>"",A53+1,"") -> 50 | B54: 1 | C54: ='Startovní listina'!G11 -> G | D54: ='Startovní listina'!B11 -> 7 | E54: ='Startovní listina'!C11 -> Komárková | F54: ='Startovní listina'!D11 -> Zdeňka | G54: ='Startovní listina'!E11 -> 1974 | H54: ='Startovní listina'!F11 -> SDH Bolešín | I54: 02:45:37
A55: =IF('Výsledková listina'!D54<>"",A54+1,"") -> 51 | B55: 18 | C55: ='Startovní listina'!G53 -> A | D55: ='Startovní listina'!B53 -> 55 | E55: ='Startovní listina'!C53 -> Kolman | F55: ='Startovní listina'!D53 -> Jakub | G55: ='Startovní listina'!E53 -> 1976 | H55: ='Startovní listina'!F53 -> Posilovna Průvan | I55: 02:46:25
A56: =IF('Výsledková listina'!D55<>"",A55+1,"") -> 52 | B56: 19 | C56: ='Startovní listina'!G66 -> A | D56: ='Startovní listina'!B66 -> 72 | E56: ='Startovní listina'!C66 -> Mička | F56: ='Startovní listina'!D66 -> Michal | G56: ='Startovní listina'!E66 -> 1987 | H56: ='Startovní listina'!F66 -> Žďár nad Sázavou | I56: 02:46:48
A57: =IF('Výsledková listina'!D56<>"",A56+1,"") -> 53 | B57: 9 | C57: ='Startovní listina'!G71 -> C | D57: ='Startovní listina'!B71 -> 77 | E57: ='Startovní listina'!C71 -> Barták | F57: ='Startovní listina'!D71 -> Roland | G57: ='Startovní listina'!E71 -> 1965 | H57: ='Startovní listina'!F71 -> Kuřim | I57: 02:47:00
A58: =IF('Výsledková listina'!D57<>"",A57+1,"") -> 54 | B58: 20 | C58: ='Startovní listina'!G78 -> A | D58: ='Startovní listina'!B78 -> 86 | E58: ='Startovní listina'!C78 -> Kosmák | F58: ='Startovní listina'!D78 -> Václav | G58: ='Startovní listina'!E78 -> 1983 | H58: ='Startovní listina'!F78 -> Brno | I58: 02:49:04
A59: =IF('Výsledková listina'!D58<>"",A58+1,"") -> 55 | B59: 19 | C59: ='Startovní listina'!G42 -> B | D59: ='Startovní listina'!B42 -> 43 | E59: ='Startovní listina'!C42 -> Dvořák | F59: ='Startovní listina'!D42 -> Vojtěch | G59: ='Startovní listina'!E42 -> 1974 | H59: ='Startovní listina'!F42 -> Brno | I59: 02:49:46
A60: =IF('Výsledková listina'!D59<>"",A59+1,"") -> 56 | B60: 3 | C60: ='Startovní listina'!G46 -> D | D60: ='Startovní listina'!B46 -> 47 | E60: ='Startovní listina'!C46 -> Boháč | F60: ='Startovní listina'!D46 -> Jiří | G60: ='Startovní listina'!E46 -> 1954 | H60: ='Startovní listina'!F46 -> Běhej Brno com | I60: 02:50:33
A61: =IF('Výsledková listina'!D60<>"",A60+1,"") -> 57 | B61: 21 | C61: ='Startovní listina'!G82 -> A | D61: ='Startovní listina'!B82 -> 91 | E61: ='Startovní listina'!C82 -> Poneš | F61: ='Startovní listina'!D82 -> Pavel | G61: ='Startovní listina'!E82 -> 1978 | H61: ='Startovní listina'!F82 -> TK SOKOLI Brno | I61: 02:50:59
A62: =IF('Výsledková listina'!D61<>"",A61+1,"") -> 58 | B62: 2 | C62: ='Startovní listina'!G88 -> G | D62: ='Startovní listina'!B88 -> 97 | E62: ='Startovní listina'!C88 -> Tonarová | F62: ='Startovní listina'!D88 -> Miroslava | G62: ='Startovní listina'!E88 -> 1976 | H62: ='Startovní listina'!F88 -> Bory | I62: 02:53:55
A63: =IF('Výsledková listina'!D62<>"",A62+1,"") -> 59 | B63: 22 | C63: ='Startovní listina'!G90 -> A | D63: ='Startovní listina'!B90 -> 99 | E63: ='Startovní listina'!C90 -> Vacula | F63: ='Startovní listina'!D90 -> Ondřej | G63: ='Startovní listina'!E90 -> 1981 | H63: ='Startovní listina'!F90 -> AC Lelek Lelekovice | I63: 02:55:52
A64: =IF('Výsledková listina'!D63<>"",A63+1,"") -> 60 | B64: 10 | C64: ='Startovní listina'!G70 -> C | D64: ='Startovní listina'!B70 -> 76 | E64: ='Startovní listina'!C70 -> Novotný | F64: ='Startovní listina'!D70 -> Petr | G64: ='Startovní listina'!E70 -> 1965 | H64: ='Startovní listina'!F70 -> Kuřim | I64: 02:57:35
A65: =IF('Výsledková listina'!D64<>"",A64+1,"") -> 61 | B65: 20 | C65: ='Startovní listina'!G65 -> B | D65: ='Startovní listina'!B65 -> 70 | E65: ='Startovní listina'!C65 -> Strakoš | F65: ='Startovní listina'!D65 -> Vilém | G65: ='Startovní listina'!E65 -> 1969 | H65: ='Startovní listina'!F65 -> SK Fuga Kuřim | I65: 02:58:55
A66: =IF('Výsledková listina'!D65<>"",A65+1,"") -> 62 | B66: 23 | C66: ='Startovní listina'!G32 -> A | D66: ='Startovní listina'!B32 -> 31 | E66: ='Startovní listina'!C32 -> Kryštof | F66: ='Startovní listina'!D32 -> Ondřej | G66: ='Startovní listina'!E32 -> 1976 | H66: ='Startovní listina'!F32 -> Jiskra Vír | I66: 02:59:30
A67: =IF('Výsledková listina'!D66<>"",A66+1,"") -> 63 | B67: 11 | C67: ='Startovní listina'!G10 -> C | D67: ='Startovní listina'!B10 -> 6 | E67: ='Startovní listina'!C10 -> Zourek | F67: ='Startovní listina'!D10 -> Karel | G67: ='Startovní listina'!E10 -> 1959 | H67: ='Startovní listina'!F10 -> Brno | I67: 03:00:21
A68: =IF('Výsledková listina'!D67<>"",A67+1,"") -> 64 | B68: 12 | C68: ='Startovní listina'!G34 -> C | D68: ='Startovní listina'!B34 -> 34 | E68: ='Startovní listina'!C34 -> Navrátil | F68: ='Startovní listina'!D34 -> Petr | G68: ='Startovní listina'!E34 -> 1963 | H68: ='Startovní listina'!F34 -> Rožná | I68: 03:00:59
A69: =IF('Výsledková listina'!D68<>"",A68+1,"") -> 65 | B69: 2 | C69: ='Startovní listina'!G19 -> H | D69: ='Startovní listina'!B19 -> 16 | E69: ='Startovní listina'!C19 -> Kameníčková | F69: ='Startovní listina'!D19 -> Veronika | G69: ='Startovní listina'!E19 -> 1966 | H69: ='Startovní listina'!F19 -> Vinařice | I69: 03:01:04
A70: =IF('Výsledková listina'!D69<>"",A69+1,"") -> 66 | B70: 4 | C70: ='Startovní listina'!G73 -> D | D70: ='Startovní listina'!B73 -> 80 | E70: ='Startovní listina'!C73 -> Nekuža | F70: ='Startovní listina'!D73 -> Jiří | G70: ='Startovní listina'!E73 -> 1951 | H70: ='Startovní listina'!F73 -> RUNNERS Zbýšov | I70: 03:01:32
A71: =IF('Výsledková listina'!D70<>"",A70+1,"") -> 67 | B71: 21 | C71: ='Startovní listina'!G75 -> B | D71: ='Startovní listina'!B75 -> 83 | E71: ='Startovní listina'!C75 -> Holoubek | F71: ='Startovní listina'!D75 -> Jindřich | G71: ='Startovní listina'!E75 -> 1968 | H71: ='Startovní listina'!F75 -> Brno | I71: 03:01:37
A72: =IF('Výsledková listina'!D71<>"",A71+1,"") -> 68 | B72: 13 | C72: ='Startovní listina'!G5 -> C | D72: ='Startovní listina'!B5 -> 1 | E72: ='Startovní listina'!C5 -> Bečička | F72: ='Startovní listina'!D5 -> Petr | G72: ='Startovní listina'!E5 -> 1960 | H72: ='Startovní listina'!F5 -> HAL 3000 Brno | I72: 03:02:17
A73: =IF('Výsledková listina'!D72<>"",A72+1,"") -> 69 | B73: 4 | C73: ='Startovní listina'!G25 -> F | D73: ='Startovní listina'!B25 -> 23 | E73: ='Startovní listina'!C25 -> Vašalovská | F73: ='Startovní listina'!D25 -> Petra | G73: ='Startovní listina'!E25 -> 1986 | H73: ='Startovní listina'!F25 -> Atletic Třebíč | I73: 03:04:10
A74: =IF('Výsledková listina'!D73<>"",A73+1,"") -> 70 | B74: 24 | C74: ='Startovní listina'!G92 -> A | D74: ='Startovní listina'!B92 -> 101 | E74: ='Startovní listina'!C92 -> Milka | F74: ='Startovní listina'!D92 -> Zdeněk | G74: ='Startovní listina'!E92 -> 1984 | H74: ='Startovní listina'!F92 -> Brno | I74: 03:04:27
A75: =IF('Výsledková listina'!D74<>"",A74+1,"") -> 71 | B75: 14 | C75: ='Startovní listina'!G17 -> C | D75: ='Startovní listina'!B17 -> 13 | E75: ='Startovní listina'!C17 -> Kresta | F75: ='Startovní listina'!D17 -> Roman | G75: ='Startovní listina'!E17 -> 1965 | H75: ='Startovní listina'!F17 -> Brno | I75: 03:06:22
A76: =IF('Výsledková listina'!D75<>"",A75+1,"") -> 72 | B76: 3 | C76: ='Startovní listina'!G26 -> H | D76: ='Startovní listina'!B26 -> 24 | E76: ='Startovní listina'!C26 -> Mahelová | F76: ='Startovní listina'!D26 -> Jitka | G76: ='Startovní listina'!E26 -> 1962 | H76: ='Startovní listina'!F26 -> Atletic Třebíč | I76: 03:06:38
A77: =IF('Výsledková listina'!D76<>"",A76+1,"") -> 73 | B77: 5 | C77: ='Startovní listina'!G7 -> F | D77: ='Startovní listina'!B7 -> 3 | E77: ='Startovní listina'!C7 -> Dostálová | F77: ='Startovní listina'!D7 -> Vendula | G77: ='Startovní listina'!E7 -> 1981 | H77: ='Startovní listina'!F7 -> HAL 3000 Brno | I77: 03:07:50
A78: =IF('Výsledková listina'!D77<>"",A77+1,"") -> 74 | B78: 25 | C78: ='Startovní listina'!G44 -> A | D78: ='Startovní listina'!B44 -> 45 | E78: ='Startovní listina'!C44 -> Hakl | F78: ='Startovní listina'!D44 -> Martin | G78: ='Startovní listina'!E44 -> 1987 | H78: ='Startovní listina'!F44 -> Running with Those that Carit | I78: 03:10:37
A79: =IF('Výsledková listina'!D78<>"",A78+1,"") -> 75 | B79: 26 | C79: ='Startovní listina'!G96 -> A | D79: ='Startovní listina'!B96 -> 105 | E79: ='Startovní listina'!C96 -> Procházka | F79: ='Startovní listina'!D96 -> Pavel | G79: ='Startovní listina'!E96 -> 1988 | H79: ='Startovní listina'!F96 -> Bystřice nad Pernštejnem | I79: 03:12:26
A80: =IF('Výsledková listina'!D79<>"",A79+1,"") -> 76 | B80: 22 | C80: ='Startovní listina'!G94 -> B | D80: ='Startovní listina'!B94 -> 103 | E80: ='Startovní listina'!C94 -> Junga | F80: ='Startovní listina'!D94 -> Stanislav | G80: ='Startovní listina'!E94 -> 1971 | H80: ='Startovní listina'!F94 -> Újezd u Brna | I80: 03:13:50
A81: =IF('Výsledková listina'!D80<>"",A80+1,"") -> 77 | B81: 5 | C81: ='Startovní listina'!G52 -> D | D81: ='Startovní listina'!B52 -> 54 | E81: ='Startovní listina'!C52 -> Mareš | F81: ='Startovní listina'!D52 -> Bohumil | G81: ='Startovní listina'!E52 -> 1951 | H81: ='Startovní listina'!F52 -> LEAR Brno | I81: 03:14:48
A82: =IF('Výsledková listina'!D81<>"",A81+1,"") -> 78 | B82: 4 | C82: ='Startovní listina'!G97 -> H | D82: ='Startovní listina'!B97 -> 106 | E82: ='Startovní listina'!C97 -> Podmelová | F82: ='Startovní listina'!D97 -> Vilma | G82: ='Startovní listina'!E97 -> 1962 | H82: ='Startovní listina'!F97 -> Moravská Slávia Brno | I82: 03:14:54
A83: =IF('Výsledková listina'!D82<>"",A82+1,"") -> 79 | B83: 6 | C83: ='Startovní listina'!G64 -> F | D83: ='Startovní listina'!B64 -> 69 | E83: ='Startovní listina'!C64 -> Rokosová | F83: ='Startovní listina'!D64 -> Ivana | G83: ='Startovní listina'!E64 -> 1982 | H83: ='Startovní listina'!F64 -> Polička | I83: 03:18:47
A84: =IF('Výsledková listina'!D83<>"",A83+1,"") -> 80 | B84: 15 | C84: ='Startovní listina'!G76 -> C | D84: ='Startovní listina'!B76 -> 84 | E84: ='Startovní listina'!C76 -> Šilhan | F84: ='Startovní listina'!D76 -> Vladimír | G84: ='Startovní listina'!E76 -> 1957 | H84: ='Startovní listina'!F76 -> Original Ježek Babice nad Svitavou | I84: 03:18:56
A85: =IF('Výsledková listina'!D84<>"",A84+1,"") -> 81 | B85: 23 | C85: ='Startovní listina'!G45 -> B | D85: ='Startovní listina'!B45 -> 46 | E85: ='Startovní listina'!C45 -> Münster | F85: ='Startovní listina'!D45 -> Libor | G85: ='Startovní listina'!E45 -> 1966 | H85: ='Startovní listina'!F45 -> Blansko | I85: 03:21:11
A86: =IF('Výsledková listina'!D85<>"",A85+1,"") -> 82 | B86: 3 | C86: ='Startovní listina'!G81 -> G | D86: ='Startovní listina'!B81 -> 90 | E86: ='Startovní listina'!C81 -> Ježová | F86: ='Startovní listina'!D81 -> Martina | G86: ='Startovní listina'!E81 -> 1975 | H86: ='Startovní listina'!F81 -> Brno | I86: 03:24:59
A87: =IF('Výsledková listina'!D86<>"",A86+1,"") -> 83 | B87: 24 | C87: ='Startovní listina'!G85 -> B | D87: ='Startovní listina'!B85 -> 94 | E87: ='Startovní listina'!C85 -> Benc | F87: ='Startovní listina'!D85 -> Karel | G87: ='Startovní listina'!E85 -> 1975 | H87: ='Startovní listina'!F85 -> Pivonice | I87: 03:28:11
A88: =IF('Výsledková listina'!D87<>"",A87+1,"") -> 84 | B88: 7 | C88: ='Startovní listina'!G8 -> F | D88: ='Startovní listina'!B8 -> 4 | E88: ='Startovní listina'!C8 -> Navrátilová | F88: ='Startovní listina'!D8 -> Vlasta | G88: ='Startovní listina'!E8 -> 1983 | H88: ='Startovní listina'!F8 -> Vír | I88: 03:30:08
A89: =IF('Výsledková listina'!D88<>"",A88+1,"") -> 85 | B89: 25 | C89: ='Startovní listina'!G93 -> B | D89: ='Startovní listina'!B93 -> 102 | E89: ='Startovní listina'!C93 -> Konečný | F89: ='Startovní listina'!D93 -> Jaroslav | G89: ='Startovní listina'!E93 -> 1969 | H89: ='Startovní listina'!F93 -> Popůvky | I89: 03:31:45
A90: =IF('Výsledková listina'!D89<>"",A89+1,"") -> 86 | B90: 5 | C90: ='Startovní listina'!G16 -> H | D90: ='Startovní listina'!B16 -> 12 | E90: ='Startovní listina'!C16 -> Tesařová | F90: ='Startovní listina'!D16 -> Marie | G90: ='Startovní listina'!E16 -> 1954 | H90: ='Startovní listina'!F16 -> Křižanov | I90: 03:32:08
A91: =IF('Výsledková listina'!D90<>"",A90+1,"") -> 87 | B91: 8 | C91: ='Startovní listina'!G21 -> F | D91: ='Startovní listina'!B21 -> 18 | E91: ='Startovní listina'!C21 -> Peštuková | F91: ='Startovní listina'!D21 -> Ivana | G91: ='Startovní listina'!E21 -> 1990 | H91: ='Startovní listina'!F21 -> Vinařice | I91: 03:32:23
A92: =IF('Výsledková listina'!D91<>"",A91+1,"") -> 88 | B92: 26 | C92: ='Startovní listina'!G77 -> B | D92: ='Startovní listina'!B77 -> 85 | E92: ='Startovní listina'!C77 -> Jaskulka | F92: ='Startovní listina'!D77 -> Martin | G92: ='Startovní listina'!E77 -> 1968 | H92: ='Startovní listina'!F77 -> Kuřim | I92: 03:37:46
A93: =IF('Výsledková listina'!D92<>"",A92+1,"") -> 89 | B93: 1 | C93: ='Startovní listina'!G18 -> E | D93: ='Startovní listina'!B18 -> 14 | E93: ='Startovní listina'!C18 -> Holý | F93: ='Startovní listina'!D18 -> Josef | G93: ='Startovní listina'!E18 -> 1941 | H93: ='Startovní listina'!F18 -> Moravská Slávia Brno | I93: 03:42:45
A94: =IF('Výsledková listina'!D93<>"",A93+1,"") -> 90 | B94: 6 | C94: ='Startovní listina'!G33 -> H | D94: ='Startovní listina'!B33 -> 33 | E94: ='Startovní listina'!C33 -> Šedová | F94: ='Startovní listina'!D33 -> Věra | G94: ='Startovní listina'!E33 -> 1964 | H94: ='Startovní listina'!F33 -> Atletic Třebíč | I94: 03:44:49
A95: =IF('Výsledková listina'!D94<>"",A94+1,"") -> 91 | B95: 16 | C95: ='Startovní listina'!G36 -> C | D95: ='Startovní listina'!B36 -> 36 | E95: ='Startovní listina'!C36 -> Krátký | F95: ='Startovní listina'!D36 -> Josef | G95: ='Startovní listina'!E36 -> 1965 | H95: ='Startovní listina'!F36 -> Hvězda SKP Pardubice | I95: 03:49:35
A96: =IF('Výsledková listina'!D95<>"",A95+1,"") -> 92 | B96: 6 | C96: ='Startovní listina'!G72 -> D | D96: ='Startovní listina'!B72 -> 79 | E96: ='Startovní listina'!C72 -> Vídeňský | F96: ='Startovní listina'!D72 -> Jiří | G96: ='Startovní listina'!E72 -> 1947 | H96: ='Startovní listina'!F72 -> KD Moravské Budějovice | I96: 04:02:08
A97: =IF('Výsledková listina'!D96<>"",A96+1,"") -> 93 | B97: 2 | C97: ='Startovní listina'!G23 -> E | D97: ='Startovní listina'!B23 -> 21 | E97: ='Startovní listina'!C23 -> Hrubý | F97: ='Startovní listina'!D23 -> Milan | G97: ='Startovní listina'!E23 -> 1938 | H97: ='Startovní listina'!F23 -> Blansko | I97: 04:13:01
A98: =IF('Výsledková listina'!D97<>"",A97+1,"") -> 94 | B98: 7 | C98: ='Startovní listina'!G69 -> D | D98: ='Startovní listina'!B69 -> 75 | E98: ='Startovní listina'!C69 -> Kaše | F98: ='Startovní listina'!D69 -> Jaroslav | G98: ='Startovní listina'!E69 -> 1953 | H98: ='Startovní listina'!F69 -> Club běžeckých outsiderů | I98: DNF
A99: =IF('Výsledková listina'!D98<>"",A98+1,"") -> 95 | C99: ='Startovní listina'!G99 ->  | D99: ='Startovní listina'!B99 ->  | E99: ='Startovní listina'!C99 ->  | F99: ='Startovní listina'!D99 ->  | G99: ='Startovní listina'!E99 ->  | H99: ='Startovní listina'!F99 -> 
A100: =IF('Výsledková listina'!D99<>"",A99+1,"") ->  | C100: ='Startovní listina'!G100 ->  | D100: ='Startovní listina'!B100 ->  | E100: ='Startovní listina'!C100 ->  | F100: ='Startovní listina'!D100 ->  | G100: ='Startovní listina'!E100 ->  | H100: ='Startovní listina'!F100 -> 
A101: =IF('Výsledková listina'!D100<>"",A100+1,"") ->  | C101: ='Startovní listina'!G101 ->  | D101: ='Startovní listina'!B101 ->  | E101: ='Startovní listina'!C101 ->  | F101: ='Startovní listina'!D101 ->  | G101: ='Startovní listina'!E101 ->  | H101: ='Startovní listina'!F101 -> 
A102: =IF('Výsledková listina'!D101<>"",A101+1,"") ->  | C102: ='Startovní listina'!G102 ->  | D102: ='Startovní listina'!B102 ->  | E102: ='Startovní listina'!C102 ->  | F102: ='Startovní listina'!D102 ->  | G102: ='Startovní listina'!E102 ->  | H102: ='Startovní listina'!F102 -> 
A103: =IF('Výsledková listina'!D102<>"",A102+1,"") ->  | C103: ='Startovní listina'!G103 ->  | D103: ='Startovní listina'!B103 ->  | E103: ='Startovní listina'!C103 ->  | F103: ='Startovní listina'!D103 ->  | G103: ='Startovní listina'!E103 ->  | H103: ='Startovní listina'!F103 -> 

Sheet Družstva
B1: ="Výsledková listina - Malý svratecký maratón "&'Prezenční listina'!O2&" - družstva" -> Výsledková listina - Malý svratecký maratón 2015 - družstva
B2: ='Prezenční listina'!O2-1953&". ročník" -> 62. ročník
B3: Pořadí | C3: Startovní číslo | D3: Příjmení | E3: Jméno | F3: Narození | G3: Oddíl / Bydliště | H3: Čas | I3: Výsledný čas
B4: 1. | C4: 82 | D4: =IF(ISERROR(VLOOKUP(C4,'Startovní listina'!$B$5:$F$141,2)),"",VLOOKUP(C4,'Startovní listina'!$B$5:$F$141,2)) -> Glier | E4: =IF(ISERROR(VLOOKUP(C4,'Startovní listina'!$B$5:$F$141,3)),"",VLOOKUP(C4,'Startovní listina'!$B$5:$F$141,3)) -> Michal | F4: =IF(ISERROR(VLOOKUP(C4,'Startovní listina'!$B$5:$F$141,4)),"",VLOOKUP(C4,'Startovní listina'!$B$5:$F$141,4)) -> 1982 | G4: =IF(K4=K5,K4,"RŮZNÉ ODDÍLY !!!") -> Moravská Slávia Brno | H4: 02:11:00 | I4: =IF((H4=0),"",H4+H5) -> 04:05:34 | K4: =IF(ISERROR(VLOOKUP(C4,'Startovní listina'!$B$5:$F$141,5)),"",VLOOKUP(C4,'Startovní listina'!$B$5:$F$141,5)) -> Moravská Slávia Brno
C5: 107 | D5: =IF(ISERROR(VLOOKUP(C5,'Startovní listina'!$B$5:$F$141,2)),"",VLOOKUP(C5,'Startovní listina'!$B$5:$F$141,2)) -> Orálek | E5: =IF(ISERROR(VLOOKUP(C5,'Startovní listina'!$B$5:$F$141,3)),"",VLOOKUP(C5,'Startovní listina'!$B$5:$F$141,3)) -> Daniel | F5: =IF(ISERROR(VLOOKUP(C5,'Startovní listina'!$B$5:$F$141,4)),"",VLOOKUP(C5,'Startovní listina'!$B$5:$F$141,4)) -> 1970 | H5: 01:54:34 | K5: =IF(ISERROR(VLOOKUP(C5,'Startovní listina'!$B$5:$F$141,5)),"",VLOOKUP(C5,'Startovní listina'!$B$5:$F$141,5)) -> Moravská Slávia Brno
B6: 2. | C6: 11 | D6: =IF(ISERROR(VLOOKUP(C6,'Startovní listina'!$B$5:$F$141,2)),"",VLOOKUP(C6,'Startovní listina'!$B$5:$F$141,2)) -> Fousek | E6: =IF(ISERROR(VLOOKUP(C6,'Startovní listina'!$B$5:$F$141,3)),"",VLOOKUP(C6,'Startovní listina'!$B$5:$F$141,3)) -> Jan | F6: =IF(ISERROR(VLOOKUP(C6,'Startovní listina'!$B$5:$F$141,4)),"",VLOOKUP(C6,'Startovní listina'!$B$5:$F$141,4)) -> 1991 | G6: =IF(K6=K7,K6,"RŮZNÉ ODDÍLY !!!") -> MK Seitl Ostrava | H6: 02:01:16 | I6: =IF((H6=0),"",H6+H7) -> 04:06:56 | K6: =IF(ISERROR(VLOOKUP(C6,'Startovní listina'!$B$5:$F$141,5)),"",VLOOKUP(C6,'Startovní listina'!$B$5:$F$141,5)) -> MK Seitl Ostrava
C7: 8 | D7: =IF(ISERROR(VLOOKUP(C7,'Startovní listina'!$B$5:$F$141,2)),"",VLOOKUP(C7,'Startovní listina'!$B$5:$F$141,2)) -> Škapa | E7: =IF(ISERROR(VLOOKUP(C7,'Startovní listina'!$B$5:$F$141,3)),"",VLOOKUP(C7,'Startovní listina'!$B$5:$F$141,3)) -> Marek | F7: =IF(ISERROR(VLOOKUP(C7,'Startovní listina'!$B$5:$F$141,4)),"",VLOOKUP(C7,'Startovní listina'!$B$5:$F$141,4)) -> 1971 | H7: 02:05:40 | K7: =IF(ISERROR(VLOOKUP(C7,'Startovní listina'!$B$5:$F$141,5)),"",VLOOKUP(C7,'Startovní listina'!$B$5:$F$141,5)) -> MK Seitl Ostrava
B8: 3. | C8: 28 | D8: =IF(ISERROR(VLOOKUP(C8,'Startovní listina'!$B$5:$F$141,2)),"",VLOOKUP(C8,'Startovní listina'!$B$5:$F$141,2)) -> Kratochvíl | E8: =IF(ISERROR(VLOOKUP(C8,'Startovní listina'!$B$5:$F$141,3)),"",VLOOKUP(C8,'Startovní listina'!$B$5:$F$141,3)) -> Pavel | F8: =IF(ISERROR(VLOOKUP(C8,'Startovní listina'!$B$5:$F$141,4)),"",VLOOKUP(C8,'Startovní listina'!$B$5:$F$141,4)) -> 1960 | G8: =IF(K8=K9,K8,"RŮZNÉ ODDÍLY !!!") -> Atletic Třebíč | H8: 02:19:07 | I8: =IF((H8=0),"",H8+H9) -> 04:24:14 | K8: =IF(ISERROR(VLOOKUP(C8,'Startovní listina'!$B$5:$F$141,5)),"",VLOOKUP(C8,'Startovní listina'!$B$5:$F$141,5)) -> Atletic Třebíč
C9: 26 | D9: =IF(ISERROR(VLOOKUP(C9,'Startovní listina'!$B$5:$F$141,2)),"",VLOOKUP(C9,'Startovní listina'!$B$5:$F$141,2)) -> Nováček | E9: =IF(ISERROR(VLOOKUP(C9,'Startovní listina'!$B$5:$F$141,3)),"",VLOOKUP(C9,'Startovní listina'!$B$5:$F$141,3)) -> Tomáš | F9: =IF(ISERROR(VLOOKUP(C9,'Startovní listina'!$B$5:$F$141,4)),"",VLOOKUP(C9,'Startovní listina'!$B$5:$F$141,4)) -> 1983 | H9: 02:05:07 | K9: =IF(ISERROR(VLOOKUP(C9,'Startovní listina'!$B$5:$F$141,5)),"",VLOOKUP(C9,'Startovní listina'!$B$5:$F$141,5)) -> Atletic Třebíč
B10: 4. | C10: 9 | D10: =IF(ISERROR(VLOOKUP(C10,'Startovní listina'!$B$5:$F$141,2)),"",VLOOKUP(C10,'Startovní listina'!$B$5:$F$141,2)) -> Výtisk | E10: =IF(ISERROR(VLOOKUP(C10,'Startovní listina'!$B$5:$F$141,3)),"",VLOOKUP(C10,'Startovní listina'!$B$5:$F$141,3)) -> Alfons | F10: =IF(ISERROR(VLOOKUP(C10,'Startovní listina'!$B$5:$F$141,4)),"",VLOOKUP(C10,'Startovní listina'!$B$5:$F$141,4)) -> 1949 | G10: =IF(K10=K11,K10,"RŮZNÉ ODDÍLY !!!") -> MK Seitl Ostrava | H10: 02:40:16 | I10: =IF((H10=0),"",H10+H11) -> 05:12:53 | K10: =IF(ISERROR(VLOOKUP(C10,'Startovní listina'!$B$5:$F$141,5)),"",VLOOKUP(C10,'Startovní listina'!$B$5:$F$141,5)) -> MK Seitl Ostrava
C11: 10 | D11: =IF(ISERROR(VLOOKUP(C11,'Startovní listina'!$B$5:$F$141,2)),"",VLOOKUP(C11,'Startovní listina'!$B$5:$F$141,2)) -> Dvorský | E11: =IF(ISERROR(VLOOKUP(C11,'Startovní listina'!$B$5:$F$141,3)),"",VLOOKUP(C11,'Startovní listina'!$B$5:$F$141,3)) -> Ladislav | F11: =IF(ISERROR(VLOOKUP(C11,'Startovní listina'!$B$5:$F$141,4)),"",VLOOKUP(C11,'Startovní listina'!$B$5:$F$141,4)) -> 1965 | H11: 02:32:37 | K11: =IF(ISERROR(VLOOKUP(C11,'Startovní listina'!$B$5:$F$141,5)),"",VLOOKUP(C11,'Startovní listina'!$B$5:$F$141,5)) -> MK Seitl Ostrava
B12: 5. | C12: 3 | D12: =IF(ISERROR(VLOOKUP(C12,'Startovní listina'!$B$5:$F$141,2)),"",VLOOKUP(C12,'Startovní listina'!$B$5:$F$141,2)) -> Dostálová | E12: =IF(ISERROR(VLOOKUP(C12,'Startovní listina'!$B$5:$F$141,3)),"",VLOOKUP(C12,'Startovní listina'!$B$5:$F$141,3)) -> Vendula | F12: =IF(ISERROR(VLOOKUP(C12,'Startovní listina'!$B$5:$F$141,4)),"",VLOOKUP(C12,'Startovní listina'!$B$5:$F$141,4)) -> 1981 | G12: =IF(K12=K13,K12,"RŮZNÉ ODDÍLY !!!") -> HAL 3000 Brno | H12: 03:07:50 | I12: =IF((H12=0),"",H12+H13) -> 05:48:15 | K12: =IF(ISERROR(VLOOKUP(C12,'Startovní listina'!$B$5:$F$141,5)),"",VLOOKUP(C12,'Startovní listina'!$B$5:$F$141,5)) -> HAL 3000 Brno
C13: 2 | D13: =IF(ISERROR(VLOOKUP(C13,'Startovní listina'!$B$5:$F$141,2)),"",VLOOKUP(C13,'Startovní listina'!$B$5:$F$141,2)) -> Pivec | E13: =IF(ISERROR(VLOOKUP(C13,'Startovní listina'!$B$5:$F$141,3)),"",VLOOKUP(C13,'Startovní listina'!$B$5:$F$141,3)) -> Jan | F13: =IF(ISERROR(VLOOKUP(C13,'Startovní listina'!$B$5:$F$141,4)),"",VLOOKUP(C13,'Startovní listina'!$B$5:$F$141,4)) -> 1981 | H13: 02:40:25 | K13: =IF(ISERROR(VLOOKUP(C13,'Startovní listina'!$B$5:$F$141,5)),"",VLOOKUP(C13,'Startovní listina'!$B$5:$F$141,5)) -> HAL 3000 Brno
B14: 6. | C14: 23 | D14: =IF(ISERROR(VLOOKUP(C14,'Startovní listina'!$B$5:$F$141,2)),"",VLOOKUP(C14,'Startovní listina'!$B$5:$F$141,2)) -> Vašalovská | E14: =IF(ISERROR(VLOOKUP(C14,'Startovní listina'!$B$5:$F$141,3)),"",VLOOKUP(C14,'Startovní listina'!$B$5:$F$141,3)) -> Petra | F14: =IF(ISERROR(VLOOKUP(C14,'Startovní listina'!$B$5:$F$141,4)),"",VLOOKUP(C14,'Startovní listina'!$B$5:$F$141,4)) -> 1986 | G14: =IF(K14=K15,K14,"RŮZNÉ ODDÍLY !!!") -> Atletic Třebíč | H14: 03:04:10 | I14: =IF((H14=0),"",H14+H15) -> 06:10:48 | K14: =IF(ISERROR(VLOOKUP(C14,'Startovní listina'!$B$5:$F$141,5)),"",VLOOKUP(C14,'Startovní listina'!$B$5:$F$141,5)) -> Atletic Třebíč
C15: 24 | D15: =IF(ISERROR(VLOOKUP(C15,'Startovní listina'!$B$5:$F$141,2)),"",VLOOKUP(C15,'Startovní listina'!$B$5:$F$141,2)) -> Mahelová | E15: =IF(ISERROR(VLOOKUP(C15,'Startovní listina'!$B$5:$F$141,3)),"",VLOOKUP(C15,'Startovní listina'!$B$5:$F$141,3)) -> Jitka | F15: =IF(ISERROR(VLOOKUP(C15,'Startovní listina'!$B$5:$F$141,4)),"",VLOOKUP(C15,'Startovní listina'!$B$5:$F$141,4)) -> 1962 | H15: 03:06:38 | K15: =IF(ISERROR(VLOOKUP(C15,'Startovní listina'!$B$5:$F$141,5)),"",VLOOKUP(C15,'Startovní listina'!$B$5:$F$141,5)) -> Atletic Třebíč
B16: 7. | C16: 35 | D16: =IF(ISERROR(VLOOKUP(C16,'Startovní listina'!$B$5:$F$141,2)),"",VLOOKUP(C16,'Startovní listina'!$B$5:$F$141,2)) -> Krátká | E16: =IF(ISERROR(VLOOKUP(C16,'Startovní listina'!$B$5:$F$141,3)),"",VLOOKUP(C16,'Startovní listina'!$B$5:$F$141,3)) -> Anna | F16: =IF(ISERROR(VLOOKUP(C16,'Startovní listina'!$B$5:$F$141,4)),"",VLOOKUP(C16,'Startovní listina'!$B$5:$F$141,4)) -> 1969 | G16: =IF(K16=K17,K16,"RŮZNÉ ODDÍLY !!!") -> Hvězda SKP Pardubice | H16: 02:31:40 | I16: =IF((H16=0),"",H16+H17) -> 06:21:15 | K16: =IF(ISERROR(VLOOKUP(C16,'Startovní listina'!$B$5:$F$141,5)),"",VLOOKUP(C16,'Startovní listina'!$B$5:$F$141,5)) -> Hvězda SKP Pardubice
C17: 36 | D17: =IF(ISERROR(VLOOKUP(C17,'Startovní listina'!$B$5:$F$141,2)),"",VLOOKUP(C17,'Startovní listina'!$B$5:$F$141,2)) -> Krátký | E17: =IF(ISERROR(VLOOKUP(C17,'Startovní listina'!$B$5:$F$141,3)),"",VLOOKUP(C17,'Startovní listina'!$B$5:$F$141,3)) -> Josef | F17: =IF(ISERROR(VLOOKUP(C17,'Startovní listina'!$B$5:$F$141,4)),"",VLOOKUP(C17,'Startovní listina'!$B$5:$F$141,4)) -> 1965 | H17: 03:49:35 | K17: =IF(ISERROR(VLOOKUP(C17,'Startovní listina'!$B$5:$F$141,5)),"",VLOOKUP(C17,'Startovní listina'!$B$5:$F$141,5)) -> Hvězda SKP Pardubice
B18: 8. | K18: =IF(ISERROR(VLOOKUP(C18,'Startovní listina'!$B$5:$F$141,5)),"",VLOOKUP(C18,'Startovní listina'!$B$5:$F$141,5)) -> 
K19: =IF(ISERROR(VLOOKUP(C19,'Startovní listina'!$B$5:$F$141,5)),"",VLOOKUP(C19,'Startovní listina'!$B$5:$F$141,5)) -> 
B20: 9. | K20: =IF(ISERROR(VLOOKUP(C20,'Startovní listina'!$B$5:$F$141,5)),"",VLOOKUP(C20,'Startovní listina'!$B$5:$F$141,5)) -> 
K21: =IF(ISERROR(VLOOKUP(C21,'Startovní listina'!$B$5:$F$141,5)),"",VLOOKUP(C21,'Startovní listina'!$B$5:$F$141,5)) -> 

Sheet Běh Vírem
A1: ="Běh Vírem "&'Prezenční listina'!O2 -> Běh Vírem 2015
A2: ='Prezenční listina'!O2-1966&".ročník" -> 49.ročník
B3: Příjmení | C3: Jméno | D3: Narození | E3: Oddíl / Bydliště | F3: Startovní číslo | G3: Čas | H3: Pohlaví
A4: 1 | B4: Křenková | C4: Kateřina | D4: 2001 | E4: Přeštice | F4: 65 | G4: 00:13:57 | H4: =IF(LEN(B4)=0," ",IF(MID(B4,LEN(B4),1)="á","Ž","M")) -> Ž
A5: 2 | B5: Michutová | C5: Karolína | D5: 1999 | E5: Brno | F5: 95 | G5: 00:22:35 | H5: Ž
A6: 3 | B6: Peřanová | C6: Eliška | D6: 1998 | E6: Brno | F6: 75 | G6: 00:25:05 | H6: Ž
A7: 1 | B7: Šupka | C7: Jiří | D7: 2000 | E7: Vír | F7: 82 | G7: 00:11:57 | H7: M
A8: 2 | B8: Nykoliv | C8: Jiří | D8: 2000 | E8: Horní Rožínka | F8: 92 | G8: 00:12:05 | H8: M
A9: 3 | B9: Coural | C9: Jaroslav | D9: 2002 | E9: Vír | F9: 90 | G9: 00:12:15 | H9: M
A10: 4 | B10: Krejzek | C10: Richard | D10: 1997 | E10: Bystřice nad Pernštejnem | F10: 64 | G10: 00:13:21 | H10: M
A11: 5 | B11: Živný | C11: Dominik | D11: 1998 | E11: Bystřice nad Pernštejnem | F11: 70 | G11: 00:13:35 | H11: M | L11: ;
A12: 6 | B12: Jílek | C12: František | D12: 2004 | E12: Velké Tresné | F12: 76 | G12: 00:13:58 | H12: M
A13: 7 | B13: Purč | C13: Marek | D13: 2000 | E13: Brno | F13: 89 | G13: 00:14:18 | H13: M
A14: 8 | B14: Kluj | C14: Jiří | D14: 2003 | E14: Brno | F14: 63 | G14: 00:14:24 | H14: M
A15: 9 | B15: Štýbnar | C15: Štěpán | D15: 2003 | E15: Jihlava | F15: 72 | G15: 00:14:26 | H15: M
A16: 10 | B16: Jílek | C16: Benedikt | D16: 2006 | E16: Velké Tresné | F16: 93 | G16: 00:16:20 | H16: M
K24: ,

Sheet mezičasy (hidden)
A1: 5. km | C1: 10. km | E1: 16. km | G1: 25. km
A2: číslo | B2: čas | C2: číslo | D2: čas | E2: číslo | F2: čas | G2: číslo | H2: čas
A3: 107 | B3: 00:16:50 | C3: 107 | D3: 00:34:03 | E3: 107 | F3: 00:55:14 | G3: 107 | H3: 01:28:54
A4: 60 | B4: 00:18:11 | C4: 11 | D4: 00:36:39 | E4: 11 | F4: 00:59:32 | G4: 11 | H4: 01:34:32
A5: 22 | C5: 60 | D5: 00:36:39 | E5: 60 | F5: 00:59:30 | G5: 60 | H5: 01:36:34
A6: 82 | C6: 82 | D6: 00:37:05 | E6: 40 | F6: 01:00:10 | G6: 26 | H6: 01:36:52
A7: 11 | C7: 40 | D7: 00:37:12 | E7: 82 | F7: 01:00:15 | G7: 40 | H7: 01:37:13
A8: 26
A9: 40
A11: 87 | B11: 00:20:50

Sheet Družstva (prac.) (hidden)
B1: ="Výsledková listina - Malý svratecký maratón "&'Prezenční listina'!O2&" - družstva" -> Výsledková listina - Malý svratecký maratón 2015 - družstva
B2: ='Prezenční listina'!O2-1953&". ročník" -> 62. ročník
B3: Pořadí | C3: Startovní číslo | D3: Příjmení | E3: Jméno | F3: Narození | G3: Oddíl / Bydliště | H3: Čas | I3: Výsledný čas
B4: 1. | C4: 3 | D4: =IF(ISERROR(VLOOKUP(C4,'Startovní listina'!$B$5:$F$141,2)),"",VLOOKUP(C4,'Startovní listina'!$B$5:$F$141,2)) -> Dostálová | E4: =IF(ISERROR(VLOOKUP(C4,'Startovní listina'!$B$5:$F$141,3)),"",VLOOKUP(C4,'Startovní listina'!$B$5:$F$141,3)) -> Vendula | F4: =IF(ISERROR(VLOOKUP(C4,'Startovní listina'!$B$5:$F$141,4)),"",VLOOKUP(C4,'Startovní listina'!$B$5:$F$141,4)) -> 1981 | G4: =IF(K4=K5,K4,"RŮZNÉ ODDÍLY !!!") -> HAL 3000 Brno | H4: 03:07:50 | I4: =IF((H4=0),"",H4+H5) -> 05:48:15 | K4: =IF(ISERROR(VLOOKUP(C4,'Startovní listina'!$B$5:$F$141,5)),"",VLOOKUP(C4,'Startovní listina'!$B$5:$F$141,5)) -> HAL 3000 Brno
C5: 2 | D5: =IF(ISERROR(VLOOKUP(C5,'Startovní listina'!$B$5:$F$141,2)),"",VLOOKUP(C5,'Startovní listina'!$B$5:$F$141,2)) -> Pivec | E5: =IF(ISERROR(VLOOKUP(C5,'Startovní listina'!$B$5:$F$141,3)),"",VLOOKUP(C5,'Startovní listina'!$B$5:$F$141,3)) -> Jan | F5: =IF(ISERROR(VLOOKUP(C5,'Startovní listina'!$B$5:$F$141,4)),"",VLOOKUP(C5,'Startovní listina'!$B$5:$F$141,4)) -> 1981 | H5: 02:40:25 | K5: =IF(ISERROR(VLOOKUP(C5,'Startovní listina'!$B$5:$F$141,5)),"",VLOOKUP(C5,'Startovní listina'!$B$5:$F$141,5)) -> HAL 3000 Brno
B6: 2. | C6: 11 | D6: =IF(ISERROR(VLOOKUP(C6,'Startovní listina'!$B$5:$F$141,2)),"",VLOOKUP(C6,'Startovní listina'!$B$5:$F$141,2)) -> Fousek | E6: =IF(ISERROR(VLOOKUP(C6,'Startovní listina'!$B$5:$F$141,3)),"",VLOOKUP(C6,'Startovní listina'!$B$5:$F$141,3)) -> Jan | F6: =IF(ISERROR(VLOOKUP(C6,'Startovní listina'!$B$5:$F$141,4)),"",VLOOKUP(C6,'Startovní listina'!$B$5:$F$141,4)) -> 1991 | G6: =IF(K6=K7,K6,"RŮZNÉ ODDÍLY !!!") -> MK Seitl Ostrava | H6: 02:01:16 | I6: =IF((H6=0),"",H6+H7) -> 04:06:56 | K6: =IF(ISERROR(VLOOKUP(C6,'Startovní listina'!$B$5:$F$141,5)),"",VLOOKUP(C6,'Startovní listina'!$B$5:$F$141,5)) -> MK Seitl Ostrava
C7: 8 | D7: =IF(ISERROR(VLOOKUP(C7,'Startovní listina'!$B$5:$F$141,2)),"",VLOOKUP(C7,'Startovní listina'!$B$5:$F$141,2)) -> Škapa | E7: =IF(ISERROR(VLOOKUP(C7,'Startovní listina'!$B$5:$F$141,3)),"",VLOOKUP(C7,'Startovní listina'!$B$5:$F$141,3)) -> Marek | F7: =IF(ISERROR(VLOOKUP(C7,'Startovní listina'!$B$5:$F$141,4)),"",VLOOKUP(C7,'Startovní listina'!$B$5:$F$141,4)) -> 1971 | H7: 02:05:40 | K7: =IF(ISERROR(VLOOKUP(C7,'Startovní listina'!$B$5:$F$141,5)),"",VLOOKUP(C7,'Startovní listina'!$B$5:$F$141,5)) -> MK Seitl Ostrava
B8: 3. | C8: 9 | D8: =IF(ISERROR(VLOOKUP(C8,'Startovní listina'!$B$5:$F$141,2)),"",VLOOKUP(C8,'Startovní listina'!$B$5:$F$141,2)) -> Výtisk | E8: =IF(ISERROR(VLOOKUP(C8,'Startovní listina'!$B$5:$F$141,3)),"",VLOOKUP(C8,'Startovní listina'!$B$5:$F$141,3)) -> Alfons | F8: =IF(ISERROR(VLOOKUP(C8,'Startovní listina'!$B$5:$F$141,4)),"",VLOOKUP(C8,'Startovní listina'!$B$5:$F$141,4)) -> 1949 | G8: =IF(K8=K9,K8,"RŮZNÉ ODDÍLY !!!") -> MK Seitl Ostrava | H8: 02:40:16 | I8: =IF((H8=0),"",H8+H9) -> 05:12:53 | K8: =IF(ISERROR(VLOOKUP(C8,'Startovní listina'!$B$5:$F$141,5)),"",VLOOKUP(C8,'Startovní listina'!$B$5:$F$141,5)) -> MK Seitl Ostrava
C9: 10 | D9: =IF(ISERROR(VLOOKUP(C9,'Startovní listina'!$B$5:$F$141,2)),"",VLOOKUP(C9,'Startovní listina'!$B$5:$F$141,2)) -> Dvorský | E9: =IF(ISERROR(VLOOKUP(C9,'Startovní listina'!$B$5:$F$141,3)),"",VLOOKUP(C9,'Startovní listina'!$B$5:$F$141,3)) -> Ladislav | F9: =IF(ISERROR(VLOOKUP(C9,'Startovní listina'!$B$5:$F$141,4)),"",VLOOKUP(C9,'Startovní listina'!$B$5:$F$141,4)) -> 1965 | H9: 02:32:37 | K9: =IF(ISERROR(VLOOKUP(C9,'Startovní listina'!$B$5:$F$141,5)),"",VLOOKUP(C9,'Startovní listina'!$B$5:$F$141,5)) -> MK Seitl Ostrava
B10: 4. | C10: 23 | D10: =IF(ISERROR(VLOOKUP(C10,'Startovní listina'!$B$5:$F$141,2)),"",VLOOKUP(C10,'Startovní listina'!$B$5:$F$141,2)) -> Vašalovská | E10: =IF(ISERROR(VLOOKUP(C10,'Startovní listina'!$B$5:$F$141,3)),"",VLOOKUP(C10,'Startovní listina'!$B$5:$F$141,3)) -> Petra | F10: =IF(ISERROR(VLOOKUP(C10,'Startovní listina'!$B$5:$F$141,4)),"",VLOOKUP(C10,'Startovní listina'!$B$5:$F$141,4)) -> 1986 | G10: =IF(K10=K11,K10,"RŮZNÉ ODDÍLY !!!") -> Atletic Třebíč | H10: 03:04:10 | I10: =IF((H10=0),"",H10+H11) -> 06:10:48 | K10: =IF(ISERROR(VLOOKUP(C10,'Startovní listina'!$B$5:$F$141,5)),"",VLOOKUP(C10,'Startovní listina'!$B$5:$F$141,5)) -> Atletic Třebíč
C11: 24 | D11: =IF(ISERROR(VLOOKUP(C11,'Startovní listina'!$B$5:$F$141,2)),"",VLOOKUP(C11,'Startovní listina'!$B$5:$F$141,2)) -> Mahelová | E11: =IF(ISERROR(VLOOKUP(C11,'Startovní listina'!$B$5:$F$141,3)),"",VLOOKUP(C11,'Startovní listina'!$B$5:$F$141,3)) -> Jitka | F11: =IF(ISERROR(VLOOKUP(C11,'Startovní listina'!$B$5:$F$141,4)),"",VLOOKUP(C11,'Startovní listina'!$B$5:$F$141,4)) -> 1962 | H11: 03:06:38 | K11: =IF(ISERROR(VLOOKUP(C11,'Startovní listina'!$B$5:$F$141,5)),"",VLOOKUP(C11,'Startovní listina'!$B$5:$F$141,5)) -> Atletic Třebíč
B12: 5. | C12: 35 | D12: =IF(ISERROR(VLOOKUP(C12,'Startovní listina'!$B$5:$F$141,2)),"",VLOOKUP(C12,'Startovní listina'!$B$5:$F$141,2)) -> Krátká | E12: =IF(ISERROR(VLOOKUP(C12,'Startovní listina'!$B$5:$F$141,3)),"",VLOOKUP(C12,'Startovní listina'!$B$5:$F$141,3)) -> Anna | F12: =IF(ISERROR(VLOOKUP(C12,'Startovní listina'!$B$5:$F$141,4)),"",VLOOKUP(C12,'Startovní listina'!$B$5:$F$141,4)) -> 1969 | G12: =IF(K12=K13,K12,"RŮZNÉ ODDÍLY !!!") -> Hvězda SKP Pardubice | H12: 02:31:40 | I12: =IF((H12=0),"",H12+H13) -> 06:21:15 | K12: =IF(ISERROR(VLOOKUP(C12,'Startovní listina'!$B$5:$F$141,5)),"",VLOOKUP(C12,'Startovní listina'!$B$5:$F$141,5)) -> Hvězda SKP Pardubice
C13: 36 | D13: =IF(ISERROR(VLOOKUP(C13,'Startovní listina'!$B$5:$F$141,2)),"",VLOOKUP(C13,'Startovní listina'!$B$5:$F$141,2)) -> Krátký | E13: =IF(ISERROR(VLOOKUP(C13,'Startovní listina'!$B$5:$F$141,3)),"",VLOOKUP(C13,'Startovní listina'!$B$5:$F$141,3)) -> Josef | F13: =IF(ISERROR(VLOOKUP(C13,'Startovní listina'!$B$5:$F$141,4)),"",VLOOKUP(C13,'Startovní listina'!$B$5:$F$141,4)) -> 1965 | H13: 03:49:35 | K13: =IF(ISERROR(VLOOKUP(C13,'Startovní listina'!$B$5:$F$141,5)),"",VLOOKUP(C13,'Startovní listina'!$B$5:$F$141,5)) -> Hvězda SKP Pardubice
B14: 6. | C14: 82 | D14: =IF(ISERROR(VLOOKUP(C14,'Startovní listina'!$B$5:$F$141,2)),"",VLOOKUP(C14,'Startovní listina'!$B$5:$F$141,2)) -> Glier | E14: =IF(ISERROR(VLOOKUP(C14,'Startovní listina'!$B$5:$F$141,3)),"",VLOOKUP(C14,'Startovní listina'!$B$5:$F$141,3)) -> Michal | F14: =IF(ISERROR(VLOOKUP(C14,'Startovní listina'!$B$5:$F$141,4)),"",VLOOKUP(C14,'Startovní listina'!$B$5:$F$141,4)) -> 1982 | G14: =IF(K14=K15,K14,"RŮZNÉ ODDÍLY !!!") -> Moravská Slávia Brno | H14: 02:11:00 | I14: =IF((H14=0),"",H14+H15) -> 04:05:34 | K14: =IF(ISERROR(VLOOKUP(C14,'Startovní listina'!$B$5:$F$141,5)),"",VLOOKUP(C14,'Startovní listina'!$B$5:$F$141,5)) -> Moravská Slávia Brno
C15: 107 | D15: =IF(ISERROR(VLOOKUP(C15,'Startovní listina'!$B$5:$F$141,2)),"",VLOOKUP(C15,'Startovní listina'!$B$5:$F$141,2)) -> Orálek | E15: =IF(ISERROR(VLOOKUP(C15,'Startovní listina'!$B$5:$F$141,3)),"",VLOOKUP(C15,'Startovní listina'!$B$5:$F$141,3)) -> Daniel | F15: =IF(ISERROR(VLOOKUP(C15,'Startovní listina'!$B$5:$F$141,4)),"",VLOOKUP(C15,'Startovní listina'!$B$5:$F$141,4)) -> 1970 | H15: 01:54:34 | K15: =IF(ISERROR(VLOOKUP(C15,'Startovní listina'!$B$5:$F$141,5)),"",VLOOKUP(C15,'Startovní listina'!$B$5:$F$141,5)) -> Moravská Slávia Brno
B16: 7. | C16: 28 | D16: =IF(ISERROR(VLOOKUP(C16,'Startovní listina'!$B$5:$F$141,2)),"",VLOOKUP(C16,'Startovní listina'!$B$5:$F$141,2)) -> Kratochvíl | E16: =IF(ISERROR(VLOOKUP(C16,'Startovní listina'!$B$5:$F$141,3)),"",VLOOKUP(C16,'Startovní listina'!$B$5:$F$141,3)) -> Pavel | F16: =IF(ISERROR(VLOOKUP(C16,'Startovní listina'!$B$5:$F$141,4)),"",VLOOKUP(C16,'Startovní listina'!$B$5:$F$141,4)) -> 1960 | G16: =IF(K16=K17,K16,"RŮZNÉ ODDÍLY !!!") -> Atletic Třebíč | H16: 02:19:07 | I16: =IF((H16=0),"",H16+H17) -> 04:24:14 | K16: =IF(ISERROR(VLOOKUP(C16,'Startovní listina'!$B$5:$F$141,5)),"",VLOOKUP(C16,'Startovní listina'!$B$5:$F$141,5)) -> Atletic Třebíč
C17: 26 | D17: =IF(ISERROR(VLOOKUP(C17,'Startovní listina'!$B$5:$F$141,2)),"",VLOOKUP(C17,'Startovní listina'!$B$5:$F$141,2)) -> Nováček | E17: =IF(ISERROR(VLOOKUP(C17,'Startovní listina'!$B$5:$F$141,3)),"",VLOOKUP(C17,'Startovní listina'!$B$5:$F$141,3)) -> Tomáš | F17: =IF(ISERROR(VLOOKUP(C17,'Startovní listina'!$B$5:$F$141,4)),"",VLOOKUP(C17,'Startovní listina'!$B$5:$F$141,4)) -> 1983 | H17: 02:05:07 | K17: =IF(ISERROR(VLOOKUP(C17,'Startovní listina'!$B$5:$F$141,5)),"",VLOOKUP(C17,'Startovní listina'!$B$5:$F$141,5)) -> Atletic Třebíč
B18: 8. | D18: =IF(ISERROR(VLOOKUP(C18,'Startovní listina'!$B$5:$F$141,2)),"",VLOOKUP(C18,'Startovní listina'!$B$5:$F$141,2)) ->  | E18: =IF(ISERROR(VLOOKUP(C18,'Startovní listina'!$B$5:$F$141,3)),"",VLOOKUP(C18,'Startovní listina'!$B$5:$F$141,3)) ->  | F18: =IF(ISERROR(VLOOKUP(C18,'Startovní listina'!$B$5:$F$141,4)),"",VLOOKUP(C18,'Startovní listina'!$B$5:$F$141,4)) ->  | G18: =IF(K18=K19,K18,"RŮZNÉ ODDÍLY !!!") ->  | I18: =IF((H18=0),"",H18+H19) ->  | K18: =IF(ISERROR(VLOOKUP(C18,'Startovní listina'!$B$5:$F$141,5)),"",VLOOKUP(C18,'Startovní listina'!$B$5:$F$141,5)) -> 
D19: =IF(ISERROR(VLOOKUP(C19,'Startovní listina'!$B$5:$F$141,2)),"",VLOOKUP(C19,'Startovní listina'!$B$5:$F$141,2)) ->  | E19: =IF(ISERROR(VLOOKUP(C19,'Startovní listina'!$B$5:$F$141,3)),"",VLOOKUP(C19,'Startovní listina'!$B$5:$F$141,3)) ->  | F19: =IF(ISERROR(VLOOKUP(C19,'Startovní listina'!$B$5:$F$141,4)),"",VLOOKUP(C19,'Startovní listina'!$B$5:$F$141,4)) ->  | K19: =IF(ISERROR(VLOOKUP(C19,'Startovní listina'!$B$5:$F$141,5)),"",VLOOKUP(C19,'Startovní listina'!$B$5:$F$141,5)) -> 
B20: 9. | D20: =IF(ISERROR(VLOOKUP(C20,'Startovní listina'!$B$5:$F$141,2)),"",VLOOKUP(C20,'Startovní listina'!$B$5:$F$141,2)) ->  | E20: =IF(ISERROR(VLOOKUP(C20,'Startovní listina'!$B$5:$F$141,3)),"",VLOOKUP(C20,'Startovní listina'!$B$5:$F$141,3)) ->  | F20: =IF(ISERROR(VLOOKUP(C20,'Startovní listina'!$B$5:$F$141,4)),"",VLOOKUP(C20,'Startovní listina'!$B$5:$F$141,4)) ->  | G20: =IF(K20=K21,K20,"RŮZNÉ ODDÍLY !!!") ->  | I20: =IF((H20=0),"",H20+H21) ->  | K20: =IF(ISERROR(VLOOKUP(C20,'Startovní listina'!$B$5:$F$141,5)),"",VLOOKUP(C20,'Startovní listina'!$B$5:$F$141,5)) -> 
D21: =IF(ISERROR(VLOOKUP(C21,'Startovní listina'!$B$5:$F$141,2)),"",VLOOKUP(C21,'Startovní listina'!$B$5:$F$141,2)) ->  | E21: =IF(ISERROR(VLOOKUP(C21,'Startovní listina'!$B$5:$F$141,3)),"",VLOOKUP(C21,'Startovní listina'!$B$5:$F$141,3)) ->  | F21: =IF(ISERROR(VLOOKUP(C21,'Startovní listina'!$B$5:$F$141,4)),"",VLOOKUP(C21,'Startovní listina'!$B$5:$F$141,4)) ->  | K21: =IF(ISERROR(VLOOKUP(C21,'Startovní listina'!$B$5:$F$141,5)),"",VLOOKUP(C21,'Startovní listina'!$B$5:$F$141,5)) -> 

Sheet Výsledková listina (2) (hidden)
A1: ="Výsledková listina - Malý svratecký maraton "&'Prezenční listina'!O2 -> Výsledková listina - Malý svratecký maraton 2015
A2: 2015-08-22 | K2: Poté, co jsou dopsány časy VŠECH běžců, stisknout tlačítko 1.řazení Ve sloupci B (Pořadí v kategorii) vytvořit posloupnou číselnou řadu pro každou kategorii a poté stisknout tlačítko 2.řazení !!! POZOR!!! Použití tlačítek je nevratný krok!
A3: ='Prezenční listina'!O2-1953&". ročník" -> 62. ročník
A4: Celkové pořadí | B4: Pořadí v kategorii | C4: Kategorie | D4: Startovní číslo | E4: Příjmení | F4: Jméno | G4: Narození | H4: Oddíl / Bydliště | I4: Čas
A5: 1 | B5: 1 | C5: ='Startovní listina'!G47 -> B | D5: ='Startovní listina'!B47 -> 48 | E5: ='Startovní listina'!C47 -> Alman | F5: ='Startovní listina'!D47 -> Dušan | G5: ='Startovní listina'!E47 -> 1967 | H5: ='Startovní listina'!F47 -> Babice | I5: 02:19:48
A6: =IF('Výsledková listina (2)'!D5<>"",A5+1,"") -> 2 | C6: ='Startovní listina'!G71 -> C | D6: ='Startovní listina'!B71 -> 77 | E6: ='Startovní listina'!C71 -> Barták | F6: ='Startovní listina'!D71 -> Roland | G6: ='Startovní listina'!E71 -> 1965 | H6: ='Startovní listina'!F71 -> Kuřim | I6: 02:47:00
A7: =IF('Výsledková listina (2)'!D6<>"",A6+1,"") -> 3 | C7: ='Startovní listina'!G5 -> C | D7: ='Startovní listina'!B5 -> 1 | E7: ='Startovní listina'!C5 -> Bečička | F7: ='Startovní listina'!D5 -> Petr | G7: ='Startovní listina'!E5 -> 1960 | H7: ='Startovní listina'!F5 -> HAL 3000 Brno | I7: 03:02:17
A8: =IF('Výsledková listina (2)'!D7<>"",A7+1,"") -> 4 | C8: ='Startovní listina'!G85 -> B | D8: ='Startovní listina'!B85 -> 94 | E8: ='Startovní listina'!C85 -> Benc | F8: ='Startovní listina'!D85 -> Karel | G8: ='Startovní listina'!E85 -> 1975 | H8: ='Startovní listina'!F85 -> Pivonice | I8: 03:28:11
A9: =IF('Výsledková listina (2)'!D8<>"",A8+1,"") -> 5 | C9: ='Startovní listina'!G59 -> C | D9: ='Startovní listina'!B59 -> 61 | E9: ='Startovní listina'!C59 -> Bezrouk | F9: ='Startovní listina'!D59 -> Jiří | G9: ='Startovní listina'!E59 -> 1962 | H9: ='Startovní listina'!F59 -> Křtiny | I9: 02:23:11
A10: =IF('Výsledková listina (2)'!D9<>"",A9+1,"") -> 6 | C10: ='Startovní listina'!G46 -> D | D10: ='Startovní listina'!B46 -> 47 | E10: ='Startovní listina'!C46 -> Boháč | F10: ='Startovní listina'!D46 -> Jiří | G10: ='Startovní listina'!E46 -> 1954 | H10: ='Startovní listina'!F46 -> Běhej Brno com | I10: 02:50:33
A11: =IF('Výsledková listina (2)'!D10<>"",A10+1,"") -> 7 | C11: ='Startovní listina'!G28 -> A | D11: ='Startovní listina'!B28 -> 27 | E11: ='Startovní listina'!C28 -> Bohuslav | F11: ='Startovní listina'!D28 -> Martin | G11: ='Startovní listina'!E28 -> 1987 | H11: ='Startovní listina'!F28 -> Atletic Třebíč | I11: 02:26:07
A12: =IF('Výsledková listina (2)'!D11<>"",A11+1,"") -> 8 | C12: ='Startovní listina'!G67 -> A | D12: ='Startovní listina'!B67 -> 73 | E12: ='Startovní listina'!C67 -> Brabenec | F12: ='Startovní listina'!D67 -> Aleš | G12: ='Startovní listina'!E67 -> 1987 | H12: ='Startovní listina'!F67 -> Žďár nad Sázavou | I12: 02:34:42
A13: =IF('Výsledková listina (2)'!D12<>"",A12+1,"") -> 9 | C13: ='Startovní listina'!G68 -> C | D13: ='Startovní listina'!B68 -> 74 | E13: ='Startovní listina'!C68 -> Brabenec | F13: ='Startovní listina'!D68 -> Miroslav | G13: ='Startovní listina'!E68 -> 1959 | H13: ='Startovní listina'!F68 -> Žďár nad Sázavou | I13: 02:42:43
A14: =IF('Výsledková listina (2)'!D13<>"",A13+1,"") -> 10 | C14: ='Startovní listina'!G62 -> B | D14: ='Startovní listina'!B62 -> 64 | E14: ='Startovní listina'!C62 -> Cechmaister | F14: ='Startovní listina'!D62 -> Bohumil | G14: ='Startovní listina'!E62 -> 1974 | H14: ='Startovní listina'!F62 -> Sokol Přísnotice | I14: 02:42:35
A15: =IF('Výsledková listina (2)'!D14<>"",A14+1,"") -> 11 | C15: ='Startovní listina'!G55 -> C | D15: ='Startovní listina'!B55 -> 57 | E15: ='Startovní listina'!C55 -> Češner | F15: ='Startovní listina'!D55 -> Vladimír | G15: ='Startovní listina'!E55 -> 1958 | H15: ='Startovní listina'!F55 -> Odolena Voda | I15: 02:40:36
A16: =IF('Výsledková listina (2)'!D15<>"",A15+1,"") -> 12 | C16: ='Startovní listina'!G60 -> C | D16: ='Startovní listina'!B60 -> 62 | E16: ='Startovní listina'!C60 -> Čuhel | F16: ='Startovní listina'!D60 -> Jiří | G16: ='Startovní listina'!E60 -> 1958 | H16: ='Startovní listina'!F60 -> Křtěnov | I16: 02:38:54
A17: =IF('Výsledková listina (2)'!D16<>"",A16+1,"") -> 13 | C17: ='Startovní listina'!G7 -> F | D17: ='Startovní listina'!B7 -> 3 | E17: ='Startovní listina'!C7 -> Dostálová | F17: ='Startovní listina'!D7 -> Vendula | G17: ='Startovní listina'!E7 -> 1981 | H17: ='Startovní listina'!F7 -> HAL 3000 Brno | I17: 03:07:50
A18: =IF('Výsledková listina (2)'!D17<>"",A17+1,"") -> 14 | C18: ='Startovní listina'!G63 -> A | D18: ='Startovní listina'!B63 -> 67 | E18: ='Startovní listina'!C63 -> Dubský | F18: ='Startovní listina'!D63 -> Roman | G18: ='Startovní listina'!E63 -> 1978 | H18: ='Startovní listina'!F63 -> SK Přibyslav | I18: 02:39:15
A19: =IF('Výsledková listina (2)'!D18<>"",A18+1,"") -> 15 | C19: ='Startovní listina'!G49 -> B | D19: ='Startovní listina'!B49 -> 50 | E19: ='Startovní listina'!C49 -> Dušil | F19: ='Startovní listina'!D49 -> Jaroslav | G19: ='Startovní listina'!E49 -> 1970 | H19: ='Startovní listina'!F49 -> Brno | I19: 02:13:13
A20: =IF('Výsledková listina (2)'!D19<>"",A19+1,"") -> 16 | C20: ='Startovní listina'!G14 -> C | D20: ='Startovní listina'!B14 -> 10 | E20: ='Startovní listina'!C14 -> Dvorský | F20: ='Startovní listina'!D14 -> Ladislav | G20: ='Startovní listina'!E14 -> 1965 | H20: ='Startovní listina'!F14 -> MK Seitl Ostrava | I20: 02:32:37
A21: =IF('Výsledková listina (2)'!D20<>"",A20+1,"") -> 17 | C21: ='Startovní listina'!G42 -> B | D21: ='Startovní listina'!B42 -> 43 | E21: ='Startovní listina'!C42 -> Dvořák | F21: ='Startovní listina'!D42 -> Vojtěch | G21: ='Startovní listina'!E42 -> 1974 | H21: ='Startovní listina'!F42 -> Brno | I21: 02:49:46
A22: =IF('Výsledková listina (2)'!D22<>"",A21+1,"") -> 18 | C22: ='Startovní listina'!G79 -> F | D22: ='Startovní listina'!B79 -> 87 | E22: ='Startovní listina'!C79 -> Dýrová Macháčková | F22: ='Startovní listina'!D79 -> Šárka | G22: ='Startovní listina'!E79 -> 1983 | H22: ='Startovní listina'!F79 -> Mizunoteam Brno | I22: 02:13:29
A23: =IF('Výsledková listina (2)'!D21<>"",A22+1,"") -> 19 | C23: ='Startovní listina'!G15 -> A | D23: ='Startovní listina'!B15 -> 11 | E23: ='Startovní listina'!C15 -> Fousek | F23: ='Startovní listina'!D15 -> Jan | G23: ='Startovní listina'!E15 -> 1991 | H23: ='Startovní listina'!F15 -> MK Seitl Ostrava | I23: 02:01:16
A24: =IF('Výsledková listina (2)'!D23<>"",A23+1,"") -> 20 | C24: ='Startovní listina'!G91 -> B | D24: ='Startovní listina'!B91 -> 100 | E24: ='Startovní listina'!C91 -> Fučík | F24: ='Startovní listina'!D91 -> Jaroslav | G24: ='Startovní listina'!E91 -> 1974 | H24: ='Startovní listina'!F91 -> Prosetín | I24: 02:30:31
A25: =IF('Výsledková listina (2)'!D24<>"",A24+1,"") -> 21 | C25: ='Startovní listina'!G74 -> A | D25: ='Startovní listina'!B74 -> 82 | E25: ='Startovní listina'!C74 -> Glier | F25: ='Startovní listina'!D74 -> Michal | G25: ='Startovní listina'!E74 -> 1982 | H25: ='Startovní listina'!F74 -> Moravská Slávia Brno | I25: 02:11:00
A26: =IF('Výsledková listina (2)'!D25<>"",A25+1,"") -> 22 | C26: ='Startovní listina'!G44 -> A | D26: ='Startovní listina'!B44 -> 45 | E26: ='Startovní listina'!C44 -> Hakl | F26: ='Startovní listina'!D44 -> Martin | G26: ='Startovní listina'!E44 -> 1987 | H26: ='Startovní listina'!F44 -> Running with Those that Carit | I26: 03:10:37
A27: =IF('Výsledková listina (2)'!D26<>"",A26+1,"") -> 23 | C27: ='Startovní listina'!G84 -> B | D27: ='Startovní listina'!B84 -> 93 | E27: ='Startovní listina'!C84 -> Havlíček | F27: ='Startovní listina'!D84 -> Ivo | G27: ='Startovní listina'!E84 -> 1966 | H27: ='Startovní listina'!F84 -> Lánov - Krkonoše | I27: 02:28:22
A28: =IF('Výsledková listina (2)'!D27<>"",A27+1,"") -> 24 | C28: ='Startovní listina'!G87 -> B | D28: ='Startovní listina'!B87 -> 96 | E28: ='Startovní listina'!C87 -> Hladký | F28: ='Startovní listina'!D87 -> Jiří | G28: ='Startovní listina'!E87 -> 1975 | H28: ='Startovní listina'!F87 -> Brno - Nový Lískovec | I28: 02:29:21
A29: =IF('Výsledková listina (2)'!D28<>"",A28+1,"") -> 25 | C29: ='Startovní listina'!G75 -> B | D29: ='Startovní listina'!B75 -> 83 | E29: ='Startovní listina'!C75 -> Holoubek | F29: ='Startovní listina'!D75 -> Jindřich | G29: ='Startovní listina'!E75 -> 1968 | H29: ='Startovní listina'!F75 -> Brno | I29: 03:01:37
A30: =IF('Výsledková listina (2)'!D29<>"",A29+1,"") -> 26 | C30: ='Startovní listina'!G18 -> E | D30: ='Startovní listina'!B18 -> 14 | E30: ='Startovní listina'!C18 -> Holý | F30: ='Startovní listina'!D18 -> Josef | G30: ='Startovní listina'!E18 -> 1941 | H30: ='Startovní listina'!F18 -> Moravská Slávia Brno
A31: =IF('Výsledková listina (2)'!D30<>"",A30+1,"") -> 27 | C31: ='Startovní listina'!G41 -> B | D31: ='Startovní listina'!B41 -> 42 | E31: ='Startovní listina'!C41 -> Horný | F31: ='Startovní listina'!D41 -> Pavel | G31: ='Startovní listina'!E41 -> 1973 | H31: ='Startovní listina'!F41 -> VHT Přerov | I31: 02:16:46
A32: =IF('Výsledková listina (2)'!D31<>"",A31+1,"") -> 28 | C32: ='Startovní listina'!G23 -> E | D32: ='Startovní listina'!B23 -> 21 | E32: ='Startovní listina'!C23 -> Hrubý | F32: ='Startovní listina'!D23 -> Milan | G32: ='Startovní listina'!E23 -> 1938 | H32: ='Startovní listina'!F23 -> Blansko
A33: =IF('Výsledková listina (2)'!D32<>"",A32+1,"") -> 29 | C33: ='Startovní listina'!G57 -> A | D33: ='Startovní listina'!B57 -> 59 | E33: ='Startovní listina'!C57 -> Hübner | F33: ='Startovní listina'!D57 -> Jan | G33: ='Startovní listina'!E57 -> 1978 | H33: ='Startovní listina'!F57 -> SDH Bolešín | I33: 02:42:39
A34: =IF('Výsledková listina (2)'!D33<>"",A33+1,"") -> 30 | C34: ='Startovní listina'!G40 -> B | D34: ='Startovní listina'!B40 -> 41 | E34: ='Startovní listina'!C40 -> Hýbl | F34: ='Startovní listina'!D40 -> Jiří | G34: ='Startovní listina'!E40 -> 1967 | H34: ='Startovní listina'!F40 -> Hrušovany u Brna | I34: 02:10:10
A35: =IF('Výsledková listina (2)'!D34<>"",A34+1,"") -> 31 | C35: ='Startovní listina'!G9 -> B | D35: ='Startovní listina'!B9 -> 5 | E35: ='Startovní listina'!C9 -> Chramosta | F35: ='Startovní listina'!D9 -> Jaroslav | G35: ='Startovní listina'!E9 -> 1966 | H35: ='Startovní listina'!F9 -> JABOJA Team Děčín | I35: 02:05:55
A36: =IF('Výsledková listina (2)'!D35<>"",A35+1,"") -> 32 | C36: ='Startovní listina'!G77 -> B | D36: ='Startovní listina'!B77 -> 85 | E36: ='Startovní listina'!C77 -> Jaskulka | F36: ='Startovní listina'!D77 -> Martin | G36: ='Startovní listina'!E77 -> 1968 | H36: ='Startovní listina'!F77 -> Kuřim
A37: =IF('Výsledková listina (2)'!D36<>"",A36+1,"") -> 33 | C37: ='Startovní listina'!G81 -> G | D37: ='Startovní listina'!B81 -> 90 | E37: ='Startovní listina'!C81 -> Ježová | F37: ='Startovní listina'!D81 -> Martina | G37: ='Startovní listina'!E81 -> 1975 | H37: ='Startovní listina'!F81 -> Brno | I37: 03:24:59
A38: =IF('Výsledková listina (2)'!D37<>"",A37+1,"") -> 34 | C38: ='Startovní listina'!G54 -> F | D38: ='Startovní listina'!B54 -> 56 | E38: ='Startovní listina'!C54 -> Johaníková | F38: ='Startovní listina'!D54 -> Lucie | G38: ='Startovní listina'!E54 -> 1986 | H38: ='Startovní listina'!F54 -> Moravská Slávia Brno | I38: 02:37:38
A39: =IF('Výsledková listina (2)'!D38<>"",A38+1,"") -> 35 | C39: ='Startovní listina'!G94 -> B | D39: ='Startovní listina'!B94 -> 103 | E39: ='Startovní listina'!C94 -> Junga | F39: ='Startovní listina'!D94 -> Stanislav | G39: ='Startovní listina'!E94 -> 1971 | H39: ='Startovní listina'!F94 -> Újezd u Brna | I39: 03:13:50
A40: =IF('Výsledková listina (2)'!D39<>"",A39+1,"") -> 36 | C40: ='Startovní listina'!G20 -> A | D40: ='Startovní listina'!B20 -> 17 | E40: ='Startovní listina'!C20 -> Kameníček | F40: ='Startovní listina'!D20 -> Michal | G40: ='Startovní listina'!E20 -> 1986 | H40: ='Startovní listina'!F20 -> Vinařice | I40: 02:43:21
A41: =IF('Výsledková listina (2)'!D40<>"",A40+1,"") -> 37 | C41: ='Startovní listina'!G19 -> H | D41: ='Startovní listina'!B19 -> 16 | E41: ='Startovní listina'!C19 -> Kameníčková | F41: ='Startovní listina'!D19 -> Veronika | G41: ='Startovní listina'!E19 -> 1966 | H41: ='Startovní listina'!F19 -> Vinařice | I41: 03:01:04
A42: =IF('Výsledková listina (2)'!D41<>"",A41+1,"") -> 38 | C42: ='Startovní listina'!G69 -> D | D42: ='Startovní listina'!B69 -> 75 | E42: ='Startovní listina'!C69 -> Kaše | F42: ='Startovní listina'!D69 -> Jaroslav | G42: ='Startovní listina'!E69 -> 1953 | H42: ='Startovní listina'!F69 -> Club běžeckých outsiderů | I42: DNF
A43: =IF('Výsledková listina (2)'!D42<>"",A42+1,"") -> 39 | C43: ='Startovní listina'!G38 -> A | D43: ='Startovní listina'!B38 -> 38 | E43: ='Startovní listina'!C38 -> Kocur | F43: ='Startovní listina'!D38 -> Lukáš | G43: ='Startovní listina'!E38 -> 1977 | H43: ='Startovní listina'!F38 -> VHS Brno | I43: 02:26:38
A44: =IF('Výsledková listina (2)'!D43<>"",A43+1,"") -> 40 | C44: ='Startovní listina'!G80 -> D | D44: ='Startovní listina'!B80 -> 89 | E44: ='Startovní listina'!C80 -> Kohoutek | F44: ='Startovní listina'!D80 -> Jaromír | G44: ='Startovní listina'!E80 -> 1955 | H44: ='Startovní listina'!F80 -> Brno | I44: 02:45:32
A45: =IF('Výsledková listina (2)'!D44<>"",A44+1,"") -> 41 | C45: ='Startovní listina'!G53 -> A | D45: ='Startovní listina'!B53 -> 55 | E45: ='Startovní listina'!C53 -> Kolman | F45: ='Startovní listina'!D53 -> Jakub | G45: ='Startovní listina'!E53 -> 1976 | H45: ='Startovní listina'!F53 -> Posilovna Průvan | I45: 02:46:25
A46: =IF('Výsledková listina (2)'!D45<>"",A45+1,"") -> 42 | C46: ='Startovní listina'!G11 -> G | D46: ='Startovní listina'!B11 -> 7 | E46: ='Startovní listina'!C11 -> Komárková | F46: ='Startovní listina'!D11 -> Zdeňka | G46: ='Startovní listina'!E11 -> 1974 | H46: ='Startovní listina'!F11 -> SDH Bolešín | I46: 02:45:37
A47: =IF('Výsledková listina (2)'!D46<>"",A46+1,"") -> 43 | C47: ='Startovní listina'!G89 -> B | D47: ='Startovní listina'!B89 -> 98 | E47: ='Startovní listina'!C89 -> Konečný | F47: ='Startovní listina'!D89 -> Libor | G47: ='Startovní listina'!E89 -> 1971 | H47: ='Startovní listina'!F89 -> Kuřim | I47: 02:23:07
A48: =IF('Výsledková listina (2)'!D47<>"",A47+1,"") -> 44 | C48: ='Startovní listina'!G93 -> B | D48: ='Startovní listina'!B93 -> 102 | E48: ='Startovní listina'!C93 -> Konečný | F48: ='Startovní listina'!D93 -> Jaroslav | G48: ='Startovní listina'!E93 -> 1969 | H48: ='Startovní listina'!F93 -> Popůvky
A49: =IF('Výsledková listina (2)'!D48<>"",A48+1,"") -> 45 | C49: ='Startovní listina'!G78 -> A | D49: ='Startovní listina'!B78 -> 86 | E49: ='Startovní listina'!C78 -> Kosmák | F49: ='Startovní listina'!D78 -> Václav | G49: ='Startovní listina'!E78 -> 1983 | H49: ='Startovní listina'!F78 -> Brno | I49: 02:49:04
A50: =IF('Výsledková listina (2)'!D49<>"",A49+1,"") -> 46 | C50: ='Startovní listina'!G35 -> H | D50: ='Startovní listina'!B35 -> 35 | E50: ='Startovní listina'!C35 -> Krátká | F50: ='Startovní listina'!D35 -> Anna | G50: ='Startovní listina'!E35 -> 1969 | H50: ='Startovní listina'!F35 -> Hvězda SKP Pardubice | I50: 02:31:40
A51: =IF('Výsledková listina (2)'!D50<>"",A50+1,"") -> 47 | C51: ='Startovní listina'!G36 -> C | D51: ='Startovní listina'!B36 -> 36 | E51: ='Startovní listina'!C36 -> Krátký | F51: ='Startovní listina'!D36 -> Josef | G51: ='Startovní listina'!E36 -> 1965 | H51: ='Startovní listina'!F36 -> Hvězda SKP Pardubice
A52: =IF('Výsledková listina (2)'!D51<>"",A51+1,"") -> 48 | C52: ='Startovní listina'!G29 -> C | D52: ='Startovní listina'!B29 -> 28 | E52: ='Startovní listina'!C29 -> Kratochvíl | F52: ='Startovní listina'!D29 -> Pavel | G52: ='Startovní listina'!E29 -> 1960 | H52: ='Startovní listina'!F29 -> Atletic Třebíč | I52: 02:19:07
A53: =IF('Výsledková listina (2)'!D52<>"",A52+1,"") -> 49 | C53: ='Startovní listina'!G86 -> A | D53: ='Startovní listina'!B86 -> 95 | E53: ='Startovní listina'!C86 -> Kratochvíl | F53: ='Startovní listina'!D86 -> Jaroslav | G53: ='Startovní listina'!E86 -> 1977 | H53: ='Startovní listina'!F86 -> SDH Hluboké | I53: 02:21:00
A54: =IF('Výsledková listina (2)'!D53<>"",A53+1,"") -> 50 | C54: ='Startovní listina'!G17 -> C | D54: ='Startovní listina'!B17 -> 13 | E54: ='Startovní listina'!C17 -> Kresta | F54: ='Startovní listina'!D17 -> Roman | G54: ='Startovní listina'!E17 -> 1965 | H54: ='Startovní listina'!F17 -> Brno | I54: 03:06:22
A55: =IF('Výsledková listina (2)'!D54<>"",A54+1,"") -> 51 | C55: ='Startovní listina'!G37 -> B | D55: ='Startovní listina'!B37 -> 37 | E55: ='Startovní listina'!C37 -> Kropáček | F55: ='Startovní listina'!D37 -> Jaroslav | G55: ='Startovní listina'!E37 -> 1970 | H55: ='Startovní listina'!F37 -> Brno | I55: 02:32:28
A56: =IF('Výsledková listina (2)'!D55<>"",A55+1,"") -> 52 | C56: ='Startovní listina'!G32 -> A | D56: ='Startovní listina'!B32 -> 31 | E56: ='Startovní listina'!C32 -> Kryštof | F56: ='Startovní listina'!D32 -> Ondřej | G56: ='Startovní listina'!E32 -> 1976 | H56: ='Startovní listina'!F32 -> Jiskra Vír | I56: 02:59:30
A57: =IF('Výsledková listina (2)'!D56<>"",A56+1,"") -> 53 | C57: ='Startovní listina'!G58 -> A | D57: ='Startovní listina'!B58 -> 60 | E57: ='Startovní listina'!C58 -> Kupidlovský | F57: ='Startovní listina'!D58 -> Daniel | G57: ='Startovní listina'!E58 -> 1976 | H57: ='Startovní listina'!F58 -> Stodůlky | I57: 02:07:54
A58: =IF('Výsledková listina (2)'!D57<>"",A57+1,"") -> 54 | C58: ='Startovní listina'!G26 -> H | D58: ='Startovní listina'!B26 -> 24 | E58: ='Startovní listina'!C26 -> Mahelová | F58: ='Startovní listina'!D26 -> Jitka | G58: ='Startovní listina'!E26 -> 1962 | H58: ='Startovní listina'!F26 -> Atletic Třebíč | I58: 03:06:38
A59: =IF('Výsledková listina (2)'!D58<>"",A58+1,"") -> 55 | C59: ='Startovní listina'!G52 -> D | D59: ='Startovní listina'!B52 -> 54 | E59: ='Startovní listina'!C52 -> Mareš | F59: ='Startovní listina'!D52 -> Bohumil | G59: ='Startovní listina'!E52 -> 1951 | H59: ='Startovní listina'!F52 -> LEAR Brno | I59: 03:14:48
A60: =IF('Výsledková listina (2)'!D59<>"",A59+1,"") -> 56 | C60: ='Startovní listina'!G66 -> A | D60: ='Startovní listina'!B66 -> 72 | E60: ='Startovní listina'!C66 -> Mička | F60: ='Startovní listina'!D66 -> Michal | G60: ='Startovní listina'!E66 -> 1987 | H60: ='Startovní listina'!F66 -> Žďár nad Sázavou | I60: 02:46:48
A61: =IF('Výsledková listina (2)'!D60<>"",A60+1,"") -> 57 | C61: ='Startovní listina'!G31 -> A | D61: ='Startovní listina'!B31 -> 30 | E61: ='Startovní listina'!C31 -> Mikeš | F61: ='Startovní listina'!D31 -> Petr | G61: ='Startovní listina'!E31 -> 1977 | H61: ='Startovní listina'!F31 -> Vyškovec | I61: 02:38:44
A62: =IF('Výsledková listina (2)'!D61<>"",A61+1,"") -> 58 | C62: ='Startovní listina'!G92 -> A | D62: ='Startovní listina'!B92 -> 101 | E62: ='Startovní listina'!C92 -> Milka | F62: ='Startovní listina'!D92 -> Zdeněk | G62: ='Startovní listina'!E92 -> 1984 | H62: ='Startovní listina'!F92 -> Brno | I62: 03:04:27
A63: =IF('Výsledková listina (2)'!D62<>"",A62+1,"") -> 59 | C63: ='Startovní listina'!G45 -> B | D63: ='Startovní listina'!B45 -> 46 | E63: ='Startovní listina'!C45 -> Münster | F63: ='Startovní listina'!D45 -> Libor | G63: ='Startovní listina'!E45 -> 1966 | H63: ='Startovní listina'!F45 -> Blansko | I63: 03:21:11
A64: =IF('Výsledková listina (2)'!D63<>"",A63+1,"") -> 60 | C64: ='Startovní listina'!G34 -> C | D64: ='Startovní listina'!B34 -> 34 | E64: ='Startovní listina'!C34 -> Navrátil | F64: ='Startovní listina'!D34 -> Petr | G64: ='Startovní listina'!E34 -> 1963 | H64: ='Startovní listina'!F34 -> Rožná | I64: 03:00:59
A65: =IF('Výsledková listina (2)'!D64<>"",A64+1,"") -> 61 | C65: ='Startovní listina'!G8 -> F | D65: ='Startovní listina'!B8 -> 4 | E65: ='Startovní listina'!C8 -> Navrátilová | F65: ='Startovní listina'!D8 -> Vlasta | G65: ='Startovní listina'!E8 -> 1983 | H65: ='Startovní listina'!F8 -> Vír | I65: 03:30:08
A66: =IF('Výsledková listina (2)'!D65<>"",A65+1,"") -> 62 | C66: ='Startovní listina'!G73 -> D | D66: ='Startovní listina'!B73 -> 80 | E66: ='Startovní listina'!C73 -> Nekuža | F66: ='Startovní listina'!D73 -> Jiří | G66: ='Startovní listina'!E73 -> 1951 | H66: ='Startovní listina'!F73 -> RUNNERS Zbýšov | I66: 03:01:32
A67: =IF('Výsledková listina (2)'!D66<>"",A66+1,"") -> 63 | C67: ='Startovní listina'!G27 -> A | D67: ='Startovní listina'!B27 -> 26 | E67: ='Startovní listina'!C27 -> Nováček | F67: ='Startovní listina'!D27 -> Tomáš | G67: ='Startovní listina'!E27 -> 1983 | H67: ='Startovní listina'!F27 -> Atletic Třebíč | I67: 02:05:07
A68: =IF('Výsledková listina (2)'!D67<>"",A67+1,"") -> 64 | C68: ='Startovní listina'!G70 -> C | D68: ='Startovní listina'!B70 -> 76 | E68: ='Startovní listina'!C70 -> Novotný | F68: ='Startovní listina'!D70 -> Petr | G68: ='Startovní listina'!E70 -> 1965 | H68: ='Startovní listina'!F70 -> Kuřim | I68: 02:57:35
A69: =IF('Výsledková listina (2)'!D68<>"",A68+1,"") -> 65 | C69: ='Startovní listina'!G51 -> A | D69: ='Startovní listina'!B51 -> 53 | E69: ='Startovní listina'!C51 -> Očenášek | F69: ='Startovní listina'!D51 -> Zdeněk | G69: ='Startovní listina'!E51 -> 1976 | H69: ='Startovní listina'!F51 -> Brno | I69: 02:19:36
A70: =IF('Výsledková listina (2)'!D69<>"",A69+1,"") -> 66 | C70: ='Startovní listina'!G98 -> B | D70: ='Startovní listina'!B98 -> 107 | E70: ='Startovní listina'!C98 -> Orálek | F70: ='Startovní listina'!D98 -> Daniel | G70: ='Startovní listina'!E98 -> 1970 | H70: ='Startovní listina'!F98 -> Moravská Slávia Brno | I70: 01:54:34
A71: =IF('Výsledková listina (2)'!D70<>"",A70+1,"") -> 67 | C71: ='Startovní listina'!G50 -> F | D71: ='Startovní listina'!B50 -> 51 | E71: ='Startovní listina'!C50 -> Pešáková | F71: ='Startovní listina'!D50 -> Mirka | G71: ='Startovní listina'!E50 -> 1985 | H71: ='Startovní listina'!F50 -> AK RACERS Tetčice | I71: 02:21:57
A72: =IF('Výsledková listina (2)'!D71<>"",A71+1,"") -> 68 | C72: ='Startovní listina'!G21 -> F | D72: ='Startovní listina'!B21 -> 18 | E72: ='Startovní listina'!C21 -> Peštuková | F72: ='Startovní listina'!D21 -> Ivana | G72: ='Startovní listina'!E21 -> 1990 | H72: ='Startovní listina'!F21 -> Vinařice
A73: =IF('Výsledková listina (2)'!D72<>"",A72+1,"") -> 69 | C73: ='Startovní listina'!G6 -> A | D73: ='Startovní listina'!B6 -> 2 | E73: ='Startovní listina'!C6 -> Pivec | F73: ='Startovní listina'!D6 -> Jan | G73: ='Startovní listina'!E6 -> 1981 | H73: ='Startovní listina'!F6 -> HAL 3000 Brno | I73: 02:40:25
A74: =IF('Výsledková listina (2)'!D73<>"",A73+1,"") -> 70 | C74: ='Startovní listina'!G48 -> B | D74: ='Startovní listina'!B48 -> 49 | E74: ='Startovní listina'!C48 -> Plekanec | F74: ='Startovní listina'!D48 -> Juraj | G74: ='Startovní listina'!E48 -> 1974 | H74: ='Startovní listina'!F48 -> Brno | I74: 02:21:35
A75: =IF('Výsledková listina (2)'!D74<>"",A74+1,"") -> 71 | C75: ='Startovní listina'!G97 -> H | D75: ='Startovní listina'!B97 -> 106 | E75: ='Startovní listina'!C97 -> Podmelová | F75: ='Startovní listina'!D97 -> Vilma | G75: ='Startovní listina'!E97 -> 1962 | H75: ='Startovní listina'!F97 -> Moravská Slávia Brno | I75: 03:14:54
A76: =IF('Výsledková listina (2)'!D75<>"",A75+1,"") -> 72 | C76: ='Startovní listina'!G22 -> A | D76: ='Startovní listina'!B22 -> 19 | E76: ='Startovní listina'!C22 -> Pokorný | F76: ='Startovní listina'!D22 -> Václav | G76: ='Startovní listina'!E22 -> 1978 | H76: ='Startovní listina'!F22 -> Brno | I76: 02:25:09
A77: =IF('Výsledková listina (2)'!D76<>"",A76+1,"") -> 73 | C77: ='Startovní listina'!G82 -> A | D77: ='Startovní listina'!B82 -> 91 | E77: ='Startovní listina'!C82 -> Poneš | F77: ='Startovní listina'!D82 -> Pavel | G77: ='Startovní listina'!E82 -> 1978 | H77: ='Startovní listina'!F82 -> TK SOKOLI Brno | I77: 02:50:59
A78: =IF('Výsledková listina (2)'!D77<>"",A77+1,"") -> 74 | C78: ='Startovní listina'!G96 -> A | D78: ='Startovní listina'!B96 -> 105 | E78: ='Startovní listina'!C96 -> Procházka | F78: ='Startovní listina'!D96 -> Pavel | G78: ='Startovní listina'!E96 -> 1988 | H78: ='Startovní listina'!F96 -> Bystřice nad Pernštejnem | I78: 03:12:26
A79: =IF('Výsledková listina (2)'!D78<>"",A78+1,"") -> 75 | C79: ='Startovní listina'!G30 -> B | D79: ='Startovní listina'!B30 -> 29 | E79: ='Startovní listina'!C30 -> Provazník | F79: ='Startovní listina'!D30 -> Milan | G79: ='Startovní listina'!E30 -> 1966 | H79: ='Startovní listina'!F30 -> Polička | I79: 02:37:53
A80: =IF('Výsledková listina (2)'!D79<>"",A79+1,"") -> 76 | C80: ='Startovní listina'!G64 -> F | D80: ='Startovní listina'!B64 -> 69 | E80: ='Startovní listina'!C64 -> Rokosová | F80: ='Startovní listina'!D64 -> Ivana | G80: ='Startovní listina'!E64 -> 1982 | H80: ='Startovní listina'!F64 -> Polička | I80: 03:18:47
A81: =IF('Výsledková listina (2)'!D80<>"",A80+1,"") -> 77 | C81: ='Startovní listina'!G39 -> B | D81: ='Startovní listina'!B39 -> 40 | E81: ='Startovní listina'!C39 -> Ryška | F81: ='Startovní listina'!D39 -> Vít | G81: ='Startovní listina'!E39 -> 1975 | H81: ='Startovní listina'!F39 -> VSK Univerzita Brno | I81: 02:07:35
A82: =IF('Výsledková listina (2)'!D81<>"",A81+1,"") -> 78 | C82: ='Startovní listina'!G56 -> A | D82: ='Startovní listina'!B56 -> 58 | E82: ='Startovní listina'!C56 -> Řezníček | F82: ='Startovní listina'!D56 -> Roman | G82: ='Startovní listina'!E56 -> 1977 | H82: ='Startovní listina'!F56 -> Žďár nad Sázavou | I82: 02:24:19
A83: =IF('Výsledková listina (2)'!D82<>"",A82+1,"") -> 79 | C83: ='Startovní listina'!G83 -> B | D83: ='Startovní listina'!B83 -> 92 | E83: ='Startovní listina'!C83 -> Řezníček | F83: ='Startovní listina'!D83 -> Petr | G83: ='Startovní listina'!E83 -> 1973 | H83: ='Startovní listina'!F83 -> Polnička | I83: 02:31:15
A84: =IF('Výsledková listina (2)'!D83<>"",A83+1,"") -> 80 | C84: ='Startovní listina'!G61 -> A | D84: ='Startovní listina'!B61 -> 63 | E84: ='Startovní listina'!C61 -> Sedláček | F84: ='Startovní listina'!D61 -> Aleš | G84: ='Startovní listina'!E61 -> 1976 | H84: ='Startovní listina'!F61 -> Sokol Přísnotice | I84: 02:27:55
A85: =IF('Výsledková listina (2)'!D84<>"",A84+1,"") -> 81 | C85: ='Startovní listina'!G95 -> C | D85: ='Startovní listina'!B95 -> 104 | E85: ='Startovní listina'!C95 -> Sedláček | F85: ='Startovní listina'!D95 -> Svatopluk | G85: ='Startovní listina'!E95 -> 1957 | H85: ='Startovní listina'!F95 -> Moravská Slávia Brno | I85: 02:34:44
A86: =IF('Výsledková listina (2)'!D85<>"",A85+1,"") -> 82 | C86: ='Startovní listina'!G65 -> B | D86: ='Startovní listina'!B65 -> 70 | E86: ='Startovní listina'!C65 -> Strakoš | F86: ='Startovní listina'!D65 -> Vilém | G86: ='Startovní listina'!E65 -> 1969 | H86: ='Startovní listina'!F65 -> SK Fuga Kuřim | I86: 02:58:55
A87: =IF('Výsledková listina (2)'!D86<>"",A86+1,"") -> 83 | C87: ='Startovní listina'!G43 -> C | D87: ='Startovní listina'!B43 -> 44 | E87: ='Startovní listina'!C43 -> Suchý | F87: ='Startovní listina'!D43 -> Karel | G87: ='Startovní listina'!E43 -> 1956 | H87: ='Startovní listina'!F43 -> Atletic Třebíč | I87: 02:32:49
A88: =IF('Výsledková listina (2)'!D87<>"",A87+1,"") -> 84 | C88: ='Startovní listina'!G33 -> H | D88: ='Startovní listina'!B33 -> 33 | E88: ='Startovní listina'!C33 -> Šedová | F88: ='Startovní listina'!D33 -> Věra | G88: ='Startovní listina'!E33 -> 1964 | H88: ='Startovní listina'!F33 -> Atletic Třebíč
A89: =IF('Výsledková listina (2)'!D88<>"",A88+1,"") -> 85 | C89: ='Startovní listina'!G76 -> C | D89: ='Startovní listina'!B76 -> 84 | E89: ='Startovní listina'!C76 -> Šilhan | F89: ='Startovní listina'!D76 -> Vladimír | G89: ='Startovní listina'!E76 -> 1957 | H89: ='Startovní listina'!F76 -> Original Ježek Babice nad Svitavou | I89: 03:18:56
A90: =IF('Výsledková listina (2)'!D89<>"",A89+1,"") -> 86 | C90: ='Startovní listina'!G12 -> B | D90: ='Startovní listina'!B12 -> 8 | E90: ='Startovní listina'!C12 -> Škapa | F90: ='Startovní listina'!D12 -> Marek | G90: ='Startovní listina'!E12 -> 1971 | H90: ='Startovní listina'!F12 -> MK Seitl Ostrava | I90: 02:05:40
A91: =IF('Výsledková listina (2)'!D90<>"",A90+1,"") -> 87 | C91: ='Startovní listina'!G24 -> B | D91: ='Startovní listina'!B24 -> 22 | E91: ='Startovní listina'!C24 -> Štýbnar | F91: ='Startovní listina'!D24 -> Zbyněk | G91: ='Startovní listina'!E24 -> 1974 | H91: ='Startovní listina'!F24 -> Běžec Vysočiny Jihlava | I91: 02:08:44
A92: =IF('Výsledková listina (2)'!D91<>"",A91+1,"") -> 88 | C92: ='Startovní listina'!G16 -> H | D92: ='Startovní listina'!B16 -> 12 | E92: ='Startovní listina'!C16 -> Tesařová | F92: ='Startovní listina'!D16 -> Marie | G92: ='Startovní listina'!E16 -> 1954 | H92: ='Startovní listina'!F16 -> Křižanov
A93: =IF('Výsledková listina (2)'!D92<>"",A92+1,"") -> 89 | C93: ='Startovní listina'!G88 -> G | D93: ='Startovní listina'!B88 -> 97 | E93: ='Startovní listina'!C88 -> Tonarová | F93: ='Startovní listina'!D88 -> Miroslava | G93: ='Startovní listina'!E88 -> 1976 | H93: ='Startovní listina'!F88 -> Bory | I93: 02:53:55
A94: =IF('Výsledková listina (2)'!D93<>"",A93+1,"") -> 90 | C94: ='Startovní listina'!G90 -> A | D94: ='Startovní listina'!B90 -> 99 | E94: ='Startovní listina'!C90 -> Vacula | F94: ='Startovní listina'!D90 -> Ondřej | G94: ='Startovní listina'!E90 -> 1981 | H94: ='Startovní listina'!F90 -> AC Lelek Lelekovice | I94: 02:55:52
A95: =IF('Výsledková listina (2)'!D94<>"",A94+1,"") -> 91 | C95: ='Startovní listina'!G25 -> F | D95: ='Startovní listina'!B25 -> 23 | E95: ='Startovní listina'!C25 -> Vašalovská | F95: ='Startovní listina'!D25 -> Petra | G95: ='Startovní listina'!E25 -> 1986 | H95: ='Startovní listina'!F25 -> Atletic Třebíč | I95: 03:04:10
A96: =IF('Výsledková listina (2)'!D95<>"",A95+1,"") -> 92 | C96: ='Startovní listina'!G72 -> D | D96: ='Startovní listina'!B72 -> 79 | E96: ='Startovní listina'!C72 -> Vídeňský | F96: ='Startovní listina'!D72 -> Jiří | G96: ='Startovní listina'!E72 -> 1947 | H96: ='Startovní listina'!F72 -> KD Moravské Budějovice
A97: =IF('Výsledková listina (2)'!D96<>"",A96+1,"") -> 93 | C97: ='Startovní listina'!G13 -> D | D97: ='Startovní listina'!B13 -> 9 | E97: ='Startovní listina'!C13 -> Výtisk | F97: ='Startovní listina'!D13 -> Alfons | G97: ='Startovní listina'!E13 -> 1949 | H97: ='Startovní listina'!F13 -> MK Seitl Ostrava | I97: 02:40:16
A98: =IF('Výsledková listina (2)'!D97<>"",A97+1,"") -> 94 | C98: ='Startovní listina'!G10 -> C | D98: ='Startovní listina'!B10 -> 6 | E98: ='Startovní listina'!C10 -> Zourek | F98: ='Startovní listina'!D10 -> Karel | G98: ='Startovní listina'!E10 -> 1959 | H98: ='Startovní listina'!F10 -> Brno | I98: 03:00:21
A99: =IF('Výsledková listina (2)'!D98<>"",A98+1,"") -> 95 | C99: ='Startovní listina'!G99 ->  | D99: ='Startovní listina'!B99 ->  | E99: ='Startovní listina'!C99 ->  | F99: ='Startovní listina'!D99 ->  | G99: ='Startovní listina'!E99 ->  | H99: ='Startovní listina'!F99 -> 
A100: =IF('Výsledková listina (2)'!D99<>"",A99+1,"") ->  | C100: ='Startovní listina'!G100 ->  | D100: ='Startovní listina'!B100 ->  | E100: ='Startovní listina'!C100 ->  | F100: ='Startovní listina'!D100 ->  | G100: ='Startovní listina'!E100 ->  | H100: ='Startovní listina'!F100 -> 
A101: =IF('Výsledková listina (2)'!D100<>"",A100+1,"") ->  | C101: ='Startovní listina'!G101 ->  | D101: ='Startovní listina'!B101 ->  | E101: ='Startovní listina'!C101 ->  | F101: ='Startovní listina'!D101 ->  | G101: ='Startovní listina'!E101 ->  | H101: ='Startovní listina'!F101 -> 
A102: =IF('Výsledková listina (2)'!D101<>"",A101+1,"") ->  | C102: ='Startovní listina'!G102 ->  | D102: ='Startovní listina'!B102 ->  | E102: ='Startovní listina'!C102 ->  | F102: ='Startovní listina'!D102 ->  | G102: ='Startovní listina'!E102 ->  | H102: ='Startovní listina'!F102 -> 
A103: =IF('Výsledková listina (2)'!D102<>"",A102+1,"") ->  | C103: ='Startovní listina'!G103 ->  | D103: ='Startovní listina'!B103 ->  | E103: ='Startovní listina'!C103 ->  | F103: ='Startovní listina'!D103 ->  | G103: ='Startovní listina'!E103 ->  | H103: ='Startovní listina'!F103 -> 
